{"text_format":"1","workbook":"xlsx","n_sheets":34,"sheets":["modProv","Инструкция","Справочная информация","Лог обновления","Титульный","Список ЦСГВС (не дифф)","ЦСГВС доступ (не дифф)","Список ЦСГВС (дифф)","Ссылки на публикации","Комментарии","Проверка","AllSheetsInThisWorkbook","TEHSHEET","et_union_hor","et_union_vert","modInfo","modReestr","modfrmReestr","modUpdTemplMain","REESTR_ORG","modClassifierValidate","modHyp","modList00","modList01","modList02","modList03","modList04","modfrmDateChoose","modComm","modThisWorkbook","REESTR_MO","modfrmReestrMR","modfrmRegion","modfrmCheckUpdates"],"not_rendered":{"charts":0,"images":20,"macros":1,"external_links":0,"defined_names":117,"comments":1,"pivot_tables":0},"unopened":[],"bounds":{"document_bytes":16777216,"sheet_cells":100000,"rows_first":2000,"rows_last":500,"rows_between":2000,"halvings":0,"cell_chars":16384,"cell_head_chars":4096},"cells_cut":0,"cells_raw":0,"read":"whole","date_system":"1900"}

{"sheet":"modProv","index":0,"n_rows":0,"n_cols":0,"rows_kept":0,"cut":false,"hidden":true,"merged":[]}

{"sheet":"Инструкция","index":1,"n_rows":109,"n_cols":27,"rows_kept":109,"cut":false,"hidden":false,"merged":[[45,4,56,23],[22,15,22,22],[1,1,1,6],[2,1,2,2],[4,1,4,24],[6,4,18,23],[20,5,20,12],[20,15,20,23],[21,5,21,12],[21,15,21,23],[34,4,38,23],[39,4,39,23],[40,4,44,23],[57,4,57,6],[57,7,57,23],[58,4,58,6],[58,7,58,23],[59,4,59,6],[59,7,59,23],[60,7,60,23],[87,4,87,6],[87,7,87,23],[88,4,88,6],[88,7,88,23],[69,4,69,23],[81,4,81,23],[70,4,70,23],[71,5,71,23],[79,4,79,23],[86,4,86,7],[83,4,83,23],[85,4,85,23],[84,4,84,23],[86,8,86,23],[72,5,72,23],[73,5,73,23],[74,5,74,23],[106,5,106,18],[108,5,108,23],[75,5,75,23],[89,4,89,6],[89,7,89,23],[90,7,90,23],[104,4,104,23],[82,4,82,23],[80,4,80,23],[76,5,76,23],[77,4,77,23],[78,4,78,23]]}
[null,null,null,null,null,null,null,null,null,null,null,null,null,null,null,null,null,null,null,null,null,null,null,null,null,null," (требуется обновление)"]
[null,{"$f":"\"Код шаблона: \" & GetCode()","v":"Код шаблона: JKH.OPEN.INFO.QUARTER.GVS"}]
[null,{"$f":"\"Версия \" & GetVersion()","v":"Версия 6.1.2"}]
[]
[null,{"$f":"\"Информация о наличии (отсутствии) технической возможности подключения к централизованной системе \"&TSphere_full&\", а также о регистрации и ходе реализации заявок о подключении к централизованной системе \"&TSphere_full","v":"Информация о наличии (отсутствии) технической возможности подключения к централизованной системе горячего водоснабжения, а также о регистрации и ходе реализации заявок о подключении к централизованной системе горячего водоснабжения"}]
[]
[null,null,null,null,"• На рабочем месте должен быть установлен MS Office 2003 SP3, 2007 SP3, 2010 с полной версией MS Excel\n\n• Макросы во время работы должны быть включены (!)\n\n• Для корректной работы отчёта требуется выбрать низкий уровень безопасности\n(В меню MS Excel 2003: Сервис | Макрос | Безопасность | выбрать пункт «Низкая безопасность» | OK)\n(В меню MS Excel 2007/2010: Параметры Excel | Центр управления безопасностью | Параметры центра управления безопасностью | Параметры макросов | Включить все макросы | ОК)\n\n• Если Вы работаете в табличном процессоре MS Excel 2007 и выше, то можете использовать для работы формат XLSM (Книга Excel с поддержкой макросов). При работе в формате XLSM заметно быстрее происходит сохранение файла, а также уменьшается размер по сравнению с форматом XLS\n\n• Не рекомендуется снимать защиту с листов и каким-либо образом модифицировать защищаемые формулы и расчётные поля, в противном случае, отчёт будет отклонён системой\n\n• При сохранении не следует выбирать формат XLSX (Книга Excel), так как в указанном формате макросы, необходимые для работы отчёта, безвозвратно удаляются"]
[]
[]
[]
[]
[]
[]
[]
[]
[]
[]
[]
[]
[]
[null,null,null,null,"A"," - не обязательные для заполнения",null,null,null,null,null,null,null,null,"A"," - с формулами и константами"]
[null,null,null,null,"A"," - обязательные для заполнения",null,null,null,null,null,null,null,null,"A"," - с выбором значений до двойному клику,"]
[null,null,null,null,null,null,null,null,null,null,null,null,null,null,null,"либо с возможностью выбора даты из календаря или ручного ввода"]
[]
[]
[]
[]
[]
[]
[]
[]
[]
[]
[]
[null,null,null,null,"Если в предложенном Вам списке необходимая организация, МР/МО отсутствуют, обновите реестры с помощью кнопок\n\nВ результате синхронизации с базой данных список организаций (МР/МО) будет заменён актуальным (механизм синхронизации требует подключения к сети Интернет и основан на использовании протокола HTTPS (TCP порт 443))\n\nЕсли после обновления Вам не удалось найти необходимую организацию в списке, обратитесь к ответственному за поддержание реестра Вашего региона. Информация о региональных органах регулирования доступна по ссылке:"]
[]
[]
[]
[]
[null,null,null,null,"http://www.fstrf.ru/regions/region/showlist"]
[]
[]
[]
[]
[]
[null,null,null,null,"• При сохранении шаблона осуществляется проверка корректности данных, в том числе на наличие значений в ячейках, обязательных для заполнения\n\n• Если какая-то ячейка не удовлетворяет условию проверки, на лист «Проверка» добавляется гиперссылка на данную ячейку и указывается причина ошибки\n\n• В колонке «Статус» для каждого сообщения возможны 2 значения: ошибка и предупреждение\n\n• При наличии сообщений со статусом «Ошибка» шаблон будет отклонён системой и не будет загружен в хранилище данных, сообщения со статусом «Предупреждение» носят информационный характер, и такой шаблон будет принят системой"]
[]
[]
[]
[]
[]
[]
[]
[]
[]
[]
[]
[null,null,null,null,"Web-сайт:",null,null,"http://support.eias.ru/index.php?a=add&catid=5"]
[null,null,null,null,"E-mail:",null,null,"openinfo@eias.ru"]
[null,null,null,null,"Дистрибутивы:",null,null,"http://eias.ru/?page=show_distrs"]
[null,null,null,null,null,null,null,"для устранения ошибок (например, \"Compile error in hidden module\")"]
[]
[]
[]
[]
[]
[]
[]
[]
[null,null,null,null,"Законодательная основа шаблона"]
[null,null,null,null,"Данный шаблон разработан в соответствии с:"]
[null,null,null,null," • ","Постановлением Правительства РФ от 17.01.2013 N 6 \"О стандартах раскрытия информации в сфере водоснабжения и водоотведения\""]
[null,null,null,null,null,"Полный текст Постановления N 6"]
[null,null,null,null,null,{"$f":"\"Подробнее о сфере \"& TSphere_full","v":"Подробнее о сфере горячего водоснабжения"}]
[null,null,null,null," • ","Приказом Федеральной службы по тарифам (ФСТ России) от 15 мая 2013 г. № 129 (зарегистрирован Минюстом России № 28876 от 25.06.2013) «Об утверждении форм предоставления информации, подлежащей раскрытию, организациями, осуществляющими горячее водоснабжение, холодное водоснабжение и водоотведение, и органами регулирования тарифов, а также Правил заполнения таких форм»"]
[null,null,null,null,null,"Полный текст Приказа № 129 на сайте ФСТ России"]
[]
[null,null,null,null,"Принципы работы с шаблоном"]
[null,null,null,null,"  Перед началом работы с шаблоном Вам необходимо нажать кнопку \"Приступить к заполнению\", после чего на форме выбора выбрать из выпадающего списка нужный субъект РФ. После выбора субъекта РФ в шаблоне отобразятся листы для заполнения."]
[null,null,null,null,"  На листе «Титульный» нужно заполнить все ячейки голубого цвета."]
[null,null,null,null,"  На листе «Ссылки на публикации» «Адрес сайта в сети интернет» вводите, не нарушая цвет ячейки /если копируете гиперссылку из браузера, то выполните двойной щелчок левой кнопки мыши по ячейке и только после этого можете вставить скопированный элемент/.\n"]
[null,null,null,null,"  При вводе даты на расчетных листах необходимо выбрать дату из календаря (иконка справа от выбранной ячейки), либо ввести дату непосредственно в ячейку в формате - 'ДД.ММ.ГГГГ'."]
[null,null,null,null,"  Если какой-либо из показателей на расчетных листах для Вашей организации отсутствует, введите в поле, обязательное для заполнение, «0» (для числовых показателей) и «-» (для текстовых).\n"]
[null,null,null,null,"  Внимательно следите за информационными сообщениями на расчетных листах."]
[null,null,null,null,"  Все необходимые комментарии по всем формам Вы можете отразить на листе «Комментарии»."]
[null,null,null,null,"  Сопроводительные материалы необходимо загружать с помощью \"ЕИАС Мониторинг\""]
[null,null,null,null,"Инструкция",null,null,null,"http://eias.ru/files/shablon/manual_loading_through_monitoring.pdf"]
[]
[null,null,null,null,"E-mail:",null,null,"openinfo@eias.ru"]
[null,null,null,null,"Web-сайт:",null,null,"http://eias.ru/?page=show_templates"]
[]
[]
[]
[]
[]
[]
[]
[]
[]
[]
[]
[]
[]
[]
[null,null,null,null,"При наличии подключения к Интернет, можно автоматически проверять наличие доступных обновлений. Выберите способ оповещения о наличии обновлений для отчёта:"]
[]
[null,null,null,null,null,"проверять доступные обновления (рекомендуется)",null,null,null,null,null,null,null,null,null,null,null,null,null,null,null,null,null,null,null,null,"y"]
[]
[null,null,null,null,null,"никогда не проверять наличие обновлений (не рекомендуется)"]

{"sheet":"Справочная информация","index":2,"n_rows":127,"n_cols":6,"rows_kept":127,"cut":false,"hidden":false,"merged":[]}
[]
[null,{"$f":"code","v":"Код шаблона: JKH.OPEN.INFO.QUARTER.GVS"}]
[]
[]
[null,null,{"$f":"\"II. Стандарты раскрытия информации в сфере \"& TSphere_full","v":"II. Стандарты раскрытия информации в сфере горячего водоснабжения"}]
[]
[null,null,"56. Регулируемыми организациями подлежит раскрытию информация:",null,null," "]
[null,null,"а) о регулируемой организации (общая информация);",null,null,"  "]
[null,null,"б) о тарифах на регулируемые товары (услуги);",null,null,"  "]
[null,null,"в) об основных показателях финансово-хозяйственной деятельности регулируемой организации, включая структуру основных производственных затрат (в части регулируемой деятельности);",null,null,"  "]
[null,null,"г) об основных потребительских характеристиках регулируемых товаров и услуг регулируемой организации и их соответствии установленным требованиям;",null,null,"  "]
[null,null,"д) об инвестиционных программах регулируемой организации и отчетах об их реализации;",null,null,"  "]
[null,null,"е) о наличии (отсутствии) технической возможности подключения к централизованной системе горячего водоснабжения, а также о регистрации и ходе реализации заявок о подключении к централизованной системе горячего водоснабжения;",null,null,"  "]
[null,null,"ж) об условиях, на которых осуществляется поставка регулируемых товаров (оказание регулируемых услуг), и (или) об условиях договоров о подключении к централизованной системе горячего водоснабжения;",null,null,"  "]
[null,null,"з) о порядке выполнения технологических, технических и других мероприятий, связанных с подключением к централизованной системе горячего водоснабжения;",null,null,"  "]
[null,null,"и) о способах приобретения товаров, необходимых для производства регулируемых товаров и (или) оказания регулируемых услуг регулируемой организацией;",null,null,"  "]
[null,null,"к) о предложении регулируемой организации об установлении тарифов в сфере горячего водоснабжения.",null,null,"  "]
[]
[null,null,"57. Информация о тарифах на регулируемые товары (услуги) в сфере горячего водоснабжения содержит сведения:",null,null,"  "]
[null,null,"а) об утвержденных тарифах на горячую воду (горячее водоснабжение);",null,null," "]
[null,null,"б) об утвержденных тарифах на транспортировку горячей воды;",null,null,"  "]
[null,null,"в) об утвержденных тарифах на подключение к централизованной системе горячего водоснабжения.",null,null,"  "]
[]
[null,null,"58. В отношении сведений, предусмотренных пунктом 57 настоящего документа, указывается информация:",null,null,"  "]
[null,null,"а) о наименовании органа регулирования, принявшего решение об утверждении тарифов;",null,null,"  "]
[null,null,"б) о реквизитах (дата и номер) такого решения;",null,null,"  "]
[null,null,"в) о величине установленного тарифа;",null,null,"  "]
[null,null,"г) о сроке действия тарифа;",null,null," "]
[null,null,"д) об источнике официального опубликования решения.",null,null,"  "]
[]
[null,null,"59. В рамках общей информации о регулируемой организации раскрытию подлежат следующие сведения:",null,null,"  "]
[null,null,"а) фирменное наименование юридического лица (согласно уставу регулируемой организации), фамилия, имя и отчество руководителя регулируемой организации;",null,null,"  "]
[null,null,"б) основной государственный регистрационный номер, дата его присвоения и наименование органа, принявшего решение о регистрации, в соответствии со свидетельством о государственной регистрации в качестве юридического лица;",null,null,"  "]
[null,null,"в) почтовый адрес, адрес фактического местонахождения органов управления регулируемой организации, контактные телефоны, а также (при наличии) официальный сайт в сети \"Интернет\" и адрес электронной почты;",null,null,"  "]
[null,null,"г) режим работы регулируемой организации (абонентских отделов, сбытовых подразделений), в том числе часы работы диспетчерских служб;",null,null,"  "]
[null,null,"д) вид регулируемой деятельности;",null,null," "]
[null,null,"е) протяженность водопроводных сетей (в однотрубном исчислении) (километров);",null,null,"  "]
[null,null,"ж) количество центральных тепловых пунктов (штук).",null,null,"  "]
[]
[null,null,"60. Информация об основных показателях финансово-хозяйственной деятельности регулируемой организации, включая структуру основных производственных затрат (в части регулируемой деятельности), содержит сведения:",null,null,"  "]
[null,null,"а) о выручке от регулируемой деятельности (тыс. рублей) с разбивкой по видам деятельности;",null,null,"  "]
[null,null,"б) о себестоимости производимых товаров (оказываемых услуг) по регулируемому виду деятельности (тыс. рублей), включая:",null,null,"  "]
[null,null,"- расходы на покупаемую тепловую энергию (мощность), используемую для горячего водоснабжения;",null,null,"  "]
[null,null,"- расходы на тепловую энергию, производимую с применением собственных источников и используемую для горячего водоснабжения;",null,null,"  "]
[null,null,"- расходы на покупаемую холодную воду, используемую для горячего водоснабжения;",null,null,"  "]
[null,null,"- расходы на холодную воду, получаемую с применением собственных источников водозабора (скважин) и используемую для горячего водоснабжения;",null,null,"  "]
[null,null,"- расходы на покупаемую электрическую энергию (мощность), используемую в технологическом процессе (с указанием средневзвешенной стоимости 1 кВт·ч), и объем приобретения электрической энергии;",null,null," "]
[null,null,"- расходы на оплату труда и отчисления на социальные нужды основного производственного персонала;",null,null,"  "]
[null,null,"- расходы на оплату труда и отчисления на социальные нужды административно-управленческого персонала;",null,null,"  "]
[null,null,"- расходы на амортизацию основных производственных средств и аренду имущества, используемого в технологическом процессе;",null,null,"   "]
[null,null,"- общепроизводственные расходы, в том числе расходы на текущий и капитальный ремонт;",null,null,"   "]
[null,null,"- общехозяйственные расходы, в том числе расходы на текущий и капитальный ремонт;",null,null,"   "]
[null,null,"- расходы на капитальный и текущий ремонт основных производственных средств (в том числе информация об объемах товаров и услуг, их стоимости и способах приобретения у тех организаций, сумма оплаты услуг которых превышает 20 процентов суммы расходов по указанной статье расходов);",null,null,"   "]
[null,null,"- расходы на услуги производственного характера, оказываемые по договорам с организациями на проведение регламентных работ в рамках технологического процесса (в том числе информация об объемах товаров и услуг, их стоимости и способах приобретения у тех организаций, сумма оплаты услуг которых превышает 20 процентов суммы расходов по указанной статье расходов);",null,null,"   "]
[null,null,"- прочие расходы, которые отнесены на регулируемые виды деятельности, в соответствии с основами ценообразования в сфере водоснабжения и водоотведения, утверждаемыми Правительством Российской Федерации;",null,null,"   "]
[null,null,"в) о чистой прибыли, полученной от регулируемого вида деятельности, с указанием размера ее расходования на финансирование мероприятий, предусмотренных инвестиционной программой регулируемой организации (тыс. рублей);",null,null,"   "]
[null,null,"г) об изменении стоимости основных фондов (в том числе за счет ввода в эксплуатацию (вывода из эксплуатации)), их переоценки (тыс. рублей);",null,null,"   "]
[null,null,"д) о валовой прибыли от продажи товаров и услуг по регулируемому виду деятельности (тыс. рублей);",null,null,"   "]
[null,null,"е) о годовой бухгалтерской отчетности, включая бухгалтерский баланс и приложения к нему (раскрывается регулируемой организацией, выручка от регулируемой деятельности которой превышает 80 процентов совокупной выручки за отчетный год);",null,null,"   "]
[null,null,"ж) об объеме покупаемой холодной воды, используемой для горячего водоснабжения (тыс. куб. метров);",null,null,"   "]
[null,null,"з) об объеме холодной воды, получаемой с применением собственных источников водозабора (скважин) и используемой для горячего водоснабжения;",null,null,"   "]
[null,null,"и) об объеме покупаемой тепловой энергии (мощности), используемой для горячего водоснабжения (тыс. Гкал (Гкал/ч));",null,null,"  "]
[null,null,"к) об объеме тепловой энергии, производимой с применением собственных источников и используемой для горячего водоснабжения (тыс. Гкал);",null,null,"  "]
[null,null,"л) о потерях воды в сетях (процентов);",null,null,"  "]
[null,null,"м) о среднесписочной численности основного производственного персонала (человек);",null,null,"  "]
[null,null,"н) об удельном расходе электроэнергии на подачу воды в сеть (тыс. кВт·ч или тыс. куб. метров).",null,null,"  "]
[null,null,"61. Информация об основных потребительских характеристиках регулируемых товаров и услуг регулируемой организации и их соответствии установленным требованиям содержит сведения:",null,null,"  "]
[null,null,"а) о количестве аварий на системах горячего водоснабжения (единиц на километр);",null,null,"  "]
[null,null,"б) о количестве часов (суммарно за календарный год), превышающих допустимую продолжительность перерыва подачи горячей воды, и доле потребителей, затронутых ограничениями подачи горячей воды;",null,null,"  "]
[null,null,"в) о количестве часов (суммарно за календарный год) отклонения от нормативной температуры горячей воды в точке разбора;",null,null,"  "]
[null,null,"г) о соответствии состава и свойств горячей воды установленным санитарным нормам и правилам;",null,null,"  "]
[null,null,"д) о доле исполненных в срок договоров о подключении (процент общего количества заключенных договоров о подключении);",null,null,"  "]
[null,null,"е) о средней продолжительности рассмотрения заявлений о подключении (дней).",null,null,"  "]
[]
[null,null,"62. Информация об инвестиционных программах регулируемой организации содержит сведения:",null,null,"  "]
[null,null,"а) о наименовании, дате утверждения и цели инвестиционной программы;",null,null,"  "]
[null,null,"б) о наименовании органа исполнительной власти субъекта Российской Федерации, утвердившего инвестиционную программу, и наименовании органа местного самоуправления, согласовавшего инвестиционную программу;",null,null," "]
[null,null,"в) о сроках начала и окончания реализации инвестиционной программы;",null,null,"  "]
[null,null,"г) о потребностях в финансовых средствах, необходимых для реализации инвестиционной программы, в том числе с разбивкой по годам, мероприятиям и источникам финансирования инвестиционной программы (тыс. рублей);",null,null,"  "]
[null,null,"д) о плановых значениях целевых показателей инвестиционной программы (с разбивкой по мероприятиям);",null,null,"  "]
[null,null,"е) о фактических значениях целевых показателей инвестиционной программы (с разбивкой по мероприятиям);",null,null,"   "]
[null,null,"ж) об использовании инвестиционных средств за отчетный год с разбивкой по кварталам, мероприятиям и источникам финансирования инвестиционной программы (тыс. рублей);",null,null,"   "]
[null,null,"з) о внесении изменений в инвестиционную программу.",null,null,"   "]
[]
[null,null,"63. Информация о наличии (отсутствии) технической возможности подключения к централизованной системе горячего водоснабжения, а также о регистрации и ходе реализации заявок о подключении к централизованной системе горячего водоснабжения содержит сведения:",null,null,"   "]
[null,null,"а) о количестве поданных заявок о подключении к централизованной системе горячего водоснабжения в течение квартала;",null,null,"   "]
[null,null,"б) о количестве исполненных заявок о подключении к централизованной системе горячего водоснабжения в течение квартала;",null,null,"  "]
[null,null,"в) о количестве заявок о подключении к централизованной системе горячего водоснабжения, по которым принято решение об отказе в подключении (с указанием причин), в течение квартала;",null,null,"   "]
[null,null,"г) о резерве мощности централизованной системы горячего водоснабжения в течение квартала.",null,null,"   "]
[]
[null,null,"64. При использовании регулируемой организацией нескольких централизованных систем горячего водоснабжения информация о резерве мощности таких систем публикуется в отношении каждой централизованной системы горячего водоснабжения.",null,null,"   "]
[]
[null,null,"65. Информация об условиях, на которых осуществляется поставка регулируемых товаров и (или) оказание регулируемых услуг, содержит сведения об условиях публичных договоров поставок регулируемых товаров, оказания регулируемых услуг, в том числе договоров о подключении к централизованной системе горячего водоснабжения.",null,null,"   "]
[]
[null,null,"66. Информация о порядке выполнения технологических, технических и других мероприятий, связанных с подключением к централизованной системе горячего водоснабжения, содержит:",null,null,"   "]
[null,null,"а) форму заявки о подключении к централизованной системе горячего водоснабжения;",null,null,"  "]
[null,null,"б) перечень документов, представляемых одновременно с заявкой о подключении к централизованной системе горячего водоснабжения;",null,null,"  "]
[null,null,"в) реквизиты нормативного правового акта, регламентирующего порядок действий заявителя и регулируемой организации при подаче, приеме, обработке заявки о подключении к централизованной системе горячего водоснабжения, принятии решения и уведомлении о принятом решении;",null,null,"  "]
[null,null,"г) телефоны и адреса службы, ответственной за прием и обработку заявок о подключении к централизованной системе горячего водоснабжения.",null,null," "]
[]
[null,null,"67. Информация о способах приобретения, стоимости и объемах товаров, необходимых для производства регулируемых товаров и (или) оказания регулируемых услуг регулируемой организацией, содержит сведения о правовых актах, регламентирующих правила закупки (положение о закупках) в регулируемой организации, а также о месте размещения положения о закупках регулируемой организации и о планировании конкурсных процедур и результатах их проведения.",null,null,"  "]
[]
[null,null,"68. Информация о предложении регулируемой организации об установлении тарифов в сфере горячего водоснабжения на очередной период регулирования содержит копию утвержденной в установленном порядке инвестиционной программы (проекта инвестиционной программы), а также сведения:",null,null,"  "]
[null,null,"а) о предлагаемом методе регулирования;",null,null,"  "]
[null,null,"б) о расчетной величине тарифов;",null,null,"  "]
[null,null,"в) о периоде действия тарифов;",null,null,"  "]
[null,null,"г) о долгосрочных параметрах регулирования (в случае если их установление предусмотрено выбранным методом регулирования);",null,null,"  "]
[null,null,"д) о необходимой валовой выручке на соответствующий период, в том числе с разбивкой по годам;",null,null,"  "]
[null,null,"е) о годовом объеме отпущенной в сеть воды;",null,null,"  "]
[null,null,"ж) о размере недополученных доходов регулируемой организацией (при их наличии), исчисленном в соответствии с основами ценообразования в сфере водоснабжения и водоотведения, утверждаемыми Правительством Российской Федерации;",null,null,"  "]
[null,null,"з) о размере экономически обоснованных расходов, не учтенных при регулировании тарифов в предыдущий период регулирования (при их наличии), определенном в соответствии с основами ценообразования в сфере водоснабжения и водоотведения, утверждаемыми Правительством Российской Федерации.",null,null," "]
[]
[null,null,"69. Информация, указанная в пунктах 57, 65 и 66 настоящего документа, раскрывается регулируемой организацией не позднее 30 календарных дней со дня принятия решения об установлении тарифа на очередной период регулирования.",null,null,"  "]
[]
[null,null,"70. Информация, указанная в пунктах 60 - 62 настоящего документа, раскрывается регулируемой организацией не позднее 30 календарных дней со дня сдачи годового бухгалтерского баланса в налоговые органы, за исключением информации, указанной в подпункте \"з\" пункта 62 настоящего документа.",null,null,"  "]
[]
[null,null,"71. Информация, указанная в пункте 60 настоящего документа, должна соответствовать бухгалтерской отчетности за отчетный год.",null,null,"  "]
[]
[null,null,"72. Регулируемые организации, не осуществляющие сдачу годового бухгалтерского баланса в налоговые органы, информацию, указанную в пунктах 60 - 62 настоящего документа, за исключением информации, указанной в подпункте \"з\" пункта 62 настоящего документа, раскрывают не позднее 30 календарных дней со дня истечения срока, установленного законодательством Российской Федерации для сдачи годового бухгалтерского баланса в налоговые органы, за исключением информации, указанной в подпункте \"з\" пункта 62 настоящего документа.",null,null,"  "]
[]
[null,null,"73. Информация, указанная в подпункте \"з\" пункта 62 настоящего документа, раскрывается в течение 10 календарных дней со дня принятия органом исполнительной власти субъекта Российской Федерации решения о внесении изменений в инвестиционную программу.",null,null,"  "]
[]
[null,null,"74. Информация, указанная в пункте 63 настоящего документа, раскрывается регулируемой организацией ежеквартально, в течение 30 календарных дней по истечении квартала, за который раскрывается информация.",null,null," "]
[]
[null,null,"75. Информация, указанная в пунктах 67 и 68 настоящего документа, раскрывается регулируемой организацией в течение 10 календарных дней со дня подачи ею заявления об установлении тарифов в сфере горячего водоснабжения в орган исполнительной власти субъекта Российской Федерации в области государственного регулирования тарифов (орган местного самоуправления).",null,null,"  "]
[]
[null,null,"76. Информация, указанная в пункте 59 настоящего документа, подлежит раскрытию в течение месяца со дня вступления в силу настоящего документа.",null,null," "]

{"sheet":"Лог обновления","index":3,"n_rows":28,"n_cols":3,"rows_kept":28,"cut":false,"hidden":true,"merged":[]}
["Дата/Время","Сообщение","Статус"]
[]
["2014-01-15T10:33:14","Проверка доступных обновлений...","Информация"]
["2014-01-15T10:33:14","Версия шаблона 6.1.1 актуальна, обновление не требуется","Информация"]
["2014-05-26T13:27:07","Проверка доступных обновлений...","Информация"]
["2014-05-26T13:27:07","Доступно обновление до версии 6.1.2","Информация"]
["2014-05-26T13:27:07","Описание изменений: Версия 6.1.2 (только(!!!) для шаблонов версии 6.1 и выше)\n1. корректировка проверки при сохранении корректности отчетного периода на листе \"Титульный\".\n2. добавление информации о соответствие форм приказа ФСТ России № 129 от 15 мая 2013 г. на соответствующих листах.\n\n\nЕсли версия Вашего шаблона ниже 6.1, обратитесь к администратору Вашего субъекта РФ.","Информация"]
["2014-05-26T13:27:07","Размер файла обновления: 285696 байт","Информация"]
["2014-05-26T13:27:14","Подготовка к обновлению...","Информация"]
["2014-05-26T13:27:21","Сохранение файла резервной копии: C:\\Users\\borinskih\\Desktop\\Шаблоны станд раскр инф 06 2014\\JKH.OPEN.INFO.QUARTER.GVS.BKP..xlsm","Информация"]
["2014-05-26T13:27:22","Резервная копия создана: C:\\Users\\borinskih\\Desktop\\Шаблоны станд раскр инф 06 2014\\JKH.OPEN.INFO.QUARTER.GVS.BKP..xlsm","Информация"]
["2014-05-26T13:27:22","Создание книги для установки обновлений...","Информация"]
["2014-05-26T13:27:35","Файл обновления загружен: C:\\Users\\borinskih\\Desktop\\Шаблоны станд раскр инф 06 2014\\UPDATE.JKH.OPEN.INFO.QUARTER.GVS.TO.6.1.2.85.xls","Информация"]
["2014-05-26T13:27:39","Обновление завершилось удачно! Шаблон JKH.OPEN.INFO.QUARTER.GVS.xlsm сохранен под именем 'JKH.OPEN.INFO.QUARTER.GVS(v6.1.2).xlsm'","Информация"]
["2016-03-15T16:59:26","Проверка доступных обновлений...","Информация"]
["2016-03-15T16:59:26","Версия шаблона 6.1.2 актуальна, обновление не требуется","Информация"]
["2016-04-26T15:17:32","Проверка доступных обновлений...","Информация"]
["2016-04-26T15:17:34","Версия шаблона 6.1.2 актуальна, обновление не требуется","Информация"]
["2016-04-26T16:22:13","Проверка доступных обновлений...","Информация"]
["2016-04-26T16:22:13","Версия шаблона 6.1.2 актуальна, обновление не требуется","Информация"]
["2016-04-26T16:24:58","Проверка доступных обновлений...","Информация"]
["2016-04-26T16:24:59","Версия шаблона 6.1.2 актуальна, обновление не требуется","Информация"]
["2016-04-26T16:28:29","Проверка доступных обновлений...","Информация"]
["2016-04-26T16:28:29","Версия шаблона 6.1.2 актуальна, обновление не требуется","Информация"]
["2016-04-26T17:52:32","Проверка доступных обновлений...","Информация"]
["2016-04-26T17:52:32","Версия шаблона 6.1.2 актуальна, обновление не требуется","Информация"]
["2016-04-28T17:00:32","Проверка доступных обновлений...","Информация"]
["2016-04-28T17:00:33","Версия шаблона 6.1.2 актуальна, обновление не требуется","Информация"]

{"sheet":"Титульный","index":4,"n_rows":49,"n_cols":6,"rows_kept":49,"cut":false,"hidden":false,"merged":[[4,4,4,5]]}
[null,null,null,null,null,26324398]
[]
[]
[null,null,null,null,null,{"$f":"version","v":"Версия 6.1.2"}]
[null,null,null,null,{"$f":"\"Информация о наличии (отсутствии) технической возможности подключения к централизованной системе \"&TSphere_full&\", а также о регистрации и ходе реализации заявок о подключении к централизованной системе \"&TSphere_full","v":"Информация о наличии (отсутствии) технической возможности подключения к централизованной системе горячего водоснабжения, а также о регистрации и ходе реализации заявок о подключении к централизованной системе горячего водоснабжения"}]
[]
[null,null,null,null,"Субъект РФ","Оренбургская область"]
[]
[null,null,null,null,"Публикация","На сайте регулирующего органа"]
[]
[null,null,null,null,"По желанию организации информация раскрыта в дополнительных источниках публикации?","да"]
[]
[null,null,null,null,{"$f":"\"Тариф установлен дифференцированно по системам \"&TSphere_full&\"?\"","v":"Тариф установлен дифференцированно по системам горячего водоснабжения?"},"нет"]
[]
[null,null,null,null,"Идентификатор тарифа"]
[null,null,null,null,"Описание тарифа"]
[]
[null,null,null,null,"Единица измерения объема оказываемых услуг","куб.м/час"]
[]
[null,null,null,null,null,"Отчётный период"]
[null,null,null,null,"Квартал","I квартал"]
[null,null,null,null,"Год",2016]
[]
[null,null,null,null,"Является ли данное юридическое лицо подразделением (филиалом) другой организации","да"]
[]
[null,null,null,null,"Наименование организации","филиал \"Ириклинская ГРЭС \" АО \"Интер РАО - Электрогенерация\""]
[null,null,null,null,"Наименование филиала","филиал \"Ириклинская ГРЭС \" АО \"Интер РАО - Электрогенерация\""]
[null,null,null,null,"ИНН","7704784450"]
[null,null,null,null,"КПП","563543001"]
[]
[null,null,null,null,"Вид деятельности","Оказание услуг в сфере горячего водоснабжения"]
[]
[null,null,null,null,null,"Адрес регулируемой организации"]
[null,null,null,null,"Юридический адрес","Российская Федерация, 119435, Москва, ул. Большая Пироговская, д. 27, стр. 1"]
[null,null,null,null,"Почтовый адрес","462803, Оренбургская область, Новоорский район, п. Энергетик "]
[]
[null,null,null,null,null,"Руководитель"]
[null,null,null,null,"Фамилия, имя, отчество","Рахматулин Рифат Эмирханович"]
[null,null,null,null,"(код) номер телефона","(35363) 51-350"]
[]
[null,null,null,null,null,"Главный бухгалтер"]
[null,null,null,null,"Фамилия, имя, отчество","Канзапарова Назым Мырзабековна"]
[null,null,null,null,"(код) номер телефона","(35363) 51-358"]
[]
[null,null,null,null,null,"Должностное лицо, ответственное за составление формы"]
[null,null,null,null,"Фамилия, имя, отчество","Шунина Альфия Рашитовна"]
[null,null,null,null,"Должность","Экономист   ОСРиРТЭ"]
[null,null,null,null,"(код) номер телефона","(35363) 51-517"]
[null,null,null,null,"e-mail","shunina_ar@interrao.ru"]

{"sheet":"Список ЦСГВС (не дифф)","index":5,"n_rows":15,"n_cols":13,"rows_kept":15,"cut":false,"hidden":false,"merged":[[3,3,3,8],[4,3,4,8],[14,4,14,12],[9,3,11,3],[9,4,11,4],[9,6,10,6],[9,7,10,7],[9,8,10,8],[9,9,10,9],[10,11,10,12]]}
[]
[]
[null,null,null,null,null,null,null,null,"Приложение 1 к приказу ФСТ России от 15 мая 2013 г. N 129, Форма 1.8"]
[null,null,null,{"$f":"\"Информация о наличии (отсутствии)технической возможности подключения к централизованной системе \"&TSphere_full&\" (одной или несколько), в отношении которой(-ых) установлен единый тариф*\"","v":"Информация о наличии (отсутствии)технической возможности подключения к централизованной системе горячего водоснабжения (одной или несколько), в отношении которой(-ых) установлен единый тариф*"}]
[null,null,null,{"$f":"IF(org=0,\"Не определено\",org)","v":"филиал \"Ириклинская ГРЭС \" АО \"Интер РАО - Электрогенерация\""}]
[]
[null,null,null,"№ п/п","Муниципальный район",null,"№ п/п","Муниципальное образование","ОКТМО","Количество котельных и ЦТП по данному МО","№ п/п",{"$f":"\"Наименование централизованной системы \"&TSphere_full&\" *\"","v":"Наименование централизованной системы горячего водоснабжения *"},{"$f":"\"Резерв мощности централизованной системы \"&TSphere_full&\" в течение квартала, \" & unit","v":"Резерв мощности централизованной системы горячего водоснабжения в течение квартала, куб.м/час"}]
[null,null,null,"1","2",null,"3","4","5","6","6","7","8"]
[]
[null,null,"О",1,"Новоорский муниципальный район",null,1,"Энергетикское","53630440",null,"1","открытая система горячего водоснабжения",216.75]
[null,null,null,null,null,null,null,null,null,null,null,"Добавить централизованную систему"]
[null,null,null,null,null,null,null,"Добавить МО"]
[null,null,null,null,"Добавить МР"]
[]
[null,null,null,"*","Наименование может совпадать с описанием тарифа, указанным на листе 'Титульный'"]

{"sheet":"ЦСГВС доступ (не дифф)","index":6,"n_rows":18,"n_cols":6,"rows_kept":18,"cut":false,"hidden":false,"merged":[[13,4,13,5],[6,4,6,5],[17,4,17,5],[4,3,4,5],[5,3,5,5]]}
[]
[]
[]
[null,null,null,null,null,"Приложение 1 к приказу ФСТ России от 15 мая 2013 г. N 129, Форма 1.8"]
[null,null,null,{"$f":"\"Информация о регистрации и ходе реализации заявок о подключении к централизованной системе \"&TSphere_full&\"*\"","v":"Информация о регистрации и ходе реализации заявок о подключении к централизованной системе горячего водоснабжения*"}]
[null,null,null,{"$f":"IF(org=0,\"Не определено\",org)","v":"филиал \"Ириклинская ГРЭС \" АО \"Интер РАО - Электрогенерация\""}]
[]
[null,null,null,"№ п/п","Наименование показателя","Значение"]
[null,null,null,"А","1","2"]
[null,null,null,"1",{"$f":"\"Количество поданных заявок о подключении к централизованной системе \"&TSphere_full&\" в течение квартала, шт.\"","v":"Количество поданных заявок о подключении к централизованной системе горячего водоснабжения в течение квартала, шт."},0]
[null,null,null,"2",{"$f":"\"Количество исполненных заявок о подключении к централизованной системе \"&TSphere_full&\" в течение квартала, шт.\"","v":"Количество исполненных заявок о подключении к централизованной системе горячего водоснабжения в течение квартала, шт."},0]
[null,null,null,"3",{"$f":"\"Количество заявок о подключении к централизованной системе \"&TSphere_full&\", по которым принято решение об отказе в подключении (с указанием причин) в течение квартала, шт.\"","v":"Количество заявок о подключении к централизованной системе горячего водоснабжения, по которым принято решение об отказе в подключении (с указанием причин) в течение квартала, шт."},0]
[null,null,null,"4","Причины отказа в подключении"]
[null,null,null,"4.0"]
[null,null,null,null,"Добавить причину"]
[null,null,null,"5","Справочно: количество выданных техусловий на подключение, шт."]
[]
[null,null,null,"*","Информация раскрывается ежеквартально, в течение 30 календарных дней по истечении квартала, за который раскрывается информация."]

{"sheet":"Список ЦСГВС (дифф)","index":7,"n_rows":13,"n_cols":20,"rows_kept":13,"cut":false,"hidden":true,"merged":[[11,4,11,19],[3,3,3,12],[4,3,4,12],[12,4,12,12]]}
[]
[]
[null,null,null,null,null,null,null,null,null,null,null,null,"Приложение 1 к приказу ФСТ России от 15 мая 2013 г. N 129, Форма 1.8"]
[null,null,null,{"$f":"\"Информация о наличии (отсутствии) технической возможности подключения к централизованной системе \"&TSphere_full&\", а также о регистрации и ходе реализации заявок о подключении к централизованной системе \"&TSphere_full&\" (одной или несколько), в отношении которой(-ых) установлен единый тариф*\"","v":"Информация о наличии (отсутствии) технической возможности подключения к централизованной системе горячего водоснабжения, а также о регистрации и ходе реализации заявок о подключении к централизованной системе горячего водоснабжения (одной или несколько), в отношении которой(-ых) установлен единый тариф*"}]
[null,null,null,{"$f":"IF(org=0,\"Не определено\",org)","v":"филиал \"Ириклинская ГРЭС \" АО \"Интер РАО - Электрогенерация\""}]
[]
[null,null,null,"№ п/п","Муниципальный район",null,"№ п/п","Муниципальное образование","ОКТМО","Количество котельных и ЦТП по данному МО",null,"№ п/п",{"$f":"\"Наименование централизованной системы \"&TSphere_full & \" **\"","v":"Наименование централизованной системы горячего водоснабжения **"},"Количество поданных заявок, шт.","Количество исполненных заявок, шт.","Количество заявок с решением об отказе  в подключении, шт.",null,"№ п/п","Причины отказа в подключении",{"$f":"\"Резерв мощности централизованной системы \"&TSphere_full&\" в течение квартала, \" & unit","v":"Резерв мощности централизованной системы горячего водоснабжения в течение квартала, куб.м/час"}]
[null,null,null,"1","2",null,"3","4","5","6",null,"6","7","8","9","10",null,"11","12","13"]
[]
[null,null,null,null,"Добавить МР"]
[]
[null,null,null,"*",{"$f":"\"В случае если регулируемыми организациями оказываются услуги по нескольким технологически не связанным между собой централизованным системам \"&TSphere_full&\", и если в отношении указанных систем устанавливаются различные тарифы в сфере \"&TSphere_full&\", то информация раскрывается отдельно по каждой централизованной системе \"&TSphere_full&\" (для каждого такого тарифа нужно заполнять новый шаблон).\"","v":"В случае если регулируемыми организациями оказываются услуги по нескольким технологически не связанным между собой централизованным системам горячего водоснабжения, и если в отношении указанных систем устанавливаются различные тарифы в сфере горячего водоснабжения, то информация раскрывается отдельно по каждой централизованной системе горячего водоснабжения (для каждого такого тарифа нужно заполнять новый шаблон)."}]
[null,null,null,"**","Наименование может совпадать с описанием тарифа, указанным на листе 'Титульный'"]

{"sheet":"Ссылки на публикации","index":8,"n_rows":13,"n_cols":8,"rows_kept":13,"cut":false,"hidden":false,"merged":[[5,3,5,6],[10,0,11,0],[4,3,4,6],[10,4,10,7]]}
[]
[]
[]
[]
[null,null,null,"Ссылки на публикации\n(указание на официальное печатное издание и (или) адрес сайта в сети Интернет, которые используются для размещения раскрываемой информации)"]
[null,null,null,{"$f":"IF(org=0,\"Не определено\",org)","v":"филиал \"Ириклинская ГРЭС \" АО \"Интер РАО - Электрогенерация\""}]
[]
[]
[null,null,null,"№ п/п","Содержание","Наименование источника\n(сайта или печатного издания)","Дата размещения информации","Адрес сайта в сети Интернет"]
[null,null,null,"1","2","3","4","5"]
["1",null,null,{"$f":"A11","v":"1"},{"$f":"\"Информация о наличии (отсутствии) технической возможности доступа к регулируемым товарам и услугам регулируемых организаций, а также о регистрации и ходе реализации заявок на подключение к централизованой системе \"&TSphere_full","v":"Информация о наличии (отсутствии) технической возможности доступа к регулируемым товарам и услугам регулируемых организаций, а также о регистрации и ходе реализации заявок на подключение к централизованой системе горячего водоснабжения"}]
[null,null,null,{"$f":"A11&\".1\"","v":"1.1"},"Сайт организации в сети Интернет","ИнтерРАО-Электрогенерация","28.04.2016","http://www.irao-generation.ru/information/rasinf_gen/raskinf_te2012/"]
[null,null,null,null,"Добавить"]

{"sheet":"Комментарии","index":9,"n_rows":13,"n_cols":5,"rows_kept":13,"cut":false,"hidden":false,"merged":[[6,3,6,4],[7,3,7,4]]}
[]
[]
[]
[]
[]
[]
[null,null,null,"Комментарии"]
[null,null,null,{"$f":"IF(org=0,\"Не определено\",org)","v":"филиал \"Ириклинская ГРЭС \" АО \"Интер РАО - Электрогенерация\""}]
[]
[null,null,null,"№ п/п","Комментарий"]
[null,null,null,"1","2"]
[null,null,null,0]
[null,null,null,null,"Добавить"]

{"sheet":"Проверка","index":10,"n_rows":4,"n_cols":4,"rows_kept":4,"cut":false,"hidden":false,"merged":[[1,1,1,3]]}
[]
[null,"Результат проверки"]
[]
[null,"Ссылка","Причина","Статус"]

{"sheet":"AllSheetsInThisWorkbook","index":11,"n_rows":25,"n_cols":2,"rows_kept":25,"cut":false,"hidden":true,"merged":[]}
["Расчетные листы","Скрытые листы"]
["Инструкция","AllSheetsInThisWorkbook"]
["Справочная информация","TEHSHEET"]
["Лог обновления","et_union_hor"]
["Титульный","et_union_vert"]
["Список ЦСГВС (не дифф)","modInfo"]
["ЦСГВС доступ (не дифф)","modReestr"]
["Список ЦСГВС (дифф)","modfrmReestr"]
["Ссылки на публикации","modUpdTemplMain"]
["Комментарии","REESTR_ORG"]
["Проверка","modClassifierValidate"]
[null,"modProv"]
[null,"modHyp"]
[null,"modList00"]
[null,"modList01"]
[null,"modList02"]
[null,"modList03"]
[null,"modList04"]
[null,"modfrmDateChoose"]
[null,"modComm"]
[null,"modThisWorkbook"]
[null,"REESTR_MO"]
[null,"modfrmReestrMR"]
[null,"modfrmRegion"]
[null,"modfrmCheckUpdates"]

{"sheet":"TEHSHEET","index":12,"n_rows":85,"n_cols":13,"rows_kept":85,"cut":false,"hidden":true,"merged":[]}
["REGION",null,"year_list","logical","Месяц\n(MONTH)","Квартал\n(QUARTER)","Месяц\n(kind_of_publication)","НДС\n/kind_of_NDS/","Номер СЦХВ(СЦВО)\n/SKI_number/","Единица измерения объема оказываемых услуг ГВС\n/kind_of_unit_GVS/",null,"версия шаблона\n (DocProp_Version)","6.1"]
["Алтайский край",null,2013,"да","январь","I квартал","На официальном сайте организации","общий","1","тыс.куб.м/сутки",null,"код шаблона\n(DocProp_TemplateCode)","JKH.OPEN.INFO.QUARTER.GVS"]
["Амурская область",null,2014,"нет","февраль","II квартал","На сайте регулирующего органа","общий с учетом освобождения от уплаты НДС","2","Гкал/час",null,"сфера\n(TSphere)","ГВС"]
["Архангельская область",null,2015,null,"март","III квартал",null,"специальный (упрощенная система налогообложения, система налогообложения для сельскохозяйственных товаропроизводителей)","3","куб.м/час",null,"сфера(латиница)\n(TSphere_trans)","GVS"]
["Астраханская область",null,2016,null,"апрель","IV квартал",null,null,"4",null,null,"сфера расширено\n(TSphere_full)","горячего водоснабжения"]
["Белгородская область",null,2017,null,"май",null,null,null,"5"]
["Брянская область",null,null,null,"июнь",null,null,null,"6"]
["Владимирская область",null,null,null,"июль",null,null,null,"7"]
["Волгоградская область",null,null,null,"август",null,null,null,"8"]
["Вологодская область",null,null,null,"сентябрь",null,null,null,"9"]
["Воронежская область",null,null,null,"октябрь",null,null,null,"10"]
["г.Байконур",null,null,null,"ноябрь",null,null,null,"11"]
["г. Москва",null,null,null,"декабрь",null,null,null,"12"]
["г.Санкт-Петербург",null,null,null,null,null,null,null,"13"]
["Еврейская автономная область",null,null,null,null,null,null,null,"14"]
["Забайкальский край",null,null,null,null,null,null,null,"15"]
["Ивановская область",null,null,null,null,null,null,null,"16"]
["Иркутская область",null,null,null,null,null,null,null,"17"]
["Кабардино-Балкарская республика",null,null,null,null,null,null,null,"18"]
["Калининградская область",null,null,null,null,null,null,null,"19"]
["Калужская область",null,null,null,null,null,null,null,"20"]
["Камчатский край"]
["Карачаево-Черкесская республика"]
["Кемеровская область"]
["Кировская область"]
["Костромская область"]
["Краснодарский край"]
["Красноярский край"]
["Курганская область"]
["Курская область"]
["Ленинградская область"]
["Липецкая область"]
["Магаданская область"]
["Московская область"]
["Мурманская область"]
["Ненецкий автономный округ"]
["Нижегородская область"]
["Новгородская область"]
["Новосибирская область"]
["Омская область"]
["Оренбургская область"]
["Орловская область"]
["Пензенская область"]
["Пермский край"]
["Приморский край"]
["Псковская область"]
["Республика Адыгея"]
["Республика Алтай"]
["Республика Башкортостан"]
["Республика Бурятия"]
["Республика Дагестан"]
["Республика Ингушетия"]
["Республика Калмыкия"]
["Республика Карелия"]
["Республика Коми"]
["Республика Марий Эл"]
["Республика Мордовия"]
["Республика Саха (Якутия)"]
["Республика Северная Осетия-Алания"]
["Республика Татарстан"]
["Республика Тыва"]
["Республика Хакасия"]
["Ростовская область"]
["Рязанская область"]
["Самарская область"]
["Саратовская область"]
["Сахалинская область"]
["Свердловская область"]
["Смоленская область"]
["Ставропольский край"]
["Тамбовская область"]
["Тверская область"]
["Томская область"]
["Тульская область"]
["Тюменская область"]
["Удмуртская республика"]
["Ульяновская область"]
["Хабаровский край"]
["Ханты-Мансийский автономный округ"]
["Челябинская область"]
["Чеченская республика"]
["Чувашская республика"]
["Чукотский автономный округ"]
["Ямало-Ненецкий автономный округ"]
["Ярославская область"]

{"sheet":"et_union_hor","index":13,"n_rows":35,"n_cols":19,"rows_kept":35,"cut":false,"hidden":true,"merged":[[31,19,32,19],[31,13,32,13],[31,14,32,14],[31,15,32,15],[16,4,16,7],[3,7,4,7],[4,11,4,12],[31,3,34,3],[31,4,34,4],[31,6,33,6],[31,7,33,7],[31,8,33,8],[31,9,33,9],[31,11,32,11],[3,8,4,8],[3,9,4,9],[31,12,32,12],[16,0,17,0],[3,4,5,4],[3,3,5,3],[23,4,23,5],[3,6,4,6]]}
[]
["et_List01_1","et_List01_2","et_List01_3"]
[]
[null,null,null,1,null,null,1,null,null,null,"1"]
[null,null,null,null,null,null,null,null,null,null,null,"Добавить централизованную систему"]
[null,null,null,null,null,null,null,"Добавить МО"]
[]
[]
["et_Comm"]
[]
[]
[]
[]
["et_List03"]
[]
[]
[null,null,null,{"$f":"A17","v":0}]
[null,null,null,{"$f":"A17&\".1\"","v":".1"},"Сайт организации в сети Интернет"]
[]
[]
[]
["et_List02_1"]
[]
[]
[]
["et_List02_2"]
[]
[]
[]
["et_List04_1","et_List04_2","et_List04_3"]
[]
[null,null,null,1,null,null,1,null,null,null,null,"1",null,null,null,null,null,"1"]
[null,null,null,null,null,null,null,null,null,null,null,null,null,null,null,null,null,null,"Добавить причину"]
[null,null,null,null,null,null,null,null,null,null,null,null,"Добавить централизованную систему"]
[null,null,null,null,null,null,null,"Добавить МО"]

{"sheet":"et_union_vert","index":14,"n_rows":0,"n_cols":0,"rows_kept":0,"cut":false,"hidden":true,"merged":[]}

{"sheet":"modInfo","index":15,"n_rows":11,"n_cols":4,"rows_kept":11,"cut":false,"hidden":true,"merged":[]}
[null,"Титульный"]
[null,"Для выбора того или иного источника публикации выполните двойной щелчок по синей ячейке напротив соответствующего источника.\nВНИМАНИЕ! Если Вы снимаете галочку с пункта, то будут скрыты и очищены соответствующие строки на листе \"Ссылки на публикации\"!\n\nОпубликование перечисленных в шаблоне показателей на сайте организации в сети Интернет и в печатных изданиях не обязательно, если  данный шаблон предоставлен по системе ЕИАС (региональный сегмент)."]
[null,"Обязательное опубликование на официальном сайте органа исполнительной власти субъекта Российской Федерации в области государственного регулирования тарифов (на официальном сайте органа местного самоуправления поселения или городского округа в случае передачи законом субъекта Российской Федерации полномочий по утверждению тарифов в сфере водоснабжения и водоотведения органам местного самоуправления) предусмотрено пунктом 3 (а) постановления Правительства №6 от 17.01.2013"]
[null,"Задайте период регулирования, выбрав квартал и год из соответствующих списков"]
[null,"Шаблон заполняется раздельно по каждому виду тарифа"]
[null,{"$f":"\"Укажите произвольный номер идентификатора тарифа для централизованных систем \"&TSphere_full&\", которые включены в шаблон. В каждом последующем шаблоне за один отчетный период следует указывать различные идентификаторы тарифа\"","v":"Укажите произвольный номер идентификатора тарифа для централизованных систем горячего водоснабжения, которые включены в шаблон. В каждом последующем шаблоне за один отчетный период следует указывать различные идентификаторы тарифа"}]
[null,"Кратко охарактеризуйте тариф, в отношении которого заполняете шаблон",null,"=ЕСЛИ(region_name=\"Ханты-Мансийский автономный округ\";\"Принадлежность к соответствующей централизованной системе \"&TSphere_full;\"Кратко охарактеризуйте тариф, в отношении которого заполняете шаблон\")"]
[null,"Ссылки на публикации"]
[null,"Вводите адрес сайта, не нарушая цвет ячейки /если копируете гиперссылку из браузера, то выполните двойной щелчок по ячейке и только после этого можете вставить скопированный элемент/"]
[null,"Список ЦСХВС"]
[null,"Централизованная система холодного водоснабжения - комплекс технологически связанных между собой инженерных сооружений, предназначенных для водоподготовки, транспортировки и подачи питьевой и (или) технической воды абонентам (Федеральный закон от 07.12.2011 N 416-ФЗ \"О водоснабжении и водоотведении\", ст.2, п. 29)"]

{"sheet":"modReestr","index":16,"n_rows":0,"n_cols":0,"rows_kept":0,"cut":false,"hidden":true,"merged":[]}

{"sheet":"modfrmReestr","index":17,"n_rows":0,"n_cols":0,"rows_kept":0,"cut":false,"hidden":true,"merged":[]}

{"sheet":"modUpdTemplMain","index":18,"n_rows":0,"n_cols":0,"rows_kept":0,"cut":false,"hidden":true,"merged":[]}

{"sheet":"REESTR_ORG","index":19,"n_rows":827,"n_cols":12,"rows_kept":827,"cut":false,"hidden":true,"merged":[]}
["№","NSRF","MR_NAME","OKTMO_MR_NAME","MO_NAME","OKTMO_NAME","RST_ORG_ID","ORG_NAME","INN_NAME","KPP_NAME","VDET_NAME"]
[1,"Оренбургская область","Адамовский муниципальный район","53604000","Адамовское","53604401","28070009","Администрация Адамовского района","5619004338","561301001","Оказание услуг в сфере горячего водоснабжения","HOT_VS"]
[2,"Оренбургская область","Адамовский муниципальный район","53604000","Аниховское","53604402","28070009","Администрация Адамовского района","5619004338","561301001","Оказание услуг в сфере горячего водоснабжения","HOT_VS"]
[3,"Оренбургская область","Адамовский муниципальный район","53604000","Брацлавское","53604404","28070009","Администрация Адамовского района","5619004338","561301001","Оказание услуг в сфере горячего водоснабжения","HOT_VS"]
[4,"Оренбургская область","Адамовский муниципальный район","53604000","Елизаветинское","53604410","28070009","Администрация Адамовского района","5619004338","561301001","Оказание услуг в сфере горячего водоснабжения","HOT_VS"]
[5,"Оренбургская область","Адамовский муниципальный район","53604000","Комсомольское","53604416","28070009","Администрация Адамовского района","5619004338","561301001","Оказание услуг в сфере горячего водоснабжения","HOT_VS"]
[6,"Оренбургская область","Адамовский муниципальный район","53604000","Майское","53604419","28070009","Администрация Адамовского района","5619004338","561301001","Оказание услуг в сфере горячего водоснабжения","HOT_VS"]
[7,"Оренбургская область","Адамовский муниципальный район","53604000","Обильновское","53604422","28070009","Администрация Адамовского района","5619004338","561301001","Оказание услуг в сфере горячего водоснабжения","HOT_VS"]
[8,"Оренбургская область","Адамовский муниципальный район","53604000","Совхозное","53604425","28070009","Администрация Адамовского района","5619004338","561301001","Оказание услуг в сфере горячего водоснабжения","HOT_VS"]
[9,"Оренбургская область","Адамовский муниципальный район","53604000","Теренсайское","53604428","28070009","Администрация Адамовского района","5619004338","561301001","Оказание услуг в сфере горячего водоснабжения","HOT_VS"]
[10,"Оренбургская область","Адамовский муниципальный район","53604000","Шильдинское","53604440","28070009","Администрация Адамовского района","5619004338","561301001","Оказание услуг в сфере горячего водоснабжения","HOT_VS"]
[11,"Оренбургская область","Адамовский муниципальный район","53604000","Юбилейное","53604450","28070009","Администрация Адамовского района","5619004338","561301001","Оказание услуг в сфере горячего водоснабжения","HOT_VS"]
[12,"Оренбургская область","Акбулакский муниципальный район","53605000","Акбулакское","53605401","26955104","ММООО \"Акбулакская районная служба ЖКХ\"","5620020655","562001001","Оказание услуг в сфере горячего водоснабжения","HOT_VS"]
[13,"Оренбургская область","Акбулакский муниципальный район","53605000","Акбулакское","53605401","28535944","ОАО \"Акбулакская МТС\"","5620000070","562001001","Оказание услуг в сфере горячего водоснабжения","HOT_VS"]
[14,"Оренбургская область","Акбулакский муниципальный район","53605000","Акбулакское","53605401","30360904","Обособленное подразделение \"Оренбургское\" АО \"Главное управление жилищно - коммунального хозяйства\"","5116000922","561045001","Оказание услуг в сфере горячего водоснабжения","HOT_VS"]
[15,"Оренбургская область","Акбулакский муниципальный район","53605000","Акбулакское","53605401","30360904","Обособленное подразделение \"Оренбургское\" АО \"Главное управление жилищно - коммунального хозяйства\"","5116000922","561045001","Поставка горячей воды","HOT_VS"]
[16,"Оренбургская область","Акбулакский муниципальный район","53605000","Базартюбинское","53605402","26955104","ММООО \"Акбулакская районная служба ЖКХ\"","5620020655","562001001","Оказание услуг в сфере горячего водоснабжения","HOT_VS"]
[17,"Оренбургская область","Акбулакский муниципальный район","53605000","Базартюбинское","53605402","28535944","ОАО \"Акбулакская МТС\"","5620000070","562001001","Оказание услуг в сфере горячего водоснабжения","HOT_VS"]
[18,"Оренбургская область","Акбулакский муниципальный район","53605000","Базартюбинское","53605402","30360904","Обособленное подразделение \"Оренбургское\" АО \"Главное управление жилищно - коммунального хозяйства\"","5116000922","561045001","Оказание услуг в сфере горячего водоснабжения","HOT_VS"]
[19,"Оренбургская область","Акбулакский муниципальный район","53605000","Базартюбинское","53605402","30360904","Обособленное подразделение \"Оренбургское\" АО \"Главное управление жилищно - коммунального хозяйства\"","5116000922","561045001","Поставка горячей воды","HOT_VS"]
[20,"Оренбургская область","Акбулакский муниципальный район","53605000","Васильевское","53605404","26955104","ММООО \"Акбулакская районная служба ЖКХ\"","5620020655","562001001","Оказание услуг в сфере горячего водоснабжения","HOT_VS"]
[21,"Оренбургская область","Акбулакский муниципальный район","53605000","Васильевское","53605404","28535944","ОАО \"Акбулакская МТС\"","5620000070","562001001","Оказание услуг в сфере горячего водоснабжения","HOT_VS"]
[22,"Оренбургская область","Акбулакский муниципальный район","53605000","Васильевское","53605404","30360904","Обособленное подразделение \"Оренбургское\" АО \"Главное управление жилищно - коммунального хозяйства\"","5116000922","561045001","Оказание услуг в сфере горячего водоснабжения","HOT_VS"]
[23,"Оренбургская область","Акбулакский муниципальный район","53605000","Васильевское","53605404","30360904","Обособленное подразделение \"Оренбургское\" АО \"Главное управление жилищно - коммунального хозяйства\"","5116000922","561045001","Поставка горячей воды","HOT_VS"]
[24,"Оренбургская область","Акбулакский муниципальный район","53605000","Заилечное","53605407","28535944","ОАО \"Акбулакская МТС\"","5620000070","562001001","Оказание услуг в сфере горячего водоснабжения","HOT_VS"]
[25,"Оренбургская область","Акбулакский муниципальный район","53605000","Заилечное","53605407","30360904","Обособленное подразделение \"Оренбургское\" АО \"Главное управление жилищно - коммунального хозяйства\"","5116000922","561045001","Оказание услуг в сфере горячего водоснабжения","HOT_VS"]
[26,"Оренбургская область","Акбулакский муниципальный район","53605000","Заилечное","53605407","30360904","Обособленное подразделение \"Оренбургское\" АО \"Главное управление жилищно - коммунального хозяйства\"","5116000922","561045001","Поставка горячей воды","HOT_VS"]
[27,"Оренбургская область","Акбулакский муниципальный район","53605000","Каракудукское","53605410","26955104","ММООО \"Акбулакская районная служба ЖКХ\"","5620020655","562001001","Оказание услуг в сфере горячего водоснабжения","HOT_VS"]
[28,"Оренбургская область","Акбулакский муниципальный район","53605000","Каракудукское","53605410","28535944","ОАО \"Акбулакская МТС\"","5620000070","562001001","Оказание услуг в сфере горячего водоснабжения","HOT_VS"]
[29,"Оренбургская область","Акбулакский муниципальный район","53605000","Каракудукское","53605410","30360904","Обособленное подразделение \"Оренбургское\" АО \"Главное управление жилищно - коммунального хозяйства\"","5116000922","561045001","Оказание услуг в сфере горячего водоснабжения","HOT_VS"]
[30,"Оренбургская область","Акбулакский муниципальный район","53605000","Каракудукское","53605410","30360904","Обособленное подразделение \"Оренбургское\" АО \"Главное управление жилищно - коммунального хозяйства\"","5116000922","561045001","Поставка горячей воды","HOT_VS"]
[31,"Оренбургская область","Акбулакский муниципальный район","53605000","Карасаевское","53605413","28535944","ОАО \"Акбулакская МТС\"","5620000070","562001001","Оказание услуг в сфере горячего водоснабжения","HOT_VS"]
[32,"Оренбургская область","Акбулакский муниципальный район","53605000","Карасаевское","53605413","30360904","Обособленное подразделение \"Оренбургское\" АО \"Главное управление жилищно - коммунального хозяйства\"","5116000922","561045001","Оказание услуг в сфере горячего водоснабжения","HOT_VS"]
[33,"Оренбургская область","Акбулакский муниципальный район","53605000","Карасаевское","53605413","30360904","Обособленное подразделение \"Оренбургское\" АО \"Главное управление жилищно - коммунального хозяйства\"","5116000922","561045001","Поставка горячей воды","HOT_VS"]
[34,"Оренбургская область","Акбулакский муниципальный район","53605000","Мичуринское","53605419","26955104","ММООО \"Акбулакская районная служба ЖКХ\"","5620020655","562001001","Оказание услуг в сфере горячего водоснабжения","HOT_VS"]
[35,"Оренбургская область","Акбулакский муниципальный район","53605000","Мичуринское","53605419","28535944","ОАО \"Акбулакская МТС\"","5620000070","562001001","Оказание услуг в сфере горячего водоснабжения","HOT_VS"]
[36,"Оренбургская область","Акбулакский муниципальный район","53605000","Мичуринское","53605419","30360904","Обособленное подразделение \"Оренбургское\" АО \"Главное управление жилищно - коммунального хозяйства\"","5116000922","561045001","Оказание услуг в сфере горячего водоснабжения","HOT_VS"]
[37,"Оренбургская область","Акбулакский муниципальный район","53605000","Мичуринское","53605419","30360904","Обособленное подразделение \"Оренбургское\" АО \"Главное управление жилищно - коммунального хозяйства\"","5116000922","561045001","Поставка горячей воды","HOT_VS"]
[38,"Оренбургская область","Акбулакский муниципальный район","53605000","Новогригорьевское","53605421","26955104","ММООО \"Акбулакская районная служба ЖКХ\"","5620020655","562001001","Оказание услуг в сфере горячего водоснабжения","HOT_VS"]
[39,"Оренбургская область","Акбулакский муниципальный район","53605000","Новогригорьевское","53605421","28535944","ОАО \"Акбулакская МТС\"","5620000070","562001001","Оказание услуг в сфере горячего водоснабжения","HOT_VS"]
[40,"Оренбургская область","Акбулакский муниципальный район","53605000","Новогригорьевское","53605421","30360904","Обособленное подразделение \"Оренбургское\" АО \"Главное управление жилищно - коммунального хозяйства\"","5116000922","561045001","Оказание услуг в сфере горячего водоснабжения","HOT_VS"]
[41,"Оренбургская область","Акбулакский муниципальный район","53605000","Новогригорьевское","53605421","30360904","Обособленное подразделение \"Оренбургское\" АО \"Главное управление жилищно - коммунального хозяйства\"","5116000922","561045001","Поставка горячей воды","HOT_VS"]
[42,"Оренбургская область","Акбулакский муниципальный район","53605000","Новопавловское","53605422","26955104","ММООО \"Акбулакская районная служба ЖКХ\"","5620020655","562001001","Оказание услуг в сфере горячего водоснабжения","HOT_VS"]
[43,"Оренбургская область","Акбулакский муниципальный район","53605000","Новопавловское","53605422","28535944","ОАО \"Акбулакская МТС\"","5620000070","562001001","Оказание услуг в сфере горячего водоснабжения","HOT_VS"]
[44,"Оренбургская область","Акбулакский муниципальный район","53605000","Новопавловское","53605422","30360904","Обособленное подразделение \"Оренбургское\" АО \"Главное управление жилищно - коммунального хозяйства\"","5116000922","561045001","Оказание услуг в сфере горячего водоснабжения","HOT_VS"]
[45,"Оренбургская область","Акбулакский муниципальный район","53605000","Новопавловское","53605422","30360904","Обособленное подразделение \"Оренбургское\" АО \"Главное управление жилищно - коммунального хозяйства\"","5116000922","561045001","Поставка горячей воды","HOT_VS"]
[46,"Оренбургская область","Акбулакский муниципальный район","53605000","Новоуспеновское","53605425","26955104","ММООО \"Акбулакская районная служба ЖКХ\"","5620020655","562001001","Оказание услуг в сфере горячего водоснабжения","HOT_VS"]
[47,"Оренбургская область","Акбулакский муниципальный район","53605000","Новоуспеновское","53605425","28535944","ОАО \"Акбулакская МТС\"","5620000070","562001001","Оказание услуг в сфере горячего водоснабжения","HOT_VS"]
[48,"Оренбургская область","Акбулакский муниципальный район","53605000","Новоуспеновское","53605425","30360904","Обособленное подразделение \"Оренбургское\" АО \"Главное управление жилищно - коммунального хозяйства\"","5116000922","561045001","Оказание услуг в сфере горячего водоснабжения","HOT_VS"]
[49,"Оренбургская область","Акбулакский муниципальный район","53605000","Новоуспеновское","53605425","30360904","Обособленное подразделение \"Оренбургское\" АО \"Главное управление жилищно - коммунального хозяйства\"","5116000922","561045001","Поставка горячей воды","HOT_VS"]
[50,"Оренбургская область","Акбулакский муниципальный район","53605000","Сагарчинское","53605428","26955104","ММООО \"Акбулакская районная служба ЖКХ\"","5620020655","562001001","Оказание услуг в сфере горячего водоснабжения","HOT_VS"]
[51,"Оренбургская область","Акбулакский муниципальный район","53605000","Сагарчинское","53605428","28535944","ОАО \"Акбулакская МТС\"","5620000070","562001001","Оказание услуг в сфере горячего водоснабжения","HOT_VS"]
[52,"Оренбургская область","Акбулакский муниципальный район","53605000","Сагарчинское","53605428","30360904","Обособленное подразделение \"Оренбургское\" АО \"Главное управление жилищно - коммунального хозяйства\"","5116000922","561045001","Оказание услуг в сфере горячего водоснабжения","HOT_VS"]
[53,"Оренбургская область","Акбулакский муниципальный район","53605000","Сагарчинское","53605428","30360904","Обособленное подразделение \"Оренбургское\" АО \"Главное управление жилищно - коммунального хозяйства\"","5116000922","561045001","Поставка горячей воды","HOT_VS"]
[54,"Оренбургская область","Акбулакский муниципальный район","53605000","Советское","53605431","26955104","ММООО \"Акбулакская районная служба ЖКХ\"","5620020655","562001001","Оказание услуг в сфере горячего водоснабжения","HOT_VS"]
[55,"Оренбургская область","Акбулакский муниципальный район","53605000","Советское","53605431","28535944","ОАО \"Акбулакская МТС\"","5620000070","562001001","Оказание услуг в сфере горячего водоснабжения","HOT_VS"]
[56,"Оренбургская область","Акбулакский муниципальный район","53605000","Советское","53605431","30360904","Обособленное подразделение \"Оренбургское\" АО \"Главное управление жилищно - коммунального хозяйства\"","5116000922","561045001","Оказание услуг в сфере горячего водоснабжения","HOT_VS"]
[57,"Оренбургская область","Акбулакский муниципальный район","53605000","Советское","53605431","30360904","Обособленное подразделение \"Оренбургское\" АО \"Главное управление жилищно - коммунального хозяйства\"","5116000922","561045001","Поставка горячей воды","HOT_VS"]
[58,"Оренбургская область","Акбулакский муниципальный район","53605000","Тамдысайское","53605432","26955104","ММООО \"Акбулакская районная служба ЖКХ\"","5620020655","562001001","Оказание услуг в сфере горячего водоснабжения","HOT_VS"]
[59,"Оренбургская область","Акбулакский муниципальный район","53605000","Тамдысайское","53605432","28535944","ОАО \"Акбулакская МТС\"","5620000070","562001001","Оказание услуг в сфере горячего водоснабжения","HOT_VS"]
[60,"Оренбургская область","Акбулакский муниципальный район","53605000","Тамдысайское","53605432","30360904","Обособленное подразделение \"Оренбургское\" АО \"Главное управление жилищно - коммунального хозяйства\"","5116000922","561045001","Оказание услуг в сфере горячего водоснабжения","HOT_VS"]
[61,"Оренбургская область","Акбулакский муниципальный район","53605000","Тамдысайское","53605432","30360904","Обособленное подразделение \"Оренбургское\" АО \"Главное управление жилищно - коммунального хозяйства\"","5116000922","561045001","Поставка горячей воды","HOT_VS"]
[62,"Оренбургская область","Акбулакский муниципальный район","53605000","Федоровское","53605434","26955104","ММООО \"Акбулакская районная служба ЖКХ\"","5620020655","562001001","Оказание услуг в сфере горячего водоснабжения","HOT_VS"]
[63,"Оренбургская область","Акбулакский муниципальный район","53605000","Федоровское","53605434","28535944","ОАО \"Акбулакская МТС\"","5620000070","562001001","Оказание услуг в сфере горячего водоснабжения","HOT_VS"]
[64,"Оренбургская область","Акбулакский муниципальный район","53605000","Федоровское","53605434","30360904","Обособленное подразделение \"Оренбургское\" АО \"Главное управление жилищно - коммунального хозяйства\"","5116000922","561045001","Оказание услуг в сфере горячего водоснабжения","HOT_VS"]
[65,"Оренбургская область","Акбулакский муниципальный район","53605000","Федоровское","53605434","30360904","Обособленное подразделение \"Оренбургское\" АО \"Главное управление жилищно - коммунального хозяйства\"","5116000922","561045001","Поставка горячей воды","HOT_VS"]
[66,"Оренбургская область","Акбулакский муниципальный район","53605000","Шаповаловское","53605437","26955104","ММООО \"Акбулакская районная служба ЖКХ\"","5620020655","562001001","Оказание услуг в сфере горячего водоснабжения","HOT_VS"]
[67,"Оренбургская область","Акбулакский муниципальный район","53605000","Шаповаловское","53605437","28535944","ОАО \"Акбулакская МТС\"","5620000070","562001001","Оказание услуг в сфере горячего водоснабжения","HOT_VS"]
[68,"Оренбургская область","Акбулакский муниципальный район","53605000","Шаповаловское","53605437","30360904","Обособленное подразделение \"Оренбургское\" АО \"Главное управление жилищно - коммунального хозяйства\"","5116000922","561045001","Оказание услуг в сфере горячего водоснабжения","HOT_VS"]
[69,"Оренбургская область","Акбулакский муниципальный район","53605000","Шаповаловское","53605437","30360904","Обособленное подразделение \"Оренбургское\" АО \"Главное управление жилищно - коммунального хозяйства\"","5116000922","561045001","Поставка горячей воды","HOT_VS"]
[70,"Оренбургская область","Акбулакский муниципальный район","53605000","Шкуновское","53605440","26955104","ММООО \"Акбулакская районная служба ЖКХ\"","5620020655","562001001","Оказание услуг в сфере горячего водоснабжения","HOT_VS"]
[71,"Оренбургская область","Акбулакский муниципальный район","53605000","Шкуновское","53605440","28535944","ОАО \"Акбулакская МТС\"","5620000070","562001001","Оказание услуг в сфере горячего водоснабжения","HOT_VS"]
[72,"Оренбургская область","Акбулакский муниципальный район","53605000","Шкуновское","53605440","30360904","Обособленное подразделение \"Оренбургское\" АО \"Главное управление жилищно - коммунального хозяйства\"","5116000922","561045001","Оказание услуг в сфере горячего водоснабжения","HOT_VS"]
[73,"Оренбургская область","Акбулакский муниципальный район","53605000","Шкуновское","53605440","30360904","Обособленное подразделение \"Оренбургское\" АО \"Главное управление жилищно - коммунального хозяйства\"","5116000922","561045001","Поставка горячей воды","HOT_VS"]
[74,"Оренбургская область","Асекеевский муниципальный район","53607000","Аксютинское","53607402","30360904","Обособленное подразделение \"Оренбургское\" АО \"Главное управление жилищно - коммунального хозяйства\"","5116000922","561045001","Оказание услуг в сфере горячего водоснабжения","HOT_VS"]
[75,"Оренбургская область","Асекеевский муниципальный район","53607000","Аксютинское","53607402","30360904","Обособленное подразделение \"Оренбургское\" АО \"Главное управление жилищно - коммунального хозяйства\"","5116000922","561045001","Поставка горячей воды","HOT_VS"]
[76,"Оренбургская область","Асекеевский муниципальный район","53607000","Алексеевское","53607404","30360904","Обособленное подразделение \"Оренбургское\" АО \"Главное управление жилищно - коммунального хозяйства\"","5116000922","561045001","Оказание услуг в сфере горячего водоснабжения","HOT_VS"]
[77,"Оренбургская область","Асекеевский муниципальный район","53607000","Алексеевское","53607404","30360904","Обособленное подразделение \"Оренбургское\" АО \"Главное управление жилищно - коммунального хозяйства\"","5116000922","561045001","Поставка горячей воды","HOT_VS"]
[78,"Оренбургская область","Асекеевский муниципальный район","53607000","Асекеевское","53607407","30360904","Обособленное подразделение \"Оренбургское\" АО \"Главное управление жилищно - коммунального хозяйства\"","5116000922","561045001","Оказание услуг в сфере горячего водоснабжения","HOT_VS"]
[79,"Оренбургская область","Асекеевский муниципальный район","53607000","Асекеевское","53607407","30360904","Обособленное подразделение \"Оренбургское\" АО \"Главное управление жилищно - коммунального хозяйства\"","5116000922","561045001","Поставка горячей воды","HOT_VS"]
[80,"Оренбургская область","Асекеевский муниципальный район","53607000","Баландинское","53607410","30360904","Обособленное подразделение \"Оренбургское\" АО \"Главное управление жилищно - коммунального хозяйства\"","5116000922","561045001","Оказание услуг в сфере горячего водоснабжения","HOT_VS"]
[81,"Оренбургская область","Асекеевский муниципальный район","53607000","Баландинское","53607410","30360904","Обособленное подразделение \"Оренбургское\" АО \"Главное управление жилищно - коммунального хозяйства\"","5116000922","561045001","Поставка горячей воды","HOT_VS"]
[82,"Оренбургская область","Асекеевский муниципальный район","53607000","Воздвиженское","53607413","30360904","Обособленное подразделение \"Оренбургское\" АО \"Главное управление жилищно - коммунального хозяйства\"","5116000922","561045001","Оказание услуг в сфере горячего водоснабжения","HOT_VS"]
[83,"Оренбургская область","Асекеевский муниципальный район","53607000","Воздвиженское","53607413","30360904","Обособленное подразделение \"Оренбургское\" АО \"Главное управление жилищно - коммунального хозяйства\"","5116000922","561045001","Поставка горячей воды","HOT_VS"]
[84,"Оренбургская область","Асекеевский муниципальный район","53607000","Заглядинское","53607416","30360904","Обособленное подразделение \"Оренбургское\" АО \"Главное управление жилищно - коммунального хозяйства\"","5116000922","561045001","Оказание услуг в сфере горячего водоснабжения","HOT_VS"]
[85,"Оренбургская область","Асекеевский муниципальный район","53607000","Заглядинское","53607416","30360904","Обособленное подразделение \"Оренбургское\" АО \"Главное управление жилищно - коммунального хозяйства\"","5116000922","561045001","Поставка горячей воды","HOT_VS"]
[86,"Оренбургская область","Асекеевский муниципальный район","53607000","Кислинское","53607418","30360904","Обособленное подразделение \"Оренбургское\" АО \"Главное управление жилищно - коммунального хозяйства\"","5116000922","561045001","Оказание услуг в сфере горячего водоснабжения","HOT_VS"]
[87,"Оренбургская область","Асекеевский муниципальный район","53607000","Кислинское","53607418","30360904","Обособленное подразделение \"Оренбургское\" АО \"Главное управление жилищно - коммунального хозяйства\"","5116000922","561045001","Поставка горячей воды","HOT_VS"]
[88,"Оренбургская область","Асекеевский муниципальный район","53607000","Красногорское","53607419","30360904","Обособленное подразделение \"Оренбургское\" АО \"Главное управление жилищно - коммунального хозяйства\"","5116000922","561045001","Оказание услуг в сфере горячего водоснабжения","HOT_VS"]
[89,"Оренбургская область","Асекеевский муниципальный район","53607000","Красногорское","53607419","30360904","Обособленное подразделение \"Оренбургское\" АО \"Главное управление жилищно - коммунального хозяйства\"","5116000922","561045001","Поставка горячей воды","HOT_VS"]
[90,"Оренбургская область","Асекеевский муниципальный район","53607000","Кутлуевское","53607422","30360904","Обособленное подразделение \"Оренбургское\" АО \"Главное управление жилищно - коммунального хозяйства\"","5116000922","561045001","Оказание услуг в сфере горячего водоснабжения","HOT_VS"]
[91,"Оренбургская область","Асекеевский муниципальный район","53607000","Кутлуевское","53607422","30360904","Обособленное подразделение \"Оренбургское\" АО \"Главное управление жилищно - коммунального хозяйства\"","5116000922","561045001","Поставка горячей воды","HOT_VS"]
[92,"Оренбургская область","Асекеевский муниципальный район","53607000","Лекаревское","53607425","30360904","Обособленное подразделение \"Оренбургское\" АО \"Главное управление жилищно - коммунального хозяйства\"","5116000922","561045001","Оказание услуг в сфере горячего водоснабжения","HOT_VS"]
[93,"Оренбургская область","Асекеевский муниципальный район","53607000","Лекаревское","53607425","30360904","Обособленное подразделение \"Оренбургское\" АО \"Главное управление жилищно - коммунального хозяйства\"","5116000922","561045001","Поставка горячей воды","HOT_VS"]
[94,"Оренбургская область","Асекеевский муниципальный район","53607000","Мартыновское","53607428","30360904","Обособленное подразделение \"Оренбургское\" АО \"Главное управление жилищно - коммунального хозяйства\"","5116000922","561045001","Оказание услуг в сфере горячего водоснабжения","HOT_VS"]
[95,"Оренбургская область","Асекеевский муниципальный район","53607000","Мартыновское","53607428","30360904","Обособленное подразделение \"Оренбургское\" АО \"Главное управление жилищно - коммунального хозяйства\"","5116000922","561045001","Поставка горячей воды","HOT_VS"]
[96,"Оренбургская область","Асекеевский муниципальный район","53607000","Мочегаевское","53607431","30360904","Обособленное подразделение \"Оренбургское\" АО \"Главное управление жилищно - коммунального хозяйства\"","5116000922","561045001","Оказание услуг в сфере горячего водоснабжения","HOT_VS"]
[97,"Оренбургская область","Асекеевский муниципальный район","53607000","Мочегаевское","53607431","30360904","Обособленное подразделение \"Оренбургское\" АО \"Главное управление жилищно - коммунального хозяйства\"","5116000922","561045001","Поставка горячей воды","HOT_VS"]
[98,"Оренбургская область","Асекеевский муниципальный район","53607000","Новосултангуловское","53607434","30360904","Обособленное подразделение \"Оренбургское\" АО \"Главное управление жилищно - коммунального хозяйства\"","5116000922","561045001","Оказание услуг в сфере горячего водоснабжения","HOT_VS"]
[99,"Оренбургская область","Асекеевский муниципальный район","53607000","Новосултангуловское","53607434","30360904","Обособленное подразделение \"Оренбургское\" АО \"Главное управление жилищно - коммунального хозяйства\"","5116000922","561045001","Поставка горячей воды","HOT_VS"]
[100,"Оренбургская область","Асекеевский муниципальный район","53607000","Рязановское","53607437","30360904","Обособленное подразделение \"Оренбургское\" АО \"Главное управление жилищно - коммунального хозяйства\"","5116000922","561045001","Оказание услуг в сфере горячего водоснабжения","HOT_VS"]
[101,"Оренбургская область","Асекеевский муниципальный район","53607000","Рязановское","53607437","30360904","Обособленное подразделение \"Оренбургское\" АО \"Главное управление жилищно - коммунального хозяйства\"","5116000922","561045001","Поставка горячей воды","HOT_VS"]
[102,"Оренбургская область","Асекеевский муниципальный район","53607000","Старокульшариповское","53607440","30360904","Обособленное подразделение \"Оренбургское\" АО \"Главное управление жилищно - коммунального хозяйства\"","5116000922","561045001","Оказание услуг в сфере горячего водоснабжения","HOT_VS"]
[103,"Оренбургская область","Асекеевский муниципальный район","53607000","Старокульшариповское","53607440","30360904","Обособленное подразделение \"Оренбургское\" АО \"Главное управление жилищно - коммунального хозяйства\"","5116000922","561045001","Поставка горячей воды","HOT_VS"]
[104,"Оренбургская область","Асекеевский муниципальный район","53607000","Старомукменевское","53607443","30360904","Обособленное подразделение \"Оренбургское\" АО \"Главное управление жилищно - коммунального хозяйства\"","5116000922","561045001","Оказание услуг в сфере горячего водоснабжения","HOT_VS"]
[105,"Оренбургская область","Асекеевский муниципальный район","53607000","Старомукменевское","53607443","30360904","Обособленное подразделение \"Оренбургское\" АО \"Главное управление жилищно - коммунального хозяйства\"","5116000922","561045001","Поставка горячей воды","HOT_VS"]
[106,"Оренбургская область","Асекеевский муниципальный район","53607000","Троицкое","53607446","30360904","Обособленное подразделение \"Оренбургское\" АО \"Главное управление жилищно - коммунального хозяйства\"","5116000922","561045001","Оказание услуг в сфере горячего водоснабжения","HOT_VS"]
[107,"Оренбургская область","Асекеевский муниципальный район","53607000","Троицкое","53607446","30360904","Обособленное подразделение \"Оренбургское\" АО \"Главное управление жилищно - коммунального хозяйства\"","5116000922","561045001","Поставка горячей воды","HOT_VS"]
[108,"Оренбургская область","Асекеевский муниципальный район","53607000","Чкаловское","53607449","30360904","Обособленное подразделение \"Оренбургское\" АО \"Главное управление жилищно - коммунального хозяйства\"","5116000922","561045001","Оказание услуг в сфере горячего водоснабжения","HOT_VS"]
[109,"Оренбургская область","Асекеевский муниципальный район","53607000","Чкаловское","53607449","30360904","Обособленное подразделение \"Оренбургское\" АО \"Главное управление жилищно - коммунального хозяйства\"","5116000922","561045001","Поставка горячей воды","HOT_VS"]
[110,"Оренбургская область","Асекеевский муниципальный район","53607000","Юдинское","53607448","30360904","Обособленное подразделение \"Оренбургское\" АО \"Главное управление жилищно - коммунального хозяйства\"","5116000922","561045001","Оказание услуг в сфере горячего водоснабжения","HOT_VS"]
[111,"Оренбургская область","Асекеевский муниципальный район","53607000","Юдинское","53607448","30360904","Обособленное подразделение \"Оренбургское\" АО \"Главное управление жилищно - коммунального хозяйства\"","5116000922","561045001","Поставка горячей воды","HOT_VS"]
[112,"Оренбургская область","Асекеевский муниципальный район","53607000","Яковлевское","53607452","30360904","Обособленное подразделение \"Оренбургское\" АО \"Главное управление жилищно - коммунального хозяйства\"","5116000922","561045001","Оказание услуг в сфере горячего водоснабжения","HOT_VS"]
[113,"Оренбургская область","Асекеевский муниципальный район","53607000","Яковлевское","53607452","30360904","Обособленное подразделение \"Оренбургское\" АО \"Главное управление жилищно - коммунального хозяйства\"","5116000922","561045001","Поставка горячей воды","HOT_VS"]
[114,"Оренбургская область","Беляевский муниципальный район","53610000","Белогорское","53610402","30360904","Обособленное подразделение \"Оренбургское\" АО \"Главное управление жилищно - коммунального хозяйства\"","5116000922","561045001","Оказание услуг в сфере горячего водоснабжения","HOT_VS"]
[115,"Оренбургская область","Беляевский муниципальный район","53610000","Белогорское","53610402","30360904","Обособленное подразделение \"Оренбургское\" АО \"Главное управление жилищно - коммунального хозяйства\"","5116000922","561045001","Поставка горячей воды","HOT_VS"]
[116,"Оренбургская область","Беляевский муниципальный район","53610000","Беляевское","53610404","28891246","Администрация Беляевского района","5623004845","562301001","Оказание услуг в сфере горячего водоснабжения","HOT_VS"]
[117,"Оренбургская область","Беляевский муниципальный район","53610000","Беляевское","53610404","30360904","Обособленное подразделение \"Оренбургское\" АО \"Главное управление жилищно - коммунального хозяйства\"","5116000922","561045001","Оказание услуг в сфере горячего водоснабжения","HOT_VS"]
[118,"Оренбургская область","Беляевский муниципальный район","53610000","Беляевское","53610404","30360904","Обособленное подразделение \"Оренбургское\" АО \"Главное управление жилищно - коммунального хозяйства\"","5116000922","561045001","Поставка горячей воды","HOT_VS"]
[119,"Оренбургская область","Беляевский муниципальный район","53610000","Бурлыкское","53610407","30360904","Обособленное подразделение \"Оренбургское\" АО \"Главное управление жилищно - коммунального хозяйства\"","5116000922","561045001","Оказание услуг в сфере горячего водоснабжения","HOT_VS"]
[120,"Оренбургская область","Беляевский муниципальный район","53610000","Бурлыкское","53610407","30360904","Обособленное подразделение \"Оренбургское\" АО \"Главное управление жилищно - коммунального хозяйства\"","5116000922","561045001","Поставка горячей воды","HOT_VS"]
[121,"Оренбургская область","Беляевский муниципальный район","53610000","Буртинское","53610410","30360904","Обособленное подразделение \"Оренбургское\" АО \"Главное управление жилищно - коммунального хозяйства\"","5116000922","561045001","Оказание услуг в сфере горячего водоснабжения","HOT_VS"]
[122,"Оренбургская область","Беляевский муниципальный район","53610000","Буртинское","53610410","30360904","Обособленное подразделение \"Оренбургское\" АО \"Главное управление жилищно - коммунального хозяйства\"","5116000922","561045001","Поставка горячей воды","HOT_VS"]
[123,"Оренбургская область","Беляевский муниципальный район","53610000","Днепровское","53610416","30360904","Обособленное подразделение \"Оренбургское\" АО \"Главное управление жилищно - коммунального хозяйства\"","5116000922","561045001","Оказание услуг в сфере горячего водоснабжения","HOT_VS"]
[124,"Оренбургская область","Беляевский муниципальный район","53610000","Днепровское","53610416","30360904","Обособленное подразделение \"Оренбургское\" АО \"Главное управление жилищно - коммунального хозяйства\"","5116000922","561045001","Поставка горячей воды","HOT_VS"]
[125,"Оренбургская область","Беляевский муниципальный район","53610000","Донское","53610419","30360904","Обособленное подразделение \"Оренбургское\" АО \"Главное управление жилищно - коммунального хозяйства\"","5116000922","561045001","Оказание услуг в сфере горячего водоснабжения","HOT_VS"]
[126,"Оренбургская область","Беляевский муниципальный район","53610000","Донское","53610419","30360904","Обособленное подразделение \"Оренбургское\" АО \"Главное управление жилищно - коммунального хозяйства\"","5116000922","561045001","Поставка горячей воды","HOT_VS"]
[127,"Оренбургская область","Беляевский муниципальный район","53610000","Дубенское","53610420","30360904","Обособленное подразделение \"Оренбургское\" АО \"Главное управление жилищно - коммунального хозяйства\"","5116000922","561045001","Оказание услуг в сфере горячего водоснабжения","HOT_VS"]
[128,"Оренбургская область","Беляевский муниципальный район","53610000","Дубенское","53610420","30360904","Обособленное подразделение \"Оренбургское\" АО \"Главное управление жилищно - коммунального хозяйства\"","5116000922","561045001","Поставка горячей воды","HOT_VS"]
[129,"Оренбургская область","Беляевский муниципальный район","53610000","Карагачское","53610422","30360904","Обособленное подразделение \"Оренбургское\" АО \"Главное управление жилищно - коммунального хозяйства\"","5116000922","561045001","Оказание услуг в сфере горячего водоснабжения","HOT_VS"]
[130,"Оренбургская область","Беляевский муниципальный район","53610000","Карагачское","53610422","30360904","Обособленное подразделение \"Оренбургское\" АО \"Главное управление жилищно - коммунального хозяйства\"","5116000922","561045001","Поставка горячей воды","HOT_VS"]
[131,"Оренбургская область","Беляевский муниципальный район","53610000","Ключевское","53610425","30360904","Обособленное подразделение \"Оренбургское\" АО \"Главное управление жилищно - коммунального хозяйства\"","5116000922","561045001","Оказание услуг в сфере горячего водоснабжения","HOT_VS"]
[132,"Оренбургская область","Беляевский муниципальный район","53610000","Ключевское","53610425","30360904","Обособленное подразделение \"Оренбургское\" АО \"Главное управление жилищно - коммунального хозяйства\"","5116000922","561045001","Поставка горячей воды","HOT_VS"]
[133,"Оренбургская область","Беляевский муниципальный район","53610000","Крючковское","53610428","30360904","Обособленное подразделение \"Оренбургское\" АО \"Главное управление жилищно - коммунального хозяйства\"","5116000922","561045001","Оказание услуг в сфере горячего водоснабжения","HOT_VS"]
[134,"Оренбургская область","Беляевский муниципальный район","53610000","Крючковское","53610428","30360904","Обособленное подразделение \"Оренбургское\" АО \"Главное управление жилищно - коммунального хозяйства\"","5116000922","561045001","Поставка горячей воды","HOT_VS"]
[135,"Оренбургская область","Беляевский муниципальный район","53610000","Раздольное","53610431","30360904","Обособленное подразделение \"Оренбургское\" АО \"Главное управление жилищно - коммунального хозяйства\"","5116000922","561045001","Оказание услуг в сфере горячего водоснабжения","HOT_VS"]
[136,"Оренбургская область","Беляевский муниципальный район","53610000","Раздольное","53610431","30360904","Обособленное подразделение \"Оренбургское\" АО \"Главное управление жилищно - коммунального хозяйства\"","5116000922","561045001","Поставка горячей воды","HOT_VS"]
[137,"Оренбургская область","Бузулукский муниципальный район","53612000","Алдаркинское","53612402","30394132","ООО \"Весна\"","5603043148","560301001","Оказание услуг в сфере горячего водоснабжения","HOT_VS"]
[138,"Оренбургская область","Бузулукский муниципальный район","53612000","Алдаркинское","53612402","30360904","Обособленное подразделение \"Оренбургское\" АО \"Главное управление жилищно - коммунального хозяйства\"","5116000922","561045001","Оказание услуг в сфере горячего водоснабжения","HOT_VS"]
[139,"Оренбургская область","Бузулукский муниципальный район","53612000","Алдаркинское","53612402","26443846","РМУП ЖКХ Бузулукского района","5625006340","560301001","Оказание услуг в сфере горячего водоснабжения","HOT_VS"]
[140,"Оренбургская область","Бузулукский муниципальный район","53612000","Березовское","53612403","30394132","ООО \"Весна\"","5603043148","560301001","Оказание услуг в сфере горячего водоснабжения","HOT_VS"]
[141,"Оренбургская область","Бузулукский муниципальный район","53612000","Березовское","53612403","30360904","Обособленное подразделение \"Оренбургское\" АО \"Главное управление жилищно - коммунального хозяйства\"","5116000922","561045001","Оказание услуг в сфере горячего водоснабжения","HOT_VS"]
[142,"Оренбургская область","Бузулукский муниципальный район","53612000","Березовское","53612403","26443846","РМУП ЖКХ Бузулукского района","5625006340","560301001","Оказание услуг в сфере горячего водоснабжения","HOT_VS"]
[143,"Оренбургская область","Бузулукский муниципальный район","53612000","Верхневязовское","53612407","30394132","ООО \"Весна\"","5603043148","560301001","Оказание услуг в сфере горячего водоснабжения","HOT_VS"]
[144,"Оренбургская область","Бузулукский муниципальный район","53612000","Верхневязовское","53612407","30360904","Обособленное подразделение \"Оренбургское\" АО \"Главное управление жилищно - коммунального хозяйства\"","5116000922","561045001","Оказание услуг в сфере горячего водоснабжения","HOT_VS"]
[145,"Оренбургская область","Бузулукский муниципальный район","53612000","Верхневязовское","53612407","26443846","РМУП ЖКХ Бузулукского района","5625006340","560301001","Оказание услуг в сфере горячего водоснабжения","HOT_VS"]
[146,"Оренбургская область","Бузулукский муниципальный район","53612000","Державинское","53612413","30394132","ООО \"Весна\"","5603043148","560301001","Оказание услуг в сфере горячего водоснабжения","HOT_VS"]
[147,"Оренбургская область","Бузулукский муниципальный район","53612000","Державинское","53612413","30360904","Обособленное подразделение \"Оренбургское\" АО \"Главное управление жилищно - коммунального хозяйства\"","5116000922","561045001","Оказание услуг в сфере горячего водоснабжения","HOT_VS"]
[148,"Оренбургская область","Бузулукский муниципальный район","53612000","Державинское","53612413","26443846","РМУП ЖКХ Бузулукского района","5625006340","560301001","Оказание услуг в сфере горячего водоснабжения","HOT_VS"]
[149,"Оренбургская область","Бузулукский муниципальный район","53612000","Елховское","53612417","30394132","ООО \"Весна\"","5603043148","560301001","Оказание услуг в сфере горячего водоснабжения","HOT_VS"]
[150,"Оренбургская область","Бузулукский муниципальный район","53612000","Елховское","53612417","30360904","Обособленное подразделение \"Оренбургское\" АО \"Главное управление жилищно - коммунального хозяйства\"","5116000922","561045001","Оказание услуг в сфере горячего водоснабжения","HOT_VS"]
[151,"Оренбургская область","Бузулукский муниципальный район","53612000","Елховское","53612417","26443846","РМУП ЖКХ Бузулукского района","5625006340","560301001","Оказание услуг в сфере горячего водоснабжения","HOT_VS"]
[152,"Оренбургская область","Бузулукский муниципальный район","53612000","Елшанское","53612419","30394132","ООО \"Весна\"","5603043148","560301001","Оказание услуг в сфере горячего водоснабжения","HOT_VS"]
[153,"Оренбургская область","Бузулукский муниципальный район","53612000","Елшанское","53612419","30360904","Обособленное подразделение \"Оренбургское\" АО \"Главное управление жилищно - коммунального хозяйства\"","5116000922","561045001","Оказание услуг в сфере горячего водоснабжения","HOT_VS"]
[154,"Оренбургская область","Бузулукский муниципальный район","53612000","Елшанское","53612419","26443846","РМУП ЖКХ Бузулукского района","5625006340","560301001","Оказание услуг в сфере горячего водоснабжения","HOT_VS"]
[155,"Оренбургская область","Бузулукский муниципальный район","53612000","Жилинское","53612422","30394132","ООО \"Весна\"","5603043148","560301001","Оказание услуг в сфере горячего водоснабжения","HOT_VS"]
[156,"Оренбургская область","Бузулукский муниципальный район","53612000","Жилинское","53612422","30360904","Обособленное подразделение \"Оренбургское\" АО \"Главное управление жилищно - коммунального хозяйства\"","5116000922","561045001","Оказание услуг в сфере горячего водоснабжения","HOT_VS"]
[157,"Оренбургская область","Бузулукский муниципальный район","53612000","Жилинское","53612422","26443846","РМУП ЖКХ Бузулукского района","5625006340","560301001","Оказание услуг в сфере горячего водоснабжения","HOT_VS"]
[158,"Оренбургская область","Бузулукский муниципальный район","53612000","Каменносарминское","53612425","30394132","ООО \"Весна\"","5603043148","560301001","Оказание услуг в сфере горячего водоснабжения","HOT_VS"]
[159,"Оренбургская область","Бузулукский муниципальный район","53612000","Каменносарминское","53612425","30360904","Обособленное подразделение \"Оренбургское\" АО \"Главное управление жилищно - коммунального хозяйства\"","5116000922","561045001","Оказание услуг в сфере горячего водоснабжения","HOT_VS"]
[160,"Оренбургская область","Бузулукский муниципальный район","53612000","Каменносарминское","53612425","26443846","РМУП ЖКХ Бузулукского района","5625006340","560301001","Оказание услуг в сфере горячего водоснабжения","HOT_VS"]
[161,"Оренбургская область","Бузулукский муниципальный район","53612000","Колтубановское","53612427","30394132","ООО \"Весна\"","5603043148","560301001","Оказание услуг в сфере горячего водоснабжения","HOT_VS"]
[162,"Оренбургская область","Бузулукский муниципальный район","53612000","Колтубановское","53612427","30360904","Обособленное подразделение \"Оренбургское\" АО \"Главное управление жилищно - коммунального хозяйства\"","5116000922","561045001","Оказание услуг в сфере горячего водоснабжения","HOT_VS"]
[163,"Оренбургская область","Бузулукский муниципальный район","53612000","Колтубанское","53612428","30394132","ООО \"Весна\"","5603043148","560301001","Оказание услуг в сфере горячего водоснабжения","HOT_VS"]
[164,"Оренбургская область","Бузулукский муниципальный район","53612000","Колтубанское","53612428","30360904","Обособленное подразделение \"Оренбургское\" АО \"Главное управление жилищно - коммунального хозяйства\"","5116000922","561045001","Оказание услуг в сфере горячего водоснабжения","HOT_VS"]
[165,"Оренбургская область","Бузулукский муниципальный район","53612000","Красногвардейское","53612431","30394132","ООО \"Весна\"","5603043148","560301001","Оказание услуг в сфере горячего водоснабжения","HOT_VS"]
[166,"Оренбургская область","Бузулукский муниципальный район","53612000","Красногвардейское","53612431","28451847","ООО \"РесурсСервис\"","5625020955","562501001","Оказание услуг в сфере горячего водоснабжения","HOT_VS"]
[167,"Оренбургская область","Бузулукский муниципальный район","53612000","Красногвардейское","53612431","30360904","Обособленное подразделение \"Оренбургское\" АО \"Главное управление жилищно - коммунального хозяйства\"","5116000922","561045001","Оказание услуг в сфере горячего водоснабжения","HOT_VS"]
[168,"Оренбургская область","Бузулукский муниципальный район","53612000","Красногвардейское","53612431","26443846","РМУП ЖКХ Бузулукского района","5625006340","560301001","Оказание услуг в сфере горячего водоснабжения","HOT_VS"]
[169,"Оренбургская область","Бузулукский муниципальный район","53612000","Красногвардейское","53612431","26360992","Южно-Уральская дирекция по тепловодоснабжению - структурное подразделение Центральной дирекции по тепловодоснабжению - филиала ОАО \"РЖД\"","7708503727","744945004","Оказание услуг в сфере горячего водоснабжения","HOT_VS"]
[170,"Оренбургская область","Бузулукский муниципальный район","53612000","Краснослободское","53612434","30394132","ООО \"Весна\"","5603043148","560301001","Оказание услуг в сфере горячего водоснабжения","HOT_VS"]
[171,"Оренбургская область","Бузулукский муниципальный район","53612000","Краснослободское","53612434","30360904","Обособленное подразделение \"Оренбургское\" АО \"Главное управление жилищно - коммунального хозяйства\"","5116000922","561045001","Оказание услуг в сфере горячего водоснабжения","HOT_VS"]
[172,"Оренбургская область","Бузулукский муниципальный район","53612000","Краснослободское","53612434","26443846","РМУП ЖКХ Бузулукского района","5625006340","560301001","Оказание услуг в сфере горячего водоснабжения","HOT_VS"]
[173,"Оренбургская область","Бузулукский муниципальный район","53612000","Липовское","53612437","30394132","ООО \"Весна\"","5603043148","560301001","Оказание услуг в сфере горячего водоснабжения","HOT_VS"]
[174,"Оренбургская область","Бузулукский муниципальный район","53612000","Липовское","53612437","30360904","Обособленное подразделение \"Оренбургское\" АО \"Главное управление жилищно - коммунального хозяйства\"","5116000922","561045001","Оказание услуг в сфере горячего водоснабжения","HOT_VS"]
[175,"Оренбургская область","Бузулукский муниципальный район","53612000","Липовское","53612437","26443846","РМУП ЖКХ Бузулукского района","5625006340","560301001","Оказание услуг в сфере горячего водоснабжения","HOT_VS"]
[176,"Оренбургская область","Бузулукский муниципальный район","53612000","Лисьеполянское","53612439","30394132","ООО \"Весна\"","5603043148","560301001","Оказание услуг в сфере горячего водоснабжения","HOT_VS"]
[177,"Оренбургская область","Бузулукский муниципальный район","53612000","Лисьеполянское","53612439","30360904","Обособленное подразделение \"Оренбургское\" АО \"Главное управление жилищно - коммунального хозяйства\"","5116000922","561045001","Оказание услуг в сфере горячего водоснабжения","HOT_VS"]
[178,"Оренбургская область","Бузулукский муниципальный район","53612000","Лисьеполянское","53612439","26443846","РМУП ЖКХ Бузулукского района","5625006340","560301001","Оказание услуг в сфере горячего водоснабжения","HOT_VS"]
[179,"Оренбургская область","Бузулукский муниципальный район","53612000","Могутовское","53612441","30394132","ООО \"Весна\"","5603043148","560301001","Оказание услуг в сфере горячего водоснабжения","HOT_VS"]
[180,"Оренбургская область","Бузулукский муниципальный район","53612000","Могутовское","53612441","30360904","Обособленное подразделение \"Оренбургское\" АО \"Главное управление жилищно - коммунального хозяйства\"","5116000922","561045001","Оказание услуг в сфере горячего водоснабжения","HOT_VS"]
[181,"Оренбургская область","Бузулукский муниципальный район","53612000","Могутовское","53612441","26443846","РМУП ЖКХ Бузулукского района","5625006340","560301001","Оказание услуг в сфере горячего водоснабжения","HOT_VS"]
[182,"Оренбургская область","Бузулукский муниципальный район","53612000","Новоалександровское","53612443","30394132","ООО \"Весна\"","5603043148","560301001","Оказание услуг в сфере горячего водоснабжения","HOT_VS"]
[183,"Оренбургская область","Бузулукский муниципальный район","53612000","Новоалександровское","53612443","30360904","Обособленное подразделение \"Оренбургское\" АО \"Главное управление жилищно - коммунального хозяйства\"","5116000922","561045001","Оказание услуг в сфере горячего водоснабжения","HOT_VS"]
[184,"Оренбургская область","Бузулукский муниципальный район","53612000","Новоалександровское","53612443","26443846","РМУП ЖКХ Бузулукского района","5625006340","560301001","Оказание услуг в сфере горячего водоснабжения","HOT_VS"]
[185,"Оренбургская область","Бузулукский муниципальный район","53612000","Новотепловское","53612446","30394132","ООО \"Весна\"","5603043148","560301001","Оказание услуг в сфере горячего водоснабжения","HOT_VS"]
[186,"Оренбургская область","Бузулукский муниципальный район","53612000","Новотепловское","53612446","30360904","Обособленное подразделение \"Оренбургское\" АО \"Главное управление жилищно - коммунального хозяйства\"","5116000922","561045001","Оказание услуг в сфере горячего водоснабжения","HOT_VS"]
[187,"Оренбургская область","Бузулукский муниципальный район","53612000","Новотепловское","53612446","26443846","РМУП ЖКХ Бузулукского района","5625006340","560301001","Оказание услуг в сфере горячего водоснабжения","HOT_VS"]
[188,"Оренбургская область","Бузулукский муниципальный район","53612000","Палимовское","53612449","30394132","ООО \"Весна\"","5603043148","560301001","Оказание услуг в сфере горячего водоснабжения","HOT_VS"]
[189,"Оренбургская область","Бузулукский муниципальный район","53612000","Палимовское","53612449","30360904","Обособленное подразделение \"Оренбургское\" АО \"Главное управление жилищно - коммунального хозяйства\"","5116000922","561045001","Оказание услуг в сфере горячего водоснабжения","HOT_VS"]
[190,"Оренбургская область","Бузулукский муниципальный район","53612000","Палимовское","53612449","26443846","РМУП ЖКХ Бузулукского района","5625006340","560301001","Оказание услуг в сфере горячего водоснабжения","HOT_VS"]
[191,"Оренбургская область","Бузулукский муниципальный район","53612000","Подколкинское","53612452","30394132","ООО \"Весна\"","5603043148","560301001","Оказание услуг в сфере горячего водоснабжения","HOT_VS"]
[192,"Оренбургская область","Бузулукский муниципальный район","53612000","Подколкинское","53612452","30360904","Обособленное подразделение \"Оренбургское\" АО \"Главное управление жилищно - коммунального хозяйства\"","5116000922","561045001","Оказание услуг в сфере горячего водоснабжения","HOT_VS"]
[193,"Оренбургская область","Бузулукский муниципальный район","53612000","Преображенское","53612458","30394132","ООО \"Весна\"","5603043148","560301001","Оказание услуг в сфере горячего водоснабжения","HOT_VS"]
[194,"Оренбургская область","Бузулукский муниципальный район","53612000","Преображенское","53612458","30360904","Обособленное подразделение \"Оренбургское\" АО \"Главное управление жилищно - коммунального хозяйства\"","5116000922","561045001","Оказание услуг в сфере горячего водоснабжения","HOT_VS"]
[195,"Оренбургская область","Бузулукский муниципальный район","53612000","Пригородное","53612461","30394132","ООО \"Весна\"","5603043148","560301001","Оказание услуг в сфере горячего водоснабжения","HOT_VS"]
[196,"Оренбургская область","Бузулукский муниципальный район","53612000","Пригородное","53612461","30360904","Обособленное подразделение \"Оренбургское\" АО \"Главное управление жилищно - коммунального хозяйства\"","5116000922","561045001","Оказание услуг в сфере горячего водоснабжения","HOT_VS"]
[197,"Оренбургская область","Бузулукский муниципальный район","53612000","Пригородное","53612461","26443846","РМУП ЖКХ Бузулукского района","5625006340","560301001","Оказание услуг в сфере горячего водоснабжения","HOT_VS"]
[198,"Оренбургская область","Бузулукский муниципальный район","53612000","Проскуринское","53612462","30394132","ООО \"Весна\"","5603043148","560301001","Оказание услуг в сфере горячего водоснабжения","HOT_VS"]
[199,"Оренбургская область","Бузулукский муниципальный район","53612000","Проскуринское","53612462","30360904","Обособленное подразделение \"Оренбургское\" АО \"Главное управление жилищно - коммунального хозяйства\"","5116000922","561045001","Оказание услуг в сфере горячего водоснабжения","HOT_VS"]
[200,"Оренбургская область","Бузулукский муниципальный район","53612000","Проскуринское","53612462","26443846","РМУП ЖКХ Бузулукского района","5625006340","560301001","Оказание услуг в сфере горячего водоснабжения","HOT_VS"]
[201,"Оренбургская область","Бузулукский муниципальный район","53612000","Староалександровское","53612464","30394132","ООО \"Весна\"","5603043148","560301001","Оказание услуг в сфере горячего водоснабжения","HOT_VS"]
[202,"Оренбургская область","Бузулукский муниципальный район","53612000","Староалександровское","53612464","30360904","Обособленное подразделение \"Оренбургское\" АО \"Главное управление жилищно - коммунального хозяйства\"","5116000922","561045001","Оказание услуг в сфере горячего водоснабжения","HOT_VS"]
[203,"Оренбургская область","Бузулукский муниципальный район","53612000","Староалександровское","53612464","26443846","РМУП ЖКХ Бузулукского района","5625006340","560301001","Оказание услуг в сфере горячего водоснабжения","HOT_VS"]
[204,"Оренбургская область","Бузулукский муниципальный район","53612000","Сухореченское","53612467","30394132","ООО \"Весна\"","5603043148","560301001","Оказание услуг в сфере горячего водоснабжения","HOT_VS"]
[205,"Оренбургская область","Бузулукский муниципальный район","53612000","Сухореченское","53612467","30360904","Обособленное подразделение \"Оренбургское\" АО \"Главное управление жилищно - коммунального хозяйства\"","5116000922","561045001","Оказание услуг в сфере горячего водоснабжения","HOT_VS"]
[206,"Оренбургская область","Бузулукский муниципальный район","53612000","Твердиловское","53612470","30394132","ООО \"Весна\"","5603043148","560301001","Оказание услуг в сфере горячего водоснабжения","HOT_VS"]
[207,"Оренбургская область","Бузулукский муниципальный район","53612000","Твердиловское","53612470","30360904","Обособленное подразделение \"Оренбургское\" АО \"Главное управление жилищно - коммунального хозяйства\"","5116000922","561045001","Оказание услуг в сфере горячего водоснабжения","HOT_VS"]
[208,"Оренбургская область","Бузулукский муниципальный район","53612000","Троицкое","53612473","30394132","ООО \"Весна\"","5603043148","560301001","Оказание услуг в сфере горячего водоснабжения","HOT_VS"]
[209,"Оренбургская область","Бузулукский муниципальный район","53612000","Троицкое","53612473","30360904","Обособленное подразделение \"Оренбургское\" АО \"Главное управление жилищно - коммунального хозяйства\"","5116000922","561045001","Оказание услуг в сфере горячего водоснабжения","HOT_VS"]
[210,"Оренбургская область","Бузулукский муниципальный район","53612000","Троицкое","53612473","26443846","РМУП ЖКХ Бузулукского района","5625006340","560301001","Оказание услуг в сфере горячего водоснабжения","HOT_VS"]
[211,"Оренбургская область","Бузулукский муниципальный район","53612000","Тупиковское","53612476","30394132","ООО \"Весна\"","5603043148","560301001","Оказание услуг в сфере горячего водоснабжения","HOT_VS"]
[212,"Оренбургская область","Бузулукский муниципальный район","53612000","Тупиковское","53612476","30360904","Обособленное подразделение \"Оренбургское\" АО \"Главное управление жилищно - коммунального хозяйства\"","5116000922","561045001","Оказание услуг в сфере горячего водоснабжения","HOT_VS"]
[213,"Оренбургская область","Бузулукский муниципальный район","53612000","Тупиковское","53612476","26443846","РМУП ЖКХ Бузулукского района","5625006340","560301001","Оказание услуг в сфере горячего водоснабжения","HOT_VS"]
[214,"Оренбургская область","Бузулукский муниципальный район","53612000","Шахматовское","53612480","30394132","ООО \"Весна\"","5603043148","560301001","Оказание услуг в сфере горячего водоснабжения","HOT_VS"]
[215,"Оренбургская область","Бузулукский муниципальный район","53612000","Шахматовское","53612480","30360904","Обособленное подразделение \"Оренбургское\" АО \"Главное управление жилищно - коммунального хозяйства\"","5116000922","561045001","Оказание услуг в сфере горячего водоснабжения","HOT_VS"]
[216,"Оренбургская область","Бузулукский муниципальный район","53612000","Шахматовское","53612480","26443846","РМУП ЖКХ Бузулукского района","5625006340","560301001","Оказание услуг в сфере горячего водоснабжения","HOT_VS"]
[217,"Оренбургская область","Гайский","53713000","Гайский","53713000","26359023","МУП \"ЖКХ\" г. Гай","5604009020","560401001","Оказание услуг в сфере горячего водоснабжения","HOT_VS"]
[218,"Оренбургская область","Гайский","53713000","Гайский","53713000","28943408","Общество с ограниченной ответственностью \"Уральский медный прокат\"","5612088392","560401001","Оказание услуг в сфере горячего водоснабжения","HOT_VS"]
[219,"Оренбургская область","Домбаровский муниципальный район","53617000","Ащебутакское","53617404","28883160","Администрация Домбаровского района","5628004165","562801001","Оказание услуг в сфере горячего водоснабжения","HOT_VS"]
[220,"Оренбургская область","Домбаровский муниципальный район","53617000","Ащебутакское","53617404","30360904","Обособленное подразделение \"Оренбургское\" АО \"Главное управление жилищно - коммунального хозяйства\"","5116000922","561045001","Оказание услуг в сфере горячего водоснабжения","HOT_VS"]
[221,"Оренбургская область","Домбаровский муниципальный район","53617000","Ащебутакское","53617404","30360904","Обособленное подразделение \"Оренбургское\" АО \"Главное управление жилищно - коммунального хозяйства\"","5116000922","561045001","Поставка горячей воды","HOT_VS"]
[222,"Оренбургская область","Домбаровский муниципальный район","53617000","Домбаровский поссовет","53617408","28883160","Администрация Домбаровского района","5628004165","562801001","Оказание услуг в сфере горячего водоснабжения","HOT_VS"]
[223,"Оренбургская область","Домбаровский муниципальный район","53617000","Домбаровский поссовет","53617408","30360904","Обособленное подразделение \"Оренбургское\" АО \"Главное управление жилищно - коммунального хозяйства\"","5116000922","561045001","Оказание услуг в сфере горячего водоснабжения","HOT_VS"]
[224,"Оренбургская область","Домбаровский муниципальный район","53617000","Домбаровский поссовет","53617408","30360904","Обособленное подразделение \"Оренбургское\" АО \"Главное управление жилищно - коммунального хозяйства\"","5116000922","561045001","Поставка горячей воды","HOT_VS"]
[225,"Оренбургская область","Домбаровский муниципальный район","53617000","Домбаровский поссовет","53617408","26360992","Южно-Уральская дирекция по тепловодоснабжению - структурное подразделение Центральной дирекции по тепловодоснабжению - филиала ОАО \"РЖД\"","7708503727","744945004","Оказание услуг в сфере горячего водоснабжения","HOT_VS"]
[226,"Оренбургская область","Домбаровский муниципальный район","53617000","Домбаровское","53617407","28883160","Администрация Домбаровского района","5628004165","562801001","Оказание услуг в сфере горячего водоснабжения","HOT_VS"]
[227,"Оренбургская область","Домбаровский муниципальный район","53617000","Домбаровское","53617407","30360904","Обособленное подразделение \"Оренбургское\" АО \"Главное управление жилищно - коммунального хозяйства\"","5116000922","561045001","Оказание услуг в сфере горячего водоснабжения","HOT_VS"]
[228,"Оренбургская область","Домбаровский муниципальный район","53617000","Домбаровское","53617407","30360904","Обособленное подразделение \"Оренбургское\" АО \"Главное управление жилищно - коммунального хозяйства\"","5116000922","561045001","Поставка горячей воды","HOT_VS"]
[229,"Оренбургская область","Домбаровский муниципальный район","53617000","Заринское","53617412","28883160","Администрация Домбаровского района","5628004165","562801001","Оказание услуг в сфере горячего водоснабжения","HOT_VS"]
[230,"Оренбургская область","Домбаровский муниципальный район","53617000","Заринское","53617412","30360904","Обособленное подразделение \"Оренбургское\" АО \"Главное управление жилищно - коммунального хозяйства\"","5116000922","561045001","Оказание услуг в сфере горячего водоснабжения","HOT_VS"]
[231,"Оренбургская область","Домбаровский муниципальный район","53617000","Заринское","53617412","30360904","Обособленное подразделение \"Оренбургское\" АО \"Главное управление жилищно - коммунального хозяйства\"","5116000922","561045001","Поставка горячей воды","HOT_VS"]
[232,"Оренбургская область","Домбаровский муниципальный район","53617000","Красночабанское","53617413","28883160","Администрация Домбаровского района","5628004165","562801001","Оказание услуг в сфере горячего водоснабжения","HOT_VS"]
[233,"Оренбургская область","Домбаровский муниципальный район","53617000","Красночабанское","53617413","30360904","Обособленное подразделение \"Оренбургское\" АО \"Главное управление жилищно - коммунального хозяйства\"","5116000922","561045001","Оказание услуг в сфере горячего водоснабжения","HOT_VS"]
[234,"Оренбургская область","Домбаровский муниципальный район","53617000","Красночабанское","53617413","30360904","Обособленное подразделение \"Оренбургское\" АО \"Главное управление жилищно - коммунального хозяйства\"","5116000922","561045001","Поставка горячей воды","HOT_VS"]
[235,"Оренбургская область","Домбаровский муниципальный район","53617000","Полевое","53617419","28883160","Администрация Домбаровского района","5628004165","562801001","Оказание услуг в сфере горячего водоснабжения","HOT_VS"]
[236,"Оренбургская область","Домбаровский муниципальный район","53617000","Полевое","53617419","30360904","Обособленное подразделение \"Оренбургское\" АО \"Главное управление жилищно - коммунального хозяйства\"","5116000922","561045001","Оказание услуг в сфере горячего водоснабжения","HOT_VS"]
[237,"Оренбургская область","Домбаровский муниципальный район","53617000","Полевое","53617419","30360904","Обособленное подразделение \"Оренбургское\" АО \"Главное управление жилищно - коммунального хозяйства\"","5116000922","561045001","Поставка горячей воды","HOT_VS"]
[238,"Оренбургская область","ЗАТО поселок Комаровский","53755000","ЗАТО поселок Комаровский","53755000","26359068","МП КЭП ЗАТО Комаровский","5618005106","561801001","Оказание услуг в сфере горячего водоснабжения","HOT_VS"]
[239,"Оренбургская область","Илекский муниципальный район","53619000","Димитровское","53619402","27727530","Администрация Илекского района","5629003492","562901001","Оказание услуг в сфере горячего водоснабжения","HOT_VS"]
[240,"Оренбургская область","Илекский муниципальный район","53619000","Затонновское","53619404","27727530","Администрация Илекского района","5629003492","562901001","Оказание услуг в сфере горячего водоснабжения","HOT_VS"]
[241,"Оренбургская область","Илекский муниципальный район","53619000","Илекское","53619407","27727530","Администрация Илекского района","5629003492","562901001","Оказание услуг в сфере горячего водоснабжения","HOT_VS"]
[242,"Оренбургская область","Илекский муниципальный район","53619000","Кардаиловское","53619410","27727530","Администрация Илекского района","5629003492","562901001","Оказание услуг в сфере горячего водоснабжения","HOT_VS"]
[243,"Оренбургская область","Илекский муниципальный район","53619000","Кардаиловское","53619410","26823813","МУП ЖКХ \"Русь\"","5629020586","562901001","Оказание услуг в сфере горячего водоснабжения","HOT_VS"]
[244,"Оренбургская область","Илекский муниципальный район","53619000","Красноярское","53619416","27727530","Администрация Илекского района","5629003492","562901001","Оказание услуг в сфере горячего водоснабжения","HOT_VS"]
[245,"Оренбургская область","Илекский муниципальный район","53619000","Мухрановское","53619419","27727530","Администрация Илекского района","5629003492","562901001","Оказание услуг в сфере горячего водоснабжения","HOT_VS"]
[246,"Оренбургская область","Илекский муниципальный район","53619000","Нижнеозернинское","53619422","27727530","Администрация Илекского района","5629003492","562901001","Оказание услуг в сфере горячего водоснабжения","HOT_VS"]
[247,"Оренбургская область","Илекский муниципальный район","53619000","Озерское","53619425","27727530","Администрация Илекского района","5629003492","562901001","Оказание услуг в сфере горячего водоснабжения","HOT_VS"]
[248,"Оренбургская область","Илекский муниципальный район","53619000","Подстепкинское","53619427","27727530","Администрация Илекского района","5629003492","562901001","Оказание услуг в сфере горячего водоснабжения","HOT_VS"]
[249,"Оренбургская область","Илекский муниципальный район","53619000","Привольное","53619428","27727530","Администрация Илекского района","5629003492","562901001","Оказание услуг в сфере горячего водоснабжения","HOT_VS"]
[250,"Оренбургская область","Илекский муниципальный район","53619000","Рассыпнянское","53619431","27727530","Администрация Илекского района","5629003492","562901001","Оказание услуг в сфере горячего водоснабжения","HOT_VS"]
[251,"Оренбургская область","Илекский муниципальный район","53619000","Сладковское","53619434","27727530","Администрация Илекского района","5629003492","562901001","Оказание услуг в сфере горячего водоснабжения","HOT_VS"]
[252,"Оренбургская область","Илекский муниципальный район","53619000","Студеновское","53619437","27727530","Администрация Илекского района","5629003492","562901001","Оказание услуг в сфере горячего водоснабжения","HOT_VS"]
[253,"Оренбургская область","Илекский муниципальный район","53619000","Сухореченское","53619440","27727530","Администрация Илекского района","5629003492","562901001","Оказание услуг в сфере горячего водоснабжения","HOT_VS"]
[254,"Оренбургская область","Илекский муниципальный район","53619000","Яманское","53619445","27727530","Администрация Илекского района","5629003492","562901001","Оказание услуг в сфере горячего водоснабжения","HOT_VS"]
[255,"Оренбургская область","Кваркенский муниципальный район","53622000","Аландское","53622402","30360904","Обособленное подразделение \"Оренбургское\" АО \"Главное управление жилищно - коммунального хозяйства\"","5116000922","561045001","Оказание услуг в сфере горячего водоснабжения","HOT_VS"]
[256,"Оренбургская область","Кваркенский муниципальный район","53622000","Аландское","53622402","30360904","Обособленное подразделение \"Оренбургское\" АО \"Главное управление жилищно - коммунального хозяйства\"","5116000922","561045001","Поставка горячей воды","HOT_VS"]
[257,"Оренбургская область","Кваркенский муниципальный район","53622000","Бриентское","53622404","30360904","Обособленное подразделение \"Оренбургское\" АО \"Главное управление жилищно - коммунального хозяйства\"","5116000922","561045001","Оказание услуг в сфере горячего водоснабжения","HOT_VS"]
[258,"Оренбургская область","Кваркенский муниципальный район","53622000","Бриентское","53622404","30360904","Обособленное подразделение \"Оренбургское\" АО \"Главное управление жилищно - коммунального хозяйства\"","5116000922","561045001","Поставка горячей воды","HOT_VS"]
[259,"Оренбургская область","Кваркенский муниципальный район","53622000","Кваркенское","53622410","30360904","Обособленное подразделение \"Оренбургское\" АО \"Главное управление жилищно - коммунального хозяйства\"","5116000922","561045001","Оказание услуг в сфере горячего водоснабжения","HOT_VS"]
[260,"Оренбургская область","Кваркенский муниципальный район","53622000","Кваркенское","53622410","30360904","Обособленное подразделение \"Оренбургское\" АО \"Главное управление жилищно - коммунального хозяйства\"","5116000922","561045001","Поставка горячей воды","HOT_VS"]
[261,"Оренбургская область","Кваркенский муниципальный район","53622000","Кировское","53622413","30360904","Обособленное подразделение \"Оренбургское\" АО \"Главное управление жилищно - коммунального хозяйства\"","5116000922","561045001","Оказание услуг в сфере горячего водоснабжения","HOT_VS"]
[262,"Оренбургская область","Кваркенский муниципальный район","53622000","Кировское","53622413","30360904","Обособленное подразделение \"Оренбургское\" АО \"Главное управление жилищно - коммунального хозяйства\"","5116000922","561045001","Поставка горячей воды","HOT_VS"]
[263,"Оренбургская область","Кваркенский муниципальный район","53622000","Коминтерновское","53622416","30360904","Обособленное подразделение \"Оренбургское\" АО \"Главное управление жилищно - коммунального хозяйства\"","5116000922","561045001","Оказание услуг в сфере горячего водоснабжения","HOT_VS"]
[264,"Оренбургская область","Кваркенский муниципальный район","53622000","Коминтерновское","53622416","30360904","Обособленное подразделение \"Оренбургское\" АО \"Главное управление жилищно - коммунального хозяйства\"","5116000922","561045001","Поставка горячей воды","HOT_VS"]
[265,"Оренбургская область","Кваркенский муниципальный район","53622000","Красноярское","53622417","30360904","Обособленное подразделение \"Оренбургское\" АО \"Главное управление жилищно - коммунального хозяйства\"","5116000922","561045001","Оказание услуг в сфере горячего водоснабжения","HOT_VS"]
[266,"Оренбургская область","Кваркенский муниципальный район","53622000","Красноярское","53622417","30360904","Обособленное подразделение \"Оренбургское\" АО \"Главное управление жилищно - коммунального хозяйства\"","5116000922","561045001","Поставка горячей воды","HOT_VS"]
[267,"Оренбургская область","Кваркенский муниципальный район","53622000","Новооренбургское","53622419","30360904","Обособленное подразделение \"Оренбургское\" АО \"Главное управление жилищно - коммунального хозяйства\"","5116000922","561045001","Оказание услуг в сфере горячего водоснабжения","HOT_VS"]
[268,"Оренбургская область","Кваркенский муниципальный район","53622000","Новооренбургское","53622419","30360904","Обособленное подразделение \"Оренбургское\" АО \"Главное управление жилищно - коммунального хозяйства\"","5116000922","561045001","Поставка горячей воды","HOT_VS"]
[269,"Оренбургская область","Кваркенский муниципальный район","53622000","Приморское","53622422","30360904","Обособленное подразделение \"Оренбургское\" АО \"Главное управление жилищно - коммунального хозяйства\"","5116000922","561045001","Оказание услуг в сфере горячего водоснабжения","HOT_VS"]
[270,"Оренбургская область","Кваркенский муниципальный район","53622000","Приморское","53622422","30360904","Обособленное подразделение \"Оренбургское\" АО \"Главное управление жилищно - коммунального хозяйства\"","5116000922","561045001","Поставка горячей воды","HOT_VS"]
[271,"Оренбургская область","Кваркенский муниципальный район","53622000","Таналыкское","53622428","30360904","Обособленное подразделение \"Оренбургское\" АО \"Главное управление жилищно - коммунального хозяйства\"","5116000922","561045001","Оказание услуг в сфере горячего водоснабжения","HOT_VS"]
[272,"Оренбургская область","Кваркенский муниципальный район","53622000","Таналыкское","53622428","30360904","Обособленное подразделение \"Оренбургское\" АО \"Главное управление жилищно - коммунального хозяйства\"","5116000922","561045001","Поставка горячей воды","HOT_VS"]
[273,"Оренбургская область","Кваркенский муниципальный район","53622000","Уральское","53622431","30360904","Обособленное подразделение \"Оренбургское\" АО \"Главное управление жилищно - коммунального хозяйства\"","5116000922","561045001","Оказание услуг в сфере горячего водоснабжения","HOT_VS"]
[274,"Оренбургская область","Кваркенский муниципальный район","53622000","Уральское","53622431","30360904","Обособленное подразделение \"Оренбургское\" АО \"Главное управление жилищно - коммунального хозяйства\"","5116000922","561045001","Поставка горячей воды","HOT_VS"]
[275,"Оренбургская область","Кваркенский муниципальный район","53622000","Уртазымское","53622434","30360904","Обособленное подразделение \"Оренбургское\" АО \"Главное управление жилищно - коммунального хозяйства\"","5116000922","561045001","Оказание услуг в сфере горячего водоснабжения","HOT_VS"]
[276,"Оренбургская область","Кваркенский муниципальный район","53622000","Уртазымское","53622434","30360904","Обособленное подразделение \"Оренбургское\" АО \"Главное управление жилищно - коммунального хозяйства\"","5116000922","561045001","Поставка горячей воды","HOT_VS"]
[277,"Оренбургская область","Красногвардейский муниципальный район","53623000","Дмитриевское","53623402","30360904","Обособленное подразделение \"Оренбургское\" АО \"Главное управление жилищно - коммунального хозяйства\"","5116000922","561045001","Оказание услуг в сфере горячего водоснабжения","HOT_VS"]
[278,"Оренбургская область","Красногвардейский муниципальный район","53623000","Дмитриевское","53623402","30360904","Обособленное подразделение \"Оренбургское\" АО \"Главное управление жилищно - коммунального хозяйства\"","5116000922","561045001","Поставка горячей воды","HOT_VS"]
[279,"Оренбургская область","Красногвардейский муниципальный район","53623000","Залесовское","53623404","30360904","Обособленное подразделение \"Оренбургское\" АО \"Главное управление жилищно - коммунального хозяйства\"","5116000922","561045001","Оказание услуг в сфере горячего водоснабжения","HOT_VS"]
[280,"Оренбургская область","Красногвардейский муниципальный район","53623000","Залесовское","53623404","30360904","Обособленное подразделение \"Оренбургское\" АО \"Главное управление жилищно - коммунального хозяйства\"","5116000922","561045001","Поставка горячей воды","HOT_VS"]
[281,"Оренбургская область","Красногвардейский муниципальный район","53623000","Кинзельское","53623410","30360904","Обособленное подразделение \"Оренбургское\" АО \"Главное управление жилищно - коммунального хозяйства\"","5116000922","561045001","Оказание услуг в сфере горячего водоснабжения","HOT_VS"]
[282,"Оренбургская область","Красногвардейский муниципальный район","53623000","Кинзельское","53623410","30360904","Обособленное подразделение \"Оренбургское\" АО \"Главное управление жилищно - коммунального хозяйства\"","5116000922","561045001","Поставка горячей воды","HOT_VS"]
[283,"Оренбургская область","Красногвардейский муниципальный район","53623000","Нижнекристальское","53623416","30360904","Обособленное подразделение \"Оренбургское\" АО \"Главное управление жилищно - коммунального хозяйства\"","5116000922","561045001","Оказание услуг в сфере горячего водоснабжения","HOT_VS"]
[284,"Оренбургская область","Красногвардейский муниципальный район","53623000","Нижнекристальское","53623416","30360904","Обособленное подразделение \"Оренбургское\" АО \"Главное управление жилищно - коммунального хозяйства\"","5116000922","561045001","Поставка горячей воды","HOT_VS"]
[285,"Оренбургская область","Красногвардейский муниципальный район","53623000","Никольское","53623419","30360904","Обособленное подразделение \"Оренбургское\" АО \"Главное управление жилищно - коммунального хозяйства\"","5116000922","561045001","Оказание услуг в сфере горячего водоснабжения","HOT_VS"]
[286,"Оренбургская область","Красногвардейский муниципальный район","53623000","Никольское","53623419","30360904","Обособленное подразделение \"Оренбургское\" АО \"Главное управление жилищно - коммунального хозяйства\"","5116000922","561045001","Поставка горячей воды","HOT_VS"]
[287,"Оренбургская область","Красногвардейский муниципальный район","53623000","Новоюласенское","53623422","30360904","Обособленное подразделение \"Оренбургское\" АО \"Главное управление жилищно - коммунального хозяйства\"","5116000922","561045001","Оказание услуг в сфере горячего водоснабжения","HOT_VS"]
[288,"Оренбургская область","Красногвардейский муниципальный район","53623000","Новоюласенское","53623422","30360904","Обособленное подразделение \"Оренбургское\" АО \"Главное управление жилищно - коммунального хозяйства\"","5116000922","561045001","Поставка горячей воды","HOT_VS"]
[289,"Оренбургская область","Красногвардейский муниципальный район","53623000","Плешановское","53623424","27966589","Администрация Красногвардейского района","5631004408","563101001","Оказание услуг в сфере горячего водоснабжения","HOT_VS"]
[290,"Оренбургская область","Красногвардейский муниципальный район","53623000","Плешановское","53623424","30360904","Обособленное подразделение \"Оренбургское\" АО \"Главное управление жилищно - коммунального хозяйства\"","5116000922","561045001","Оказание услуг в сфере горячего водоснабжения","HOT_VS"]
[291,"Оренбургская область","Красногвардейский муниципальный район","53623000","Плешановское","53623424","30360904","Обособленное подразделение \"Оренбургское\" АО \"Главное управление жилищно - коммунального хозяйства\"","5116000922","561045001","Поставка горячей воды","HOT_VS"]
[292,"Оренбургская область","Красногвардейский муниципальный район","53623000","Подольское","53623425","30360904","Обособленное подразделение \"Оренбургское\" АО \"Главное управление жилищно - коммунального хозяйства\"","5116000922","561045001","Оказание услуг в сфере горячего водоснабжения","HOT_VS"]
[293,"Оренбургская область","Красногвардейский муниципальный район","53623000","Подольское","53623425","30360904","Обособленное подразделение \"Оренбургское\" АО \"Главное управление жилищно - коммунального хозяйства\"","5116000922","561045001","Поставка горячей воды","HOT_VS"]
[294,"Оренбургская область","Красногвардейский муниципальный район","53623000","Преображенское","53623428","30360904","Обособленное подразделение \"Оренбургское\" АО \"Главное управление жилищно - коммунального хозяйства\"","5116000922","561045001","Оказание услуг в сфере горячего водоснабжения","HOT_VS"]
[295,"Оренбургская область","Красногвардейский муниципальный район","53623000","Преображенское","53623428","30360904","Обособленное подразделение \"Оренбургское\" АО \"Главное управление жилищно - коммунального хозяйства\"","5116000922","561045001","Поставка горячей воды","HOT_VS"]
[296,"Оренбургская область","Красногвардейский муниципальный район","53623000","Пролетарское","53623431","30360904","Обособленное подразделение \"Оренбургское\" АО \"Главное управление жилищно - коммунального хозяйства\"","5116000922","561045001","Оказание услуг в сфере горячего водоснабжения","HOT_VS"]
[297,"Оренбургская область","Красногвардейский муниципальный район","53623000","Пролетарское","53623431","30360904","Обособленное подразделение \"Оренбургское\" АО \"Главное управление жилищно - коммунального хозяйства\"","5116000922","561045001","Поставка горячей воды","HOT_VS"]
[298,"Оренбургская область","Красногвардейский муниципальный район","53623000","Пушкинское","53623434","30360904","Обособленное подразделение \"Оренбургское\" АО \"Главное управление жилищно - коммунального хозяйства\"","5116000922","561045001","Оказание услуг в сфере горячего водоснабжения","HOT_VS"]
[299,"Оренбургская область","Красногвардейский муниципальный район","53623000","Пушкинское","53623434","30360904","Обособленное подразделение \"Оренбургское\" АО \"Главное управление жилищно - коммунального хозяйства\"","5116000922","561045001","Поставка горячей воды","HOT_VS"]
[300,"Оренбургская область","Красногвардейский муниципальный район","53623000","Свердловское","53623437","30360904","Обособленное подразделение \"Оренбургское\" АО \"Главное управление жилищно - коммунального хозяйства\"","5116000922","561045001","Оказание услуг в сфере горячего водоснабжения","HOT_VS"]
[301,"Оренбургская область","Красногвардейский муниципальный район","53623000","Свердловское","53623437","30360904","Обособленное подразделение \"Оренбургское\" АО \"Главное управление жилищно - коммунального хозяйства\"","5116000922","561045001","Поставка горячей воды","HOT_VS"]
[302,"Оренбургская область","Красногвардейский муниципальный район","53623000","Староникольское","53623440","30360904","Обособленное подразделение \"Оренбургское\" АО \"Главное управление жилищно - коммунального хозяйства\"","5116000922","561045001","Оказание услуг в сфере горячего водоснабжения","HOT_VS"]
[303,"Оренбургская область","Красногвардейский муниципальный район","53623000","Староникольское","53623440","30360904","Обособленное подразделение \"Оренбургское\" АО \"Главное управление жилищно - коммунального хозяйства\"","5116000922","561045001","Поставка горячей воды","HOT_VS"]
[304,"Оренбургская область","Красногвардейский муниципальный район","53623000","Токское","53623443","30360904","Обособленное подразделение \"Оренбургское\" АО \"Главное управление жилищно - коммунального хозяйства\"","5116000922","561045001","Оказание услуг в сфере горячего водоснабжения","HOT_VS"]
[305,"Оренбургская область","Красногвардейский муниципальный район","53623000","Токское","53623443","30360904","Обособленное подразделение \"Оренбургское\" АО \"Главное управление жилищно - коммунального хозяйства\"","5116000922","561045001","Поставка горячей воды","HOT_VS"]
[306,"Оренбургская область","Красногвардейский муниципальный район","53623000","Яшкинское","53623446","30360904","Обособленное подразделение \"Оренбургское\" АО \"Главное управление жилищно - коммунального хозяйства\"","5116000922","561045001","Оказание услуг в сфере горячего водоснабжения","HOT_VS"]
[307,"Оренбургская область","Красногвардейский муниципальный район","53623000","Яшкинское","53623446","30360904","Обособленное подразделение \"Оренбургское\" АО \"Главное управление жилищно - коммунального хозяйства\"","5116000922","561045001","Поставка горячей воды","HOT_VS"]
[308,"Оренбургская область","Кувандыкский","53714000","Кувандыкский","53714000","27913254","ООО \"ЭнергоРесурс\"","5612079292","561001001","Оказание услуг в сфере горячего водоснабжения","HOT_VS"]
[309,"Оренбургская область","Курманаевский муниципальный район","53625000","Андреевское","53625402","30360904","Обособленное подразделение \"Оренбургское\" АО \"Главное управление жилищно - коммунального хозяйства\"","5116000922","561045001","Оказание услуг в сфере горячего водоснабжения","HOT_VS"]
[310,"Оренбургская область","Курманаевский муниципальный район","53625000","Андреевское","53625402","30360904","Обособленное подразделение \"Оренбургское\" АО \"Главное управление жилищно - коммунального хозяйства\"","5116000922","561045001","Поставка горячей воды","HOT_VS"]
[311,"Оренбургская область","Курманаевский муниципальный район","53625000","Васильевское","53625407","30360904","Обособленное подразделение \"Оренбургское\" АО \"Главное управление жилищно - коммунального хозяйства\"","5116000922","561045001","Оказание услуг в сфере горячего водоснабжения","HOT_VS"]
[312,"Оренбургская область","Курманаевский муниципальный район","53625000","Васильевское","53625407","30360904","Обособленное подразделение \"Оренбургское\" АО \"Главное управление жилищно - коммунального хозяйства\"","5116000922","561045001","Поставка горячей воды","HOT_VS"]
[313,"Оренбургская область","Курманаевский муниципальный район","53625000","Волжское","53625410","30360904","Обособленное подразделение \"Оренбургское\" АО \"Главное управление жилищно - коммунального хозяйства\"","5116000922","561045001","Оказание услуг в сфере горячего водоснабжения","HOT_VS"]
[314,"Оренбургская область","Курманаевский муниципальный район","53625000","Волжское","53625410","30360904","Обособленное подразделение \"Оренбургское\" АО \"Главное управление жилищно - коммунального хозяйства\"","5116000922","561045001","Поставка горячей воды","HOT_VS"]
[315,"Оренбургская область","Курманаевский муниципальный район","53625000","Гаршинское","53625413","30360904","Обособленное подразделение \"Оренбургское\" АО \"Главное управление жилищно - коммунального хозяйства\"","5116000922","561045001","Оказание услуг в сфере горячего водоснабжения","HOT_VS"]
[316,"Оренбургская область","Курманаевский муниципальный район","53625000","Гаршинское","53625413","30360904","Обособленное подразделение \"Оренбургское\" АО \"Главное управление жилищно - коммунального хозяйства\"","5116000922","561045001","Поставка горячей воды","HOT_VS"]
[317,"Оренбургская область","Курманаевский муниципальный район","53625000","Грачевское","53625416","30360904","Обособленное подразделение \"Оренбургское\" АО \"Главное управление жилищно - коммунального хозяйства\"","5116000922","561045001","Оказание услуг в сфере горячего водоснабжения","HOT_VS"]
[318,"Оренбургская область","Курманаевский муниципальный район","53625000","Грачевское","53625416","30360904","Обособленное подразделение \"Оренбургское\" АО \"Главное управление жилищно - коммунального хозяйства\"","5116000922","561045001","Поставка горячей воды","HOT_VS"]
[319,"Оренбургская область","Курманаевский муниципальный район","53625000","Ефимовское","53625422","30360904","Обособленное подразделение \"Оренбургское\" АО \"Главное управление жилищно - коммунального хозяйства\"","5116000922","561045001","Оказание услуг в сфере горячего водоснабжения","HOT_VS"]
[320,"Оренбургская область","Курманаевский муниципальный район","53625000","Ефимовское","53625422","30360904","Обособленное подразделение \"Оренбургское\" АО \"Главное управление жилищно - коммунального хозяйства\"","5116000922","561045001","Поставка горячей воды","HOT_VS"]
[321,"Оренбургская область","Курманаевский муниципальный район","53625000","Кандауровское","53625425","30360904","Обособленное подразделение \"Оренбургское\" АО \"Главное управление жилищно - коммунального хозяйства\"","5116000922","561045001","Оказание услуг в сфере горячего водоснабжения","HOT_VS"]
[322,"Оренбургская область","Курманаевский муниципальный район","53625000","Кандауровское","53625425","30360904","Обособленное подразделение \"Оренбургское\" АО \"Главное управление жилищно - коммунального хозяйства\"","5116000922","561045001","Поставка горячей воды","HOT_VS"]
[323,"Оренбургская область","Курманаевский муниципальный район","53625000","Костинское","53625428","30360904","Обособленное подразделение \"Оренбургское\" АО \"Главное управление жилищно - коммунального хозяйства\"","5116000922","561045001","Оказание услуг в сфере горячего водоснабжения","HOT_VS"]
[324,"Оренбургская область","Курманаевский муниципальный район","53625000","Костинское","53625428","30360904","Обособленное подразделение \"Оренбургское\" АО \"Главное управление жилищно - коммунального хозяйства\"","5116000922","561045001","Поставка горячей воды","HOT_VS"]
[325,"Оренбургская область","Курманаевский муниципальный район","53625000","Курманаевское","53625431","30360904","Обособленное подразделение \"Оренбургское\" АО \"Главное управление жилищно - коммунального хозяйства\"","5116000922","561045001","Оказание услуг в сфере горячего водоснабжения","HOT_VS"]
[326,"Оренбургская область","Курманаевский муниципальный район","53625000","Курманаевское","53625431","30360904","Обособленное подразделение \"Оренбургское\" АО \"Главное управление жилищно - коммунального хозяйства\"","5116000922","561045001","Поставка горячей воды","HOT_VS"]
[327,"Оренбургская область","Курманаевский муниципальный район","53625000","Кутушинское","53625434","30360904","Обособленное подразделение \"Оренбургское\" АО \"Главное управление жилищно - коммунального хозяйства\"","5116000922","561045001","Оказание услуг в сфере горячего водоснабжения","HOT_VS"]
[328,"Оренбургская область","Курманаевский муниципальный район","53625000","Кутушинское","53625434","30360904","Обособленное подразделение \"Оренбургское\" АО \"Главное управление жилищно - коммунального хозяйства\"","5116000922","561045001","Поставка горячей воды","HOT_VS"]
[329,"Оренбургская область","Курманаевский муниципальный район","53625000","Лабазинское","53625437","30360904","Обособленное подразделение \"Оренбургское\" АО \"Главное управление жилищно - коммунального хозяйства\"","5116000922","561045001","Оказание услуг в сфере горячего водоснабжения","HOT_VS"]
[330,"Оренбургская область","Курманаевский муниципальный район","53625000","Лабазинское","53625437","30360904","Обособленное подразделение \"Оренбургское\" АО \"Главное управление жилищно - коммунального хозяйства\"","5116000922","561045001","Поставка горячей воды","HOT_VS"]
[331,"Оренбургская область","Курманаевский муниципальный район","53625000","Лаврентьевское","53625440","30360904","Обособленное подразделение \"Оренбургское\" АО \"Главное управление жилищно - коммунального хозяйства\"","5116000922","561045001","Оказание услуг в сфере горячего водоснабжения","HOT_VS"]
[332,"Оренбургская область","Курманаевский муниципальный район","53625000","Лаврентьевское","53625440","30360904","Обособленное подразделение \"Оренбургское\" АО \"Главное управление жилищно - коммунального хозяйства\"","5116000922","561045001","Поставка горячей воды","HOT_VS"]
[333,"Оренбургская область","Курманаевский муниципальный район","53625000","Михайловское","53625446","30360904","Обособленное подразделение \"Оренбургское\" АО \"Главное управление жилищно - коммунального хозяйства\"","5116000922","561045001","Оказание услуг в сфере горячего водоснабжения","HOT_VS"]
[334,"Оренбургская область","Курманаевский муниципальный район","53625000","Михайловское","53625446","30360904","Обособленное подразделение \"Оренбургское\" АО \"Главное управление жилищно - коммунального хозяйства\"","5116000922","561045001","Поставка горячей воды","HOT_VS"]
[335,"Оренбургская область","Курманаевский муниципальный район","53625000","Покровское","53625449","30360904","Обособленное подразделение \"Оренбургское\" АО \"Главное управление жилищно - коммунального хозяйства\"","5116000922","561045001","Оказание услуг в сфере горячего водоснабжения","HOT_VS"]
[336,"Оренбургская область","Курманаевский муниципальный район","53625000","Покровское","53625449","30360904","Обособленное подразделение \"Оренбургское\" АО \"Главное управление жилищно - коммунального хозяйства\"","5116000922","561045001","Поставка горячей воды","HOT_VS"]
[337,"Оренбургская область","Курманаевский муниципальный район","53625000","Ромашкинское","53625455","30360904","Обособленное подразделение \"Оренбургское\" АО \"Главное управление жилищно - коммунального хозяйства\"","5116000922","561045001","Оказание услуг в сфере горячего водоснабжения","HOT_VS"]
[338,"Оренбургская область","Курманаевский муниципальный район","53625000","Ромашкинское","53625455","30360904","Обособленное подразделение \"Оренбургское\" АО \"Главное управление жилищно - коммунального хозяйства\"","5116000922","561045001","Поставка горячей воды","HOT_VS"]
[339,"Оренбургская область","Новоорский муниципальный район","53630000","Будамшинское","53630402","27986464","Администрация Новоорского Района","5635006614","563501001","Оказание услуг в сфере горячего водоснабжения","HOT_VS"]
[340,"Оренбургская область","Новоорский муниципальный район","53630000","Будамшинское","53630402","27501251","ЗАО \"ОТК\" Коммунэнерго\"","5609046032","561101001","Оказание услуг в сфере горячего водоснабжения","HOT_VS"]
[341,"Оренбургская область","Новоорский муниципальный район","53630000","Будамшинское","53630402","27969523","ООО \"Новоорская теплоснабжающая организация\"","5635021059","563501001","Оказание услуг в сфере горячего водоснабжения","HOT_VS"]
[342,"Оренбургская область","Новоорский муниципальный район","53630000","Будамшинское","53630402","30360904","Обособленное подразделение \"Оренбургское\" АО \"Главное управление жилищно - коммунального хозяйства\"","5116000922","561045001","Оказание услуг в сфере горячего водоснабжения","HOT_VS"]
[343,"Оренбургская область","Новоорский муниципальный район","53630000","Будамшинское","53630402","30360904","Обособленное подразделение \"Оренбургское\" АО \"Главное управление жилищно - коммунального хозяйства\"","5116000922","561045001","Поставка горячей воды","HOT_VS"]
[344,"Оренбургская область","Новоорский муниципальный район","53630000","Будамшинское","53630402","26324398","филиал \"Ириклинская ГРЭС \" АО \"Интер РАО - Электрогенерация\"","7704784450","563543001","Оказание услуг в сфере горячего водоснабжения","HOT_VS"]
[345,"Оренбургская область","Новоорский муниципальный район","53630000","Горьковское","53630404","27986464","Администрация Новоорского Района","5635006614","563501001","Оказание услуг в сфере горячего водоснабжения","HOT_VS"]
[346,"Оренбургская область","Новоорский муниципальный район","53630000","Горьковское","53630404","27501251","ЗАО \"ОТК\" Коммунэнерго\"","5609046032","561101001","Оказание услуг в сфере горячего водоснабжения","HOT_VS"]
[347,"Оренбургская область","Новоорский муниципальный район","53630000","Горьковское","53630404","27969523","ООО \"Новоорская теплоснабжающая организация\"","5635021059","563501001","Оказание услуг в сфере горячего водоснабжения","HOT_VS"]
[348,"Оренбургская область","Новоорский муниципальный район","53630000","Горьковское","53630404","30360904","Обособленное подразделение \"Оренбургское\" АО \"Главное управление жилищно - коммунального хозяйства\"","5116000922","561045001","Оказание услуг в сфере горячего водоснабжения","HOT_VS"]
[349,"Оренбургская область","Новоорский муниципальный район","53630000","Горьковское","53630404","30360904","Обособленное подразделение \"Оренбургское\" АО \"Главное управление жилищно - коммунального хозяйства\"","5116000922","561045001","Поставка горячей воды","HOT_VS"]
[350,"Оренбургская область","Новоорский муниципальный район","53630000","Горьковское","53630404","26324398","филиал \"Ириклинская ГРЭС \" АО \"Интер РАО - Электрогенерация\"","7704784450","563543001","Оказание услуг в сфере горячего водоснабжения","HOT_VS"]
[351,"Оренбургская область","Новоорский муниципальный район","53630000","Добровольское","53630406","27986464","Администрация Новоорского Района","5635006614","563501001","Оказание услуг в сфере горячего водоснабжения","HOT_VS"]
[352,"Оренбургская область","Новоорский муниципальный район","53630000","Добровольское","53630406","27501251","ЗАО \"ОТК\" Коммунэнерго\"","5609046032","561101001","Оказание услуг в сфере горячего водоснабжения","HOT_VS"]
[353,"Оренбургская область","Новоорский муниципальный район","53630000","Добровольское","53630406","27969523","ООО \"Новоорская теплоснабжающая организация\"","5635021059","563501001","Оказание услуг в сфере горячего водоснабжения","HOT_VS"]
[354,"Оренбургская область","Новоорский муниципальный район","53630000","Добровольское","53630406","30360904","Обособленное подразделение \"Оренбургское\" АО \"Главное управление жилищно - коммунального хозяйства\"","5116000922","561045001","Оказание услуг в сфере горячего водоснабжения","HOT_VS"]
[355,"Оренбургская область","Новоорский муниципальный район","53630000","Добровольское","53630406","30360904","Обособленное подразделение \"Оренбургское\" АО \"Главное управление жилищно - коммунального хозяйства\"","5116000922","561045001","Поставка горячей воды","HOT_VS"]
[356,"Оренбургская область","Новоорский муниципальный район","53630000","Добровольское","53630406","26324398","филиал \"Ириклинская ГРЭС \" АО \"Интер РАО - Электрогенерация\"","7704784450","563543001","Оказание услуг в сфере горячего водоснабжения","HOT_VS"]
[357,"Оренбургская область","Новоорский муниципальный район","53630000","Караганское","53630408","27986464","Администрация Новоорского Района","5635006614","563501001","Оказание услуг в сфере горячего водоснабжения","HOT_VS"]
[358,"Оренбургская область","Новоорский муниципальный район","53630000","Караганское","53630408","27501251","ЗАО \"ОТК\" Коммунэнерго\"","5609046032","561101001","Оказание услуг в сфере горячего водоснабжения","HOT_VS"]
[359,"Оренбургская область","Новоорский муниципальный район","53630000","Караганское","53630408","27969523","ООО \"Новоорская теплоснабжающая организация\"","5635021059","563501001","Оказание услуг в сфере горячего водоснабжения","HOT_VS"]
[360,"Оренбургская область","Новоорский муниципальный район","53630000","Караганское","53630408","30360904","Обособленное подразделение \"Оренбургское\" АО \"Главное управление жилищно - коммунального хозяйства\"","5116000922","561045001","Оказание услуг в сфере горячего водоснабжения","HOT_VS"]
[361,"Оренбургская область","Новоорский муниципальный район","53630000","Караганское","53630408","30360904","Обособленное подразделение \"Оренбургское\" АО \"Главное управление жилищно - коммунального хозяйства\"","5116000922","561045001","Поставка горячей воды","HOT_VS"]
[362,"Оренбургская область","Новоорский муниципальный район","53630000","Караганское","53630408","26324398","филиал \"Ириклинская ГРЭС \" АО \"Интер РАО - Электрогенерация\"","7704784450","563543001","Оказание услуг в сфере горячего водоснабжения","HOT_VS"]
[363,"Оренбургская область","Новоорский муниципальный район","53630000","Кумакское","53630413","27986464","Администрация Новоорского Района","5635006614","563501001","Оказание услуг в сфере горячего водоснабжения","HOT_VS"]
[364,"Оренбургская область","Новоорский муниципальный район","53630000","Кумакское","53630413","27501251","ЗАО \"ОТК\" Коммунэнерго\"","5609046032","561101001","Оказание услуг в сфере горячего водоснабжения","HOT_VS"]
[365,"Оренбургская область","Новоорский муниципальный район","53630000","Кумакское","53630413","27969523","ООО \"Новоорская теплоснабжающая организация\"","5635021059","563501001","Оказание услуг в сфере горячего водоснабжения","HOT_VS"]
[366,"Оренбургская область","Новоорский муниципальный район","53630000","Кумакское","53630413","30360904","Обособленное подразделение \"Оренбургское\" АО \"Главное управление жилищно - коммунального хозяйства\"","5116000922","561045001","Оказание услуг в сфере горячего водоснабжения","HOT_VS"]
[367,"Оренбургская область","Новоорский муниципальный район","53630000","Кумакское","53630413","30360904","Обособленное подразделение \"Оренбургское\" АО \"Главное управление жилищно - коммунального хозяйства\"","5116000922","561045001","Поставка горячей воды","HOT_VS"]
[368,"Оренбургская область","Новоорский муниципальный район","53630000","Кумакское","53630413","26324398","филиал \"Ириклинская ГРЭС \" АО \"Интер РАО - Электрогенерация\"","7704784450","563543001","Оказание услуг в сфере горячего водоснабжения","HOT_VS"]
[369,"Оренбургская область","Новоорский муниципальный район","53630000","Новоорское","53630414","27986464","Администрация Новоорского Района","5635006614","563501001","Оказание услуг в сфере горячего водоснабжения","HOT_VS"]
[370,"Оренбургская область","Новоорский муниципальный район","53630000","Новоорское","53630414","27501251","ЗАО \"ОТК\" Коммунэнерго\"","5609046032","561101001","Оказание услуг в сфере горячего водоснабжения","HOT_VS"]
[371,"Оренбургская область","Новоорский муниципальный район","53630000","Новоорское","53630414","27969523","ООО \"Новоорская теплоснабжающая организация\"","5635021059","563501001","Оказание услуг в сфере горячего водоснабжения","HOT_VS"]
[372,"Оренбургская область","Новоорский муниципальный район","53630000","Новоорское","53630414","30360904","Обособленное подразделение \"Оренбургское\" АО \"Главное управление жилищно - коммунального хозяйства\"","5116000922","561045001","Оказание услуг в сфере горячего водоснабжения","HOT_VS"]
[373,"Оренбургская область","Новоорский муниципальный район","53630000","Новоорское","53630414","30360904","Обособленное подразделение \"Оренбургское\" АО \"Главное управление жилищно - коммунального хозяйства\"","5116000922","561045001","Поставка горячей воды","HOT_VS"]
[374,"Оренбургская область","Новоорский муниципальный район","53630000","Новоорское","53630414","26324398","филиал \"Ириклинская ГРЭС \" АО \"Интер РАО - Электрогенерация\"","7704784450","563543001","Оказание услуг в сфере горячего водоснабжения","HOT_VS"]
[375,"Оренбургская область","Новоорский муниципальный район","53630000","Приреченское","53630415","27986464","Администрация Новоорского Района","5635006614","563501001","Оказание услуг в сфере горячего водоснабжения","HOT_VS"]
[376,"Оренбургская область","Новоорский муниципальный район","53630000","Приреченское","53630415","27501251","ЗАО \"ОТК\" Коммунэнерго\"","5609046032","561101001","Оказание услуг в сфере горячего водоснабжения","HOT_VS"]
[377,"Оренбургская область","Новоорский муниципальный район","53630000","Приреченское","53630415","27969523","ООО \"Новоорская теплоснабжающая организация\"","5635021059","563501001","Оказание услуг в сфере горячего водоснабжения","HOT_VS"]
[378,"Оренбургская область","Новоорский муниципальный район","53630000","Приреченское","53630415","30360904","Обособленное подразделение \"Оренбургское\" АО \"Главное управление жилищно - коммунального хозяйства\"","5116000922","561045001","Оказание услуг в сфере горячего водоснабжения","HOT_VS"]
[379,"Оренбургская область","Новоорский муниципальный район","53630000","Приреченское","53630415","30360904","Обособленное подразделение \"Оренбургское\" АО \"Главное управление жилищно - коммунального хозяйства\"","5116000922","561045001","Поставка горячей воды","HOT_VS"]
[380,"Оренбургская область","Новоорский муниципальный район","53630000","Приреченское","53630415","26324398","филиал \"Ириклинская ГРЭС \" АО \"Интер РАО - Электрогенерация\"","7704784450","563543001","Оказание услуг в сфере горячего водоснабжения","HOT_VS"]
[381,"Оренбургская область","Новоорский муниципальный район","53630000","Чапаевское","53630419","27986464","Администрация Новоорского Района","5635006614","563501001","Оказание услуг в сфере горячего водоснабжения","HOT_VS"]
[382,"Оренбургская область","Новоорский муниципальный район","53630000","Чапаевское","53630419","27501251","ЗАО \"ОТК\" Коммунэнерго\"","5609046032","561101001","Оказание услуг в сфере горячего водоснабжения","HOT_VS"]
[383,"Оренбургская область","Новоорский муниципальный район","53630000","Чапаевское","53630419","27969523","ООО \"Новоорская теплоснабжающая организация\"","5635021059","563501001","Оказание услуг в сфере горячего водоснабжения","HOT_VS"]
[384,"Оренбургская область","Новоорский муниципальный район","53630000","Чапаевское","53630419","30360904","Обособленное подразделение \"Оренбургское\" АО \"Главное управление жилищно - коммунального хозяйства\"","5116000922","561045001","Оказание услуг в сфере горячего водоснабжения","HOT_VS"]
[385,"Оренбургская область","Новоорский муниципальный район","53630000","Чапаевское","53630419","30360904","Обособленное подразделение \"Оренбургское\" АО \"Главное управление жилищно - коммунального хозяйства\"","5116000922","561045001","Поставка горячей воды","HOT_VS"]
[386,"Оренбургская область","Новоорский муниципальный район","53630000","Чапаевское","53630419","26324398","филиал \"Ириклинская ГРЭС \" АО \"Интер РАО - Электрогенерация\"","7704784450","563543001","Оказание услуг в сфере горячего водоснабжения","HOT_VS"]
[387,"Оренбургская область","Новоорский муниципальный район","53630000","Энергетикское","53630440","27986464","Администрация Новоорского Района","5635006614","563501001","Оказание услуг в сфере горячего водоснабжения","HOT_VS"]
[388,"Оренбургская область","Новоорский муниципальный район","53630000","Энергетикское","53630440","27501251","ЗАО \"ОТК\" Коммунэнерго\"","5609046032","561101001","Оказание услуг в сфере горячего водоснабжения","HOT_VS"]
[389,"Оренбургская область","Новоорский муниципальный район","53630000","Энергетикское","53630440","26359098","МУ \"УЖКХ п.Энергетик\"","5635008227","563501001","Оказание услуг в сфере горячего водоснабжения","HOT_VS"]
[390,"Оренбургская область","Новоорский муниципальный район","53630000","Энергетикское","53630440","27969523","ООО \"Новоорская теплоснабжающая организация\"","5635021059","563501001","Оказание услуг в сфере горячего водоснабжения","HOT_VS"]
[391,"Оренбургская область","Новоорский муниципальный район","53630000","Энергетикское","53630440","30360904","Обособленное подразделение \"Оренбургское\" АО \"Главное управление жилищно - коммунального хозяйства\"","5116000922","561045001","Оказание услуг в сфере горячего водоснабжения","HOT_VS"]
[392,"Оренбургская область","Новоорский муниципальный район","53630000","Энергетикское","53630440","30360904","Обособленное подразделение \"Оренбургское\" АО \"Главное управление жилищно - коммунального хозяйства\"","5116000922","561045001","Поставка горячей воды","HOT_VS"]
[393,"Оренбургская область","Новоорский муниципальный район","53630000","Энергетикское","53630440","26324398","филиал \"Ириклинская ГРЭС \" АО \"Интер РАО - Электрогенерация\"","7704784450","563543001","Оказание услуг в сфере горячего водоснабжения","HOT_VS"]
[394,"Оренбургская область","Октябрьский муниципальный район","53633000","Октябрьское","53633440","27571704","МУП ЖКХ «Октябрьское»","5637020685","563701001","Оказание услуг в сфере горячего водоснабжения","HOT_VS"]
[395,"Оренбургская область","Оренбургский муниципальный район","53634000","Архангеловское","53634402","27991671","Администрация Оренбургского района","5638018689","563801001","Оказание услуг в сфере горячего водоснабжения","HOT_VS"]
[396,"Оренбургская область","Оренбургский муниципальный район","53634000","Архангеловское","53634402","30360904","Обособленное подразделение \"Оренбургское\" АО \"Главное управление жилищно - коммунального хозяйства\"","5116000922","561045001","Оказание услуг в сфере горячего водоснабжения","HOT_VS"]
[397,"Оренбургская область","Оренбургский муниципальный район","53634000","Архангеловское","53634402","30360904","Обособленное подразделение \"Оренбургское\" АО \"Главное управление жилищно - коммунального хозяйства\"","5116000922","561045001","Поставка горячей воды","HOT_VS"]
[398,"Оренбургская область","Оренбургский муниципальный район","53634000","Благословенское","53634405","27991671","Администрация Оренбургского района","5638018689","563801001","Оказание услуг в сфере горячего водоснабжения","HOT_VS"]
[399,"Оренбургская область","Оренбургский муниципальный район","53634000","Благословенское","53634405","30360904","Обособленное подразделение \"Оренбургское\" АО \"Главное управление жилищно - коммунального хозяйства\"","5116000922","561045001","Оказание услуг в сфере горячего водоснабжения","HOT_VS"]
[400,"Оренбургская область","Оренбургский муниципальный район","53634000","Благословенское","53634405","30360904","Обособленное подразделение \"Оренбургское\" АО \"Главное управление жилищно - коммунального хозяйства\"","5116000922","561045001","Поставка горячей воды","HOT_VS"]
[401,"Оренбургская область","Оренбургский муниципальный район","53634000","Бродецкое","53634404","27991671","Администрация Оренбургского района","5638018689","563801001","Оказание услуг в сфере горячего водоснабжения","HOT_VS"]
[402,"Оренбургская область","Оренбургский муниципальный район","53634000","Бродецкое","53634404","30360904","Обособленное подразделение \"Оренбургское\" АО \"Главное управление жилищно - коммунального хозяйства\"","5116000922","561045001","Оказание услуг в сфере горячего водоснабжения","HOT_VS"]
[403,"Оренбургская область","Оренбургский муниципальный район","53634000","Бродецкое","53634404","30360904","Обособленное подразделение \"Оренбургское\" АО \"Главное управление жилищно - коммунального хозяйства\"","5116000922","561045001","Поставка горячей воды","HOT_VS"]
[404,"Оренбургская область","Оренбургский муниципальный район","53634000","Весеннее","53634406","27991671","Администрация Оренбургского района","5638018689","563801001","Оказание услуг в сфере горячего водоснабжения","HOT_VS"]
[405,"Оренбургская область","Оренбургский муниципальный район","53634000","Весеннее","53634406","30360904","Обособленное подразделение \"Оренбургское\" АО \"Главное управление жилищно - коммунального хозяйства\"","5116000922","561045001","Оказание услуг в сфере горячего водоснабжения","HOT_VS"]
[406,"Оренбургская область","Оренбургский муниципальный район","53634000","Весеннее","53634406","30360904","Обособленное подразделение \"Оренбургское\" АО \"Главное управление жилищно - коммунального хозяйства\"","5116000922","561045001","Поставка горячей воды","HOT_VS"]
[407,"Оренбургская область","Оренбургский муниципальный район","53634000","Горное","53634407","27991671","Администрация Оренбургского района","5638018689","563801001","Оказание услуг в сфере горячего водоснабжения","HOT_VS"]
[408,"Оренбургская область","Оренбургский муниципальный район","53634000","Горное","53634407","30360904","Обособленное подразделение \"Оренбургское\" АО \"Главное управление жилищно - коммунального хозяйства\"","5116000922","561045001","Оказание услуг в сфере горячего водоснабжения","HOT_VS"]
[409,"Оренбургская область","Оренбургский муниципальный район","53634000","Горное","53634407","30360904","Обособленное подразделение \"Оренбургское\" АО \"Главное управление жилищно - коммунального хозяйства\"","5116000922","561045001","Поставка горячей воды","HOT_VS"]
[410,"Оренбургская область","Оренбургский муниципальный район","53634000","Дедуровское","53634413","27991671","Администрация Оренбургского района","5638018689","563801001","Оказание услуг в сфере горячего водоснабжения","HOT_VS"]
[411,"Оренбургская область","Оренбургский муниципальный район","53634000","Дедуровское","53634413","30360904","Обособленное подразделение \"Оренбургское\" АО \"Главное управление жилищно - коммунального хозяйства\"","5116000922","561045001","Оказание услуг в сфере горячего водоснабжения","HOT_VS"]
[412,"Оренбургская область","Оренбургский муниципальный район","53634000","Дедуровское","53634413","30360904","Обособленное подразделение \"Оренбургское\" АО \"Главное управление жилищно - коммунального хозяйства\"","5116000922","561045001","Поставка горячей воды","HOT_VS"]
[413,"Оренбургская область","Оренбургский муниципальный район","53634000","Зауральное","53634416","27991671","Администрация Оренбургского района","5638018689","563801001","Оказание услуг в сфере горячего водоснабжения","HOT_VS"]
[414,"Оренбургская область","Оренбургский муниципальный район","53634000","Зауральное","53634416","30360904","Обособленное подразделение \"Оренбургское\" АО \"Главное управление жилищно - коммунального хозяйства\"","5116000922","561045001","Оказание услуг в сфере горячего водоснабжения","HOT_VS"]
[415,"Оренбургская область","Оренбургский муниципальный район","53634000","Зауральное","53634416","30360904","Обособленное подразделение \"Оренбургское\" АО \"Главное управление жилищно - коммунального хозяйства\"","5116000922","561045001","Поставка горячей воды","HOT_VS"]
[416,"Оренбургская область","Оренбургский муниципальный район","53634000","Зубаревское","53634419","27991671","Администрация Оренбургского района","5638018689","563801001","Оказание услуг в сфере горячего водоснабжения","HOT_VS"]
[417,"Оренбургская область","Оренбургский муниципальный район","53634000","Зубаревское","53634419","30360904","Обособленное подразделение \"Оренбургское\" АО \"Главное управление жилищно - коммунального хозяйства\"","5116000922","561045001","Оказание услуг в сфере горячего водоснабжения","HOT_VS"]
[418,"Оренбургская область","Оренбургский муниципальный район","53634000","Зубаревское","53634419","30360904","Обособленное подразделение \"Оренбургское\" АО \"Главное управление жилищно - коммунального хозяйства\"","5116000922","561045001","Поставка горячей воды","HOT_VS"]
[419,"Оренбургская область","Оренбургский муниципальный район","53634000","Ивановское","53634422","27991671","Администрация Оренбургского района","5638018689","563801001","Оказание услуг в сфере горячего водоснабжения","HOT_VS"]
[420,"Оренбургская область","Оренбургский муниципальный район","53634000","Ивановское","53634422","30360904","Обособленное подразделение \"Оренбургское\" АО \"Главное управление жилищно - коммунального хозяйства\"","5116000922","561045001","Оказание услуг в сфере горячего водоснабжения","HOT_VS"]
[421,"Оренбургская область","Оренбургский муниципальный район","53634000","Ивановское","53634422","30360904","Обособленное подразделение \"Оренбургское\" АО \"Главное управление жилищно - коммунального хозяйства\"","5116000922","561045001","Поставка горячей воды","HOT_VS"]
[422,"Оренбургская область","Оренбургский муниципальный район","53634000","Каменноозерное","53634425","27991671","Администрация Оренбургского района","5638018689","563801001","Оказание услуг в сфере горячего водоснабжения","HOT_VS"]
[423,"Оренбургская область","Оренбургский муниципальный район","53634000","Каменноозерное","53634425","30360904","Обособленное подразделение \"Оренбургское\" АО \"Главное управление жилищно - коммунального хозяйства\"","5116000922","561045001","Оказание услуг в сфере горячего водоснабжения","HOT_VS"]
[424,"Оренбургская область","Оренбургский муниципальный район","53634000","Каменноозерное","53634425","30360904","Обособленное подразделение \"Оренбургское\" АО \"Главное управление жилищно - коммунального хозяйства\"","5116000922","561045001","Поставка горячей воды","HOT_VS"]
[425,"Оренбургская область","Оренбургский муниципальный район","53634000","Караванное","53634428","27991671","Администрация Оренбургского района","5638018689","563801001","Оказание услуг в сфере горячего водоснабжения","HOT_VS"]
[426,"Оренбургская область","Оренбургский муниципальный район","53634000","Караванное","53634428","30360904","Обособленное подразделение \"Оренбургское\" АО \"Главное управление жилищно - коммунального хозяйства\"","5116000922","561045001","Оказание услуг в сфере горячего водоснабжения","HOT_VS"]
[427,"Оренбургская область","Оренбургский муниципальный район","53634000","Караванное","53634428","30360904","Обособленное подразделение \"Оренбургское\" АО \"Главное управление жилищно - коммунального хозяйства\"","5116000922","561045001","Поставка горячей воды","HOT_VS"]
[428,"Оренбургская область","Оренбургский муниципальный район","53634000","Красноуральское","53634431","27991671","Администрация Оренбургского района","5638018689","563801001","Оказание услуг в сфере горячего водоснабжения","HOT_VS"]
[429,"Оренбургская область","Оренбургский муниципальный район","53634000","Красноуральское","53634431","30360904","Обособленное подразделение \"Оренбургское\" АО \"Главное управление жилищно - коммунального хозяйства\"","5116000922","561045001","Оказание услуг в сфере горячего водоснабжения","HOT_VS"]
[430,"Оренбургская область","Оренбургский муниципальный район","53634000","Красноуральское","53634431","30360904","Обособленное подразделение \"Оренбургское\" АО \"Главное управление жилищно - коммунального хозяйства\"","5116000922","561045001","Поставка горячей воды","HOT_VS"]
[431,"Оренбургская область","Оренбургский муниципальный район","53634000","Ленинское","53634432","27991671","Администрация Оренбургского района","5638018689","563801001","Оказание услуг в сфере горячего водоснабжения","HOT_VS"]
[432,"Оренбургская область","Оренбургский муниципальный район","53634000","Ленинское","53634432","30360904","Обособленное подразделение \"Оренбургское\" АО \"Главное управление жилищно - коммунального хозяйства\"","5116000922","561045001","Оказание услуг в сфере горячего водоснабжения","HOT_VS"]
[433,"Оренбургская область","Оренбургский муниципальный район","53634000","Ленинское","53634432","30360904","Обособленное подразделение \"Оренбургское\" АО \"Главное управление жилищно - коммунального хозяйства\"","5116000922","561045001","Поставка горячей воды","HOT_VS"]
[434,"Оренбургская область","Оренбургский муниципальный район","53634000","Нежинское","53634434","27991671","Администрация Оренбургского района","5638018689","563801001","Оказание услуг в сфере горячего водоснабжения","HOT_VS"]
[435,"Оренбургская область","Оренбургский муниципальный район","53634000","Нежинское","53634434","30360904","Обособленное подразделение \"Оренбургское\" АО \"Главное управление жилищно - коммунального хозяйства\"","5116000922","561045001","Оказание услуг в сфере горячего водоснабжения","HOT_VS"]
[436,"Оренбургская область","Оренбургский муниципальный район","53634000","Нежинское","53634434","30360904","Обособленное подразделение \"Оренбургское\" АО \"Главное управление жилищно - коммунального хозяйства\"","5116000922","561045001","Поставка горячей воды","HOT_VS"]
[437,"Оренбургская область","Оренбургский муниципальный район","53634000","Нижнепавловское","53634437","27991671","Администрация Оренбургского района","5638018689","563801001","Оказание услуг в сфере горячего водоснабжения","HOT_VS"]
[438,"Оренбургская область","Оренбургский муниципальный район","53634000","Нижнепавловское","53634437","30360904","Обособленное подразделение \"Оренбургское\" АО \"Главное управление жилищно - коммунального хозяйства\"","5116000922","561045001","Оказание услуг в сфере горячего водоснабжения","HOT_VS"]
[439,"Оренбургская область","Оренбургский муниципальный район","53634000","Нижнепавловское","53634437","30360904","Обособленное подразделение \"Оренбургское\" АО \"Главное управление жилищно - коммунального хозяйства\"","5116000922","561045001","Поставка горячей воды","HOT_VS"]
[440,"Оренбургская область","Оренбургский муниципальный район","53634000","Никольское","53634440","27991671","Администрация Оренбургского района","5638018689","563801001","Оказание услуг в сфере горячего водоснабжения","HOT_VS"]
[441,"Оренбургская область","Оренбургский муниципальный район","53634000","Никольское","53634440","30360904","Обособленное подразделение \"Оренбургское\" АО \"Главное управление жилищно - коммунального хозяйства\"","5116000922","561045001","Оказание услуг в сфере горячего водоснабжения","HOT_VS"]
[442,"Оренбургская область","Оренбургский муниципальный район","53634000","Никольское","53634440","30360904","Обособленное подразделение \"Оренбургское\" АО \"Главное управление жилищно - коммунального хозяйства\"","5116000922","561045001","Поставка горячей воды","HOT_VS"]
[443,"Оренбургская область","Оренбургский муниципальный район","53634000","Первомайское","53634445","26485308","АО “РЭУ” “Самарский”","7714783092","631143001","Оказание услуг в сфере горячего водоснабжения","HOT_VS"]
[444,"Оренбургская область","Оренбургский муниципальный район","53634000","Первомайское","53634445","27991671","Администрация Оренбургского района","5638018689","563801001","Оказание услуг в сфере горячего водоснабжения","HOT_VS"]
[445,"Оренбургская область","Оренбургский муниципальный район","53634000","Первомайское","53634445","26442961","МУП \"ЖКХ Первомайское\"","5638031922","563801001","Оказание услуг в сфере горячего водоснабжения","HOT_VS"]
[446,"Оренбургская область","Оренбургский муниципальный район","53634000","Первомайское","53634445","30360904","Обособленное подразделение \"Оренбургское\" АО \"Главное управление жилищно - коммунального хозяйства\"","5116000922","561045001","Оказание услуг в сфере горячего водоснабжения","HOT_VS"]
[447,"Оренбургская область","Оренбургский муниципальный район","53634000","Первомайское","53634445","30360904","Обособленное подразделение \"Оренбургское\" АО \"Главное управление жилищно - коммунального хозяйства\"","5116000922","561045001","Поставка горячей воды","HOT_VS"]
[448,"Оренбургская область","Оренбургский муниципальный район","53634000","Подгородне-Покровское","53634446","27991671","Администрация Оренбургского района","5638018689","563801001","Оказание услуг в сфере горячего водоснабжения","HOT_VS"]
[449,"Оренбургская область","Оренбургский муниципальный район","53634000","Подгородне-Покровское","53634446","30360904","Обособленное подразделение \"Оренбургское\" АО \"Главное управление жилищно - коммунального хозяйства\"","5116000922","561045001","Оказание услуг в сфере горячего водоснабжения","HOT_VS"]
[450,"Оренбургская область","Оренбургский муниципальный район","53634000","Подгородне-Покровское","53634446","30360904","Обособленное подразделение \"Оренбургское\" АО \"Главное управление жилищно - коммунального хозяйства\"","5116000922","561045001","Поставка горячей воды","HOT_VS"]
[451,"Оренбургская область","Оренбургский муниципальный район","53634000","Пречистинское","53634450","27991671","Администрация Оренбургского района","5638018689","563801001","Оказание услуг в сфере горячего водоснабжения","HOT_VS"]
[452,"Оренбургская область","Оренбургский муниципальный район","53634000","Пречистинское","53634450","30360904","Обособленное подразделение \"Оренбургское\" АО \"Главное управление жилищно - коммунального хозяйства\"","5116000922","561045001","Оказание услуг в сфере горячего водоснабжения","HOT_VS"]
[453,"Оренбургская область","Оренбургский муниципальный район","53634000","Пречистинское","53634450","30360904","Обособленное подразделение \"Оренбургское\" АО \"Главное управление жилищно - коммунального хозяйства\"","5116000922","561045001","Поставка горячей воды","HOT_VS"]
[454,"Оренбургская область","Оренбургский муниципальный район","53634000","Пригородное","53634448","27991671","Администрация Оренбургского района","5638018689","563801001","Оказание услуг в сфере горячего водоснабжения","HOT_VS"]
[455,"Оренбургская область","Оренбургский муниципальный район","53634000","Пригородное","53634448","30360904","Обособленное подразделение \"Оренбургское\" АО \"Главное управление жилищно - коммунального хозяйства\"","5116000922","561045001","Оказание услуг в сфере горячего водоснабжения","HOT_VS"]
[456,"Оренбургская область","Оренбургский муниципальный район","53634000","Пригородное","53634448","30360904","Обособленное подразделение \"Оренбургское\" АО \"Главное управление жилищно - коммунального хозяйства\"","5116000922","561045001","Поставка горячей воды","HOT_VS"]
[457,"Оренбургская область","Оренбургский муниципальный район","53634000","Приуральское","53634449","27991671","Администрация Оренбургского района","5638018689","563801001","Оказание услуг в сфере горячего водоснабжения","HOT_VS"]
[458,"Оренбургская область","Оренбургский муниципальный район","53634000","Приуральское","53634449","30360904","Обособленное подразделение \"Оренбургское\" АО \"Главное управление жилищно - коммунального хозяйства\"","5116000922","561045001","Оказание услуг в сфере горячего водоснабжения","HOT_VS"]
[459,"Оренбургская область","Оренбургский муниципальный район","53634000","Приуральское","53634449","30360904","Обособленное подразделение \"Оренбургское\" АО \"Главное управление жилищно - коммунального хозяйства\"","5116000922","561045001","Поставка горячей воды","HOT_VS"]
[460,"Оренбургская область","Оренбургский муниципальный район","53634000","Пугачевское","53634452","27991671","Администрация Оренбургского района","5638018689","563801001","Оказание услуг в сфере горячего водоснабжения","HOT_VS"]
[461,"Оренбургская область","Оренбургский муниципальный район","53634000","Пугачевское","53634452","30360904","Обособленное подразделение \"Оренбургское\" АО \"Главное управление жилищно - коммунального хозяйства\"","5116000922","561045001","Оказание услуг в сфере горячего водоснабжения","HOT_VS"]
[462,"Оренбургская область","Оренбургский муниципальный район","53634000","Пугачевское","53634452","30360904","Обособленное подразделение \"Оренбургское\" АО \"Главное управление жилищно - коммунального хозяйства\"","5116000922","561045001","Поставка горячей воды","HOT_VS"]
[463,"Оренбургская область","Оренбургский муниципальный район","53634000","Сергиевское","53634455","27991671","Администрация Оренбургского района","5638018689","563801001","Оказание услуг в сфере горячего водоснабжения","HOT_VS"]
[464,"Оренбургская область","Оренбургский муниципальный район","53634000","Сергиевское","53634455","30360904","Обособленное подразделение \"Оренбургское\" АО \"Главное управление жилищно - коммунального хозяйства\"","5116000922","561045001","Оказание услуг в сфере горячего водоснабжения","HOT_VS"]
[465,"Оренбургская область","Оренбургский муниципальный район","53634000","Сергиевское","53634455","30360904","Обособленное подразделение \"Оренбургское\" АО \"Главное управление жилищно - коммунального хозяйства\"","5116000922","561045001","Поставка горячей воды","HOT_VS"]
[466,"Оренбургская область","Оренбургский муниципальный район","53634000","Соловьевское","53634454","27991671","Администрация Оренбургского района","5638018689","563801001","Оказание услуг в сфере горячего водоснабжения","HOT_VS"]
[467,"Оренбургская область","Оренбургский муниципальный район","53634000","Соловьевское","53634454","30360904","Обособленное подразделение \"Оренбургское\" АО \"Главное управление жилищно - коммунального хозяйства\"","5116000922","561045001","Оказание услуг в сфере горячего водоснабжения","HOT_VS"]
[468,"Оренбургская область","Оренбургский муниципальный район","53634000","Соловьевское","53634454","30360904","Обособленное подразделение \"Оренбургское\" АО \"Главное управление жилищно - коммунального хозяйства\"","5116000922","561045001","Поставка горячей воды","HOT_VS"]
[469,"Оренбургская область","Оренбургский муниципальный район","53634000","Степановское","53634456","27991671","Администрация Оренбургского района","5638018689","563801001","Оказание услуг в сфере горячего водоснабжения","HOT_VS"]
[470,"Оренбургская область","Оренбургский муниципальный район","53634000","Степановское","53634456","30360904","Обособленное подразделение \"Оренбургское\" АО \"Главное управление жилищно - коммунального хозяйства\"","5116000922","561045001","Оказание услуг в сфере горячего водоснабжения","HOT_VS"]
[471,"Оренбургская область","Оренбургский муниципальный район","53634000","Степановское","53634456","30360904","Обособленное подразделение \"Оренбургское\" АО \"Главное управление жилищно - коммунального хозяйства\"","5116000922","561045001","Поставка горячей воды","HOT_VS"]
[472,"Оренбургская область","Оренбургский муниципальный район","53634000","Струковское","53634457","27991671","Администрация Оренбургского района","5638018689","563801001","Оказание услуг в сфере горячего водоснабжения","HOT_VS"]
[473,"Оренбургская область","Оренбургский муниципальный район","53634000","Струковское","53634457","30360904","Обособленное подразделение \"Оренбургское\" АО \"Главное управление жилищно - коммунального хозяйства\"","5116000922","561045001","Оказание услуг в сфере горячего водоснабжения","HOT_VS"]
[474,"Оренбургская область","Оренбургский муниципальный район","53634000","Струковское","53634457","30360904","Обособленное подразделение \"Оренбургское\" АО \"Главное управление жилищно - коммунального хозяйства\"","5116000922","561045001","Поставка горячей воды","HOT_VS"]
[475,"Оренбургская область","Оренбургский муниципальный район","53634000","Чебеньковское","53634458","27991671","Администрация Оренбургского района","5638018689","563801001","Оказание услуг в сфере горячего водоснабжения","HOT_VS"]
[476,"Оренбургская область","Оренбургский муниципальный район","53634000","Чебеньковское","53634458","30360904","Обособленное подразделение \"Оренбургское\" АО \"Главное управление жилищно - коммунального хозяйства\"","5116000922","561045001","Оказание услуг в сфере горячего водоснабжения","HOT_VS"]
[477,"Оренбургская область","Оренбургский муниципальный район","53634000","Чебеньковское","53634458","30360904","Обособленное подразделение \"Оренбургское\" АО \"Главное управление жилищно - коммунального хозяйства\"","5116000922","561045001","Поставка горячей воды","HOT_VS"]
[478,"Оренбургская область","Оренбургский муниципальный район","53634000","Чернореченское","53634461","27991671","Администрация Оренбургского района","5638018689","563801001","Оказание услуг в сфере горячего водоснабжения","HOT_VS"]
[479,"Оренбургская область","Оренбургский муниципальный район","53634000","Чернореченское","53634461","30360904","Обособленное подразделение \"Оренбургское\" АО \"Главное управление жилищно - коммунального хозяйства\"","5116000922","561045001","Оказание услуг в сфере горячего водоснабжения","HOT_VS"]
[480,"Оренбургская область","Оренбургский муниципальный район","53634000","Чернореченское","53634461","30360904","Обособленное подразделение \"Оренбургское\" АО \"Главное управление жилищно - коммунального хозяйства\"","5116000922","561045001","Поставка горячей воды","HOT_VS"]
[481,"Оренбургская область","Оренбургский муниципальный район","53634000","Чернореченское","53634461","26360992","Южно-Уральская дирекция по тепловодоснабжению - структурное подразделение Центральной дирекции по тепловодоснабжению - филиала ОАО \"РЖД\"","7708503727","744945004","Оказание услуг в сфере горячего водоснабжения","HOT_VS"]
[482,"Оренбургская область","Оренбургский муниципальный район","53634000","Чкаловское","53634464","27991671","Администрация Оренбургского района","5638018689","563801001","Оказание услуг в сфере горячего водоснабжения","HOT_VS"]
[483,"Оренбургская область","Оренбургский муниципальный район","53634000","Чкаловское","53634464","30360904","Обособленное подразделение \"Оренбургское\" АО \"Главное управление жилищно - коммунального хозяйства\"","5116000922","561045001","Оказание услуг в сфере горячего водоснабжения","HOT_VS"]
[484,"Оренбургская область","Оренбургский муниципальный район","53634000","Чкаловское","53634464","30360904","Обособленное подразделение \"Оренбургское\" АО \"Главное управление жилищно - коммунального хозяйства\"","5116000922","561045001","Поставка горячей воды","HOT_VS"]
[485,"Оренбургская область","Оренбургский муниципальный район","53634000","Экспериментальное","53634468","27991671","Администрация Оренбургского района","5638018689","563801001","Оказание услуг в сфере горячего водоснабжения","HOT_VS"]
[486,"Оренбургская область","Оренбургский муниципальный район","53634000","Экспериментальное","53634468","30360904","Обособленное подразделение \"Оренбургское\" АО \"Главное управление жилищно - коммунального хозяйства\"","5116000922","561045001","Оказание услуг в сфере горячего водоснабжения","HOT_VS"]
[487,"Оренбургская область","Оренбургский муниципальный район","53634000","Экспериментальное","53634468","30360904","Обособленное подразделение \"Оренбургское\" АО \"Главное управление жилищно - коммунального хозяйства\"","5116000922","561045001","Поставка горячей воды","HOT_VS"]
[488,"Оренбургская область","Оренбургский муниципальный район","53634000","Южноуральское","53634470","27991671","Администрация Оренбургского района","5638018689","563801001","Оказание услуг в сфере горячего водоснабжения","HOT_VS"]
[489,"Оренбургская область","Оренбургский муниципальный район","53634000","Южноуральское","53634470","30360904","Обособленное подразделение \"Оренбургское\" АО \"Главное управление жилищно - коммунального хозяйства\"","5116000922","561045001","Оказание услуг в сфере горячего водоснабжения","HOT_VS"]
[490,"Оренбургская область","Оренбургский муниципальный район","53634000","Южноуральское","53634470","30360904","Обособленное подразделение \"Оренбургское\" АО \"Главное управление жилищно - коммунального хозяйства\"","5116000922","561045001","Поставка горячей воды","HOT_VS"]
[491,"Оренбургская область","Первомайский муниципальный район","53636000","Революционное","53636417","26443023","ООО \"Водолей\"","5639006767","563901001","Оказание услуг в сфере горячего водоснабжения","HOT_VS"]
[492,"Оренбургская область","Переволоцкий муниципальный район","53637000","Адамовское","53637404","30360904","Обособленное подразделение \"Оренбургское\" АО \"Главное управление жилищно - коммунального хозяйства\"","5116000922","561045001","Оказание услуг в сфере горячего водоснабжения","HOT_VS"]
[493,"Оренбургская область","Переволоцкий муниципальный район","53637000","Адамовское","53637404","30360904","Обособленное подразделение \"Оренбургское\" АО \"Главное управление жилищно - коммунального хозяйства\"","5116000922","561045001","Поставка горячей воды","HOT_VS"]
[494,"Оренбургская область","Переволоцкий муниципальный район","53637000","Донецкое","53637407","30360904","Обособленное подразделение \"Оренбургское\" АО \"Главное управление жилищно - коммунального хозяйства\"","5116000922","561045001","Оказание услуг в сфере горячего водоснабжения","HOT_VS"]
[495,"Оренбургская область","Переволоцкий муниципальный район","53637000","Донецкое","53637407","30360904","Обособленное подразделение \"Оренбургское\" АО \"Главное управление жилищно - коммунального хозяйства\"","5116000922","561045001","Поставка горячей воды","HOT_VS"]
[496,"Оренбургская область","Переволоцкий муниципальный район","53637000","Зубочистенское","53637410","30360904","Обособленное подразделение \"Оренбургское\" АО \"Главное управление жилищно - коммунального хозяйства\"","5116000922","561045001","Оказание услуг в сфере горячего водоснабжения","HOT_VS"]
[497,"Оренбургская область","Переволоцкий муниципальный район","53637000","Зубочистенское","53637410","30360904","Обособленное подразделение \"Оренбургское\" АО \"Главное управление жилищно - коммунального хозяйства\"","5116000922","561045001","Поставка горячей воды","HOT_VS"]
[498,"Оренбургская область","Переволоцкий муниципальный район","53637000","Зубочистенское Второе","53637411","30360904","Обособленное подразделение \"Оренбургское\" АО \"Главное управление жилищно - коммунального хозяйства\"","5116000922","561045001","Оказание услуг в сфере горячего водоснабжения","HOT_VS"]
[499,"Оренбургская область","Переволоцкий муниципальный район","53637000","Зубочистенское Второе","53637411","30360904","Обособленное подразделение \"Оренбургское\" АО \"Главное управление жилищно - коммунального хозяйства\"","5116000922","561045001","Поставка горячей воды","HOT_VS"]
[500,"Оренбургская область","Переволоцкий муниципальный район","53637000","Кариновское","53637416","30360904","Обособленное подразделение \"Оренбургское\" АО \"Главное управление жилищно - коммунального хозяйства\"","5116000922","561045001","Оказание услуг в сфере горячего водоснабжения","HOT_VS"]
[501,"Оренбургская область","Переволоцкий муниципальный район","53637000","Кариновское","53637416","30360904","Обособленное подразделение \"Оренбургское\" АО \"Главное управление жилищно - коммунального хозяйства\"","5116000922","561045001","Поставка горячей воды","HOT_VS"]
[502,"Оренбургская область","Переволоцкий муниципальный район","53637000","Кичкасское","53637419","30360904","Обособленное подразделение \"Оренбургское\" АО \"Главное управление жилищно - коммунального хозяйства\"","5116000922","561045001","Оказание услуг в сфере горячего водоснабжения","HOT_VS"]
[503,"Оренбургская область","Переволоцкий муниципальный район","53637000","Кичкасское","53637419","30360904","Обособленное подразделение \"Оренбургское\" АО \"Главное управление жилищно - коммунального хозяйства\"","5116000922","561045001","Поставка горячей воды","HOT_VS"]
[504,"Оренбургская область","Переволоцкий муниципальный район","53637000","Кубанское","53637420","30360904","Обособленное подразделение \"Оренбургское\" АО \"Главное управление жилищно - коммунального хозяйства\"","5116000922","561045001","Оказание услуг в сфере горячего водоснабжения","HOT_VS"]
[505,"Оренбургская область","Переволоцкий муниципальный район","53637000","Кубанское","53637420","30360904","Обособленное подразделение \"Оренбургское\" АО \"Главное управление жилищно - коммунального хозяйства\"","5116000922","561045001","Поставка горячей воды","HOT_VS"]
[506,"Оренбургская область","Переволоцкий муниципальный район","53637000","Мамалаевское","53637422","30360904","Обособленное подразделение \"Оренбургское\" АО \"Главное управление жилищно - коммунального хозяйства\"","5116000922","561045001","Оказание услуг в сфере горячего водоснабжения","HOT_VS"]
[507,"Оренбургская область","Переволоцкий муниципальный район","53637000","Мамалаевское","53637422","30360904","Обособленное подразделение \"Оренбургское\" АО \"Главное управление жилищно - коммунального хозяйства\"","5116000922","561045001","Поставка горячей воды","HOT_VS"]
[508,"Оренбургская область","Переволоцкий муниципальный район","53637000","Переволоцкое","53637424","30360904","Обособленное подразделение \"Оренбургское\" АО \"Главное управление жилищно - коммунального хозяйства\"","5116000922","561045001","Оказание услуг в сфере горячего водоснабжения","HOT_VS"]
[509,"Оренбургская область","Переволоцкий муниципальный район","53637000","Переволоцкое","53637424","30360904","Обособленное подразделение \"Оренбургское\" АО \"Главное управление жилищно - коммунального хозяйства\"","5116000922","561045001","Поставка горячей воды","HOT_VS"]
[510,"Оренбургская область","Переволоцкий муниципальный район","53637000","Переволоцкое","53637424","26360992","Южно-Уральская дирекция по тепловодоснабжению - структурное подразделение Центральной дирекции по тепловодоснабжению - филиала ОАО \"РЖД\"","7708503727","744945004","Оказание услуг в сфере горячего водоснабжения","HOT_VS"]
[511,"Оренбургская область","Переволоцкий муниципальный район","53637000","Преторийское","53637425","30360904","Обособленное подразделение \"Оренбургское\" АО \"Главное управление жилищно - коммунального хозяйства\"","5116000922","561045001","Оказание услуг в сфере горячего водоснабжения","HOT_VS"]
[512,"Оренбургская область","Переволоцкий муниципальный район","53637000","Преторийское","53637425","30360904","Обособленное подразделение \"Оренбургское\" АО \"Главное управление жилищно - коммунального хозяйства\"","5116000922","561045001","Поставка горячей воды","HOT_VS"]
[513,"Оренбургская область","Переволоцкий муниципальный район","53637000","Родничнодольское","53637428","30360904","Обособленное подразделение \"Оренбургское\" АО \"Главное управление жилищно - коммунального хозяйства\"","5116000922","561045001","Оказание услуг в сфере горячего водоснабжения","HOT_VS"]
[514,"Оренбургская область","Переволоцкий муниципальный район","53637000","Родничнодольское","53637428","30360904","Обособленное подразделение \"Оренбургское\" АО \"Главное управление жилищно - коммунального хозяйства\"","5116000922","561045001","Поставка горячей воды","HOT_VS"]
[515,"Оренбургская область","Переволоцкий муниципальный район","53637000","Садовое","53637431","30360904","Обособленное подразделение \"Оренбургское\" АО \"Главное управление жилищно - коммунального хозяйства\"","5116000922","561045001","Оказание услуг в сфере горячего водоснабжения","HOT_VS"]
[516,"Оренбургская область","Переволоцкий муниципальный район","53637000","Садовое","53637431","30360904","Обособленное подразделение \"Оренбургское\" АО \"Главное управление жилищно - коммунального хозяйства\"","5116000922","561045001","Поставка горячей воды","HOT_VS"]
[517,"Оренбургская область","Переволоцкий муниципальный район","53637000","Степановское","53637434","30360904","Обособленное подразделение \"Оренбургское\" АО \"Главное управление жилищно - коммунального хозяйства\"","5116000922","561045001","Оказание услуг в сфере горячего водоснабжения","HOT_VS"]
[518,"Оренбургская область","Переволоцкий муниципальный район","53637000","Степановское","53637434","30360904","Обособленное подразделение \"Оренбургское\" АО \"Главное управление жилищно - коммунального хозяйства\"","5116000922","561045001","Поставка горячей воды","HOT_VS"]
[519,"Оренбургская область","Переволоцкий муниципальный район","53637000","Татищевское","53637437","30360904","Обособленное подразделение \"Оренбургское\" АО \"Главное управление жилищно - коммунального хозяйства\"","5116000922","561045001","Оказание услуг в сфере горячего водоснабжения","HOT_VS"]
[520,"Оренбургская область","Переволоцкий муниципальный район","53637000","Татищевское","53637437","30360904","Обособленное подразделение \"Оренбургское\" АО \"Главное управление жилищно - коммунального хозяйства\"","5116000922","561045001","Поставка горячей воды","HOT_VS"]
[521,"Оренбургская область","Переволоцкий муниципальный район","53637000","Чесноковское","53637440","30360904","Обособленное подразделение \"Оренбургское\" АО \"Главное управление жилищно - коммунального хозяйства\"","5116000922","561045001","Оказание услуг в сфере горячего водоснабжения","HOT_VS"]
[522,"Оренбургская область","Переволоцкий муниципальный район","53637000","Чесноковское","53637440","30360904","Обособленное подразделение \"Оренбургское\" АО \"Главное управление жилищно - коммунального хозяйства\"","5116000922","561045001","Поставка горячей воды","HOT_VS"]
[523,"Оренбургская область","Переволоцкий муниципальный район","53637000","Южноуральское","53637443","30360904","Обособленное подразделение \"Оренбургское\" АО \"Главное управление жилищно - коммунального хозяйства\"","5116000922","561045001","Оказание услуг в сфере горячего водоснабжения","HOT_VS"]
[524,"Оренбургская область","Переволоцкий муниципальный район","53637000","Южноуральское","53637443","30360904","Обособленное подразделение \"Оренбургское\" АО \"Главное управление жилищно - коммунального хозяйства\"","5116000922","561045001","Поставка горячей воды","HOT_VS"]
[525,"Оренбургская область","Переволоцкий муниципальный район","53637000","Япрынцевское","53637446","30360904","Обособленное подразделение \"Оренбургское\" АО \"Главное управление жилищно - коммунального хозяйства\"","5116000922","561045001","Оказание услуг в сфере горячего водоснабжения","HOT_VS"]
[526,"Оренбургская область","Переволоцкий муниципальный район","53637000","Япрынцевское","53637446","30360904","Обособленное подразделение \"Оренбургское\" АО \"Главное управление жилищно - коммунального хозяйства\"","5116000922","561045001","Поставка горячей воды","HOT_VS"]
[527,"Оренбургская область","Пономаревский муниципальный район","53638000","Борисовское","53638403","28979589","Администрация Пономаревского района","5641003989","564110100","Оказание услуг в сфере горячего водоснабжения","HOT_VS"]
[528,"Оренбургская область","Пономаревский муниципальный район","53638000","Воздвиженское","53638404","28979589","Администрация Пономаревского района","5641003989","564110100","Оказание услуг в сфере горячего водоснабжения","HOT_VS"]
[529,"Оренбургская область","Пономаревский муниципальный район","53638000","Деминское","53638405","28979589","Администрация Пономаревского района","5641003989","564110100","Оказание услуг в сфере горячего водоснабжения","HOT_VS"]
[530,"Оренбургская область","Пономаревский муниципальный район","53638000","Дюсьметьевское","53638406","28979589","Администрация Пономаревского района","5641003989","564110100","Оказание услуг в сфере горячего водоснабжения","HOT_VS"]
[531,"Оренбургская область","Пономаревский муниципальный район","53638000","Ефремово-Зыковское","53638407","28979589","Администрация Пономаревского района","5641003989","564110100","Оказание услуг в сфере горячего водоснабжения","HOT_VS"]
[532,"Оренбургская область","Пономаревский муниципальный район","53638000","Ключевское","53638410","28979589","Администрация Пономаревского района","5641003989","564110100","Оказание услуг в сфере горячего водоснабжения","HOT_VS"]
[533,"Оренбургская область","Пономаревский муниципальный район","53638000","Максимовское","53638413","28979589","Администрация Пономаревского района","5641003989","564110100","Оказание услуг в сфере горячего водоснабжения","HOT_VS"]
[534,"Оренбургская область","Пономаревский муниципальный район","53638000","Наурузовское","53638416","28979589","Администрация Пономаревского района","5641003989","564110100","Оказание услуг в сфере горячего водоснабжения","HOT_VS"]
[535,"Оренбургская область","Пономаревский муниципальный район","53638000","Нижнекузлинское","53638419","28979589","Администрация Пономаревского района","5641003989","564110100","Оказание услуг в сфере горячего водоснабжения","HOT_VS"]
[536,"Оренбургская область","Пономаревский муниципальный район","53638000","Пономаревское","53638422","28979589","Администрация Пономаревского района","5641003989","564110100","Оказание услуг в сфере горячего водоснабжения","HOT_VS"]
[537,"Оренбургская область","Пономаревский муниципальный район","53638000","Равнинное","53638425","28979589","Администрация Пономаревского района","5641003989","564110100","Оказание услуг в сфере горячего водоснабжения","HOT_VS"]
[538,"Оренбургская область","Пономаревский муниципальный район","53638000","Романовское","53638428","28979589","Администрация Пономаревского района","5641003989","564110100","Оказание услуг в сфере горячего водоснабжения","HOT_VS"]
[539,"Оренбургская область","Пономаревский муниципальный район","53638000","Семеновское","53638431","28979589","Администрация Пономаревского района","5641003989","564110100","Оказание услуг в сфере горячего водоснабжения","HOT_VS"]
[540,"Оренбургская область","Пономаревский муниципальный район","53638000","Софиевское","53638434","28979589","Администрация Пономаревского района","5641003989","564110100","Оказание услуг в сфере горячего водоснабжения","HOT_VS"]
[541,"Оренбургская область","Пономаревский муниципальный район","53638000","Фадеевское","53638437","28979589","Администрация Пономаревского района","5641003989","564110100","Оказание услуг в сфере горячего водоснабжения","HOT_VS"]
[542,"Оренбургская область","Сакмарский муниципальный район","53640000","Архиповское","53640402","30360904","Обособленное подразделение \"Оренбургское\" АО \"Главное управление жилищно - коммунального хозяйства\"","5116000922","561045001","Оказание услуг в сфере горячего водоснабжения","HOT_VS"]
[543,"Оренбургская область","Сакмарский муниципальный район","53640000","Архиповское","53640402","30360904","Обособленное подразделение \"Оренбургское\" АО \"Главное управление жилищно - коммунального хозяйства\"","5116000922","561045001","Поставка горячей воды","HOT_VS"]
[544,"Оренбургская область","Сакмарский муниципальный район","53640000","Беловское","53640404","30360904","Обособленное подразделение \"Оренбургское\" АО \"Главное управление жилищно - коммунального хозяйства\"","5116000922","561045001","Оказание услуг в сфере горячего водоснабжения","HOT_VS"]
[545,"Оренбургская область","Сакмарский муниципальный район","53640000","Беловское","53640404","30360904","Обособленное подразделение \"Оренбургское\" АО \"Главное управление жилищно - коммунального хозяйства\"","5116000922","561045001","Поставка горячей воды","HOT_VS"]
[546,"Оренбургская область","Сакмарский муниципальный район","53640000","Белоусовское","53640407","30360904","Обособленное подразделение \"Оренбургское\" АО \"Главное управление жилищно - коммунального хозяйства\"","5116000922","561045001","Оказание услуг в сфере горячего водоснабжения","HOT_VS"]
[547,"Оренбургская область","Сакмарский муниципальный район","53640000","Белоусовское","53640407","30360904","Обособленное подразделение \"Оренбургское\" АО \"Главное управление жилищно - коммунального хозяйства\"","5116000922","561045001","Поставка горячей воды","HOT_VS"]
[548,"Оренбургская область","Сакмарский муниципальный район","53640000","Верхнечебеньковское","53640410","30360904","Обособленное подразделение \"Оренбургское\" АО \"Главное управление жилищно - коммунального хозяйства\"","5116000922","561045001","Оказание услуг в сфере горячего водоснабжения","HOT_VS"]
[549,"Оренбургская область","Сакмарский муниципальный район","53640000","Верхнечебеньковское","53640410","30360904","Обособленное подразделение \"Оренбургское\" АО \"Главное управление жилищно - коммунального хозяйства\"","5116000922","561045001","Поставка горячей воды","HOT_VS"]
[550,"Оренбургская область","Сакмарский муниципальный район","53640000","Дмитриевское","53640411","26485308","АО “РЭУ” “Самарский”","7714783092","631143001","Оказание услуг в сфере горячего водоснабжения","HOT_VS"]
[551,"Оренбургская область","Сакмарский муниципальный район","53640000","Дмитриевское","53640411","30360904","Обособленное подразделение \"Оренбургское\" АО \"Главное управление жилищно - коммунального хозяйства\"","5116000922","561045001","Оказание услуг в сфере горячего водоснабжения","HOT_VS"]
[552,"Оренбургская область","Сакмарский муниципальный район","53640000","Дмитриевское","53640411","30360904","Обособленное подразделение \"Оренбургское\" АО \"Главное управление жилищно - коммунального хозяйства\"","5116000922","561045001","Поставка горячей воды","HOT_VS"]
[553,"Оренбургская область","Сакмарский муниципальный район","53640000","Егорьевское","53640413","30360904","Обособленное подразделение \"Оренбургское\" АО \"Главное управление жилищно - коммунального хозяйства\"","5116000922","561045001","Оказание услуг в сфере горячего водоснабжения","HOT_VS"]
[554,"Оренбургская область","Сакмарский муниципальный район","53640000","Егорьевское","53640413","30360904","Обособленное подразделение \"Оренбургское\" АО \"Главное управление жилищно - коммунального хозяйства\"","5116000922","561045001","Поставка горячей воды","HOT_VS"]
[555,"Оренбургская область","Сакмарский муниципальный район","53640000","Каменское","53640416","30360904","Обособленное подразделение \"Оренбургское\" АО \"Главное управление жилищно - коммунального хозяйства\"","5116000922","561045001","Оказание услуг в сфере горячего водоснабжения","HOT_VS"]
[556,"Оренбургская область","Сакмарский муниципальный район","53640000","Каменское","53640416","30360904","Обособленное подразделение \"Оренбургское\" АО \"Главное управление жилищно - коммунального хозяйства\"","5116000922","561045001","Поставка горячей воды","HOT_VS"]
[557,"Оренбургская область","Сакмарский муниципальный район","53640000","Краснокоммунарское","53640417","26652584","ООО \"ЖилСервис\"","5642020472","564201001","Оказание услуг в сфере горячего водоснабжения","HOT_VS"]
[558,"Оренбургская область","Сакмарский муниципальный район","53640000","Краснокоммунарское","53640417","30360904","Обособленное подразделение \"Оренбургское\" АО \"Главное управление жилищно - коммунального хозяйства\"","5116000922","561045001","Оказание услуг в сфере горячего водоснабжения","HOT_VS"]
[559,"Оренбургская область","Сакмарский муниципальный район","53640000","Краснокоммунарское","53640417","30360904","Обособленное подразделение \"Оренбургское\" АО \"Главное управление жилищно - коммунального хозяйства\"","5116000922","561045001","Поставка горячей воды","HOT_VS"]
[560,"Оренбургская область","Сакмарский муниципальный район","53640000","Краснокоммунарское","53640417","26360992","Южно-Уральская дирекция по тепловодоснабжению - структурное подразделение Центральной дирекции по тепловодоснабжению - филиала ОАО \"РЖД\"","7708503727","744945004","Оказание услуг в сфере горячего водоснабжения","HOT_VS"]
[561,"Оренбургская область","Сакмарский муниципальный район","53640000","Марьевское","53640419","30360904","Обособленное подразделение \"Оренбургское\" АО \"Главное управление жилищно - коммунального хозяйства\"","5116000922","561045001","Оказание услуг в сфере горячего водоснабжения","HOT_VS"]
[562,"Оренбургская область","Сакмарский муниципальный район","53640000","Марьевское","53640419","30360904","Обособленное подразделение \"Оренбургское\" АО \"Главное управление жилищно - коммунального хозяйства\"","5116000922","561045001","Поставка горячей воды","HOT_VS"]
[563,"Оренбургская область","Сакмарский муниципальный район","53640000","Никольское","53640422","30360904","Обособленное подразделение \"Оренбургское\" АО \"Главное управление жилищно - коммунального хозяйства\"","5116000922","561045001","Оказание услуг в сфере горячего водоснабжения","HOT_VS"]
[564,"Оренбургская область","Сакмарский муниципальный район","53640000","Никольское","53640422","30360904","Обособленное подразделение \"Оренбургское\" АО \"Главное управление жилищно - коммунального хозяйства\"","5116000922","561045001","Поставка горячей воды","HOT_VS"]
[565,"Оренбургская область","Сакмарский муниципальный район","53640000","Сакмарское","53640425","30360904","Обособленное подразделение \"Оренбургское\" АО \"Главное управление жилищно - коммунального хозяйства\"","5116000922","561045001","Оказание услуг в сфере горячего водоснабжения","HOT_VS"]
[566,"Оренбургская область","Сакмарский муниципальный район","53640000","Сакмарское","53640425","30360904","Обособленное подразделение \"Оренбургское\" АО \"Главное управление жилищно - коммунального хозяйства\"","5116000922","561045001","Поставка горячей воды","HOT_VS"]
[567,"Оренбургская область","Сакмарский муниципальный район","53640000","Светлое","53640428","30360904","Обособленное подразделение \"Оренбургское\" АО \"Главное управление жилищно - коммунального хозяйства\"","5116000922","561045001","Оказание услуг в сфере горячего водоснабжения","HOT_VS"]
[568,"Оренбургская область","Сакмарский муниципальный район","53640000","Светлое","53640428","30360904","Обособленное подразделение \"Оренбургское\" АО \"Главное управление жилищно - коммунального хозяйства\"","5116000922","561045001","Поставка горячей воды","HOT_VS"]
[569,"Оренбургская область","Сакмарский муниципальный район","53640000","Татаро-Каргалинское","53640434","30360904","Обособленное подразделение \"Оренбургское\" АО \"Главное управление жилищно - коммунального хозяйства\"","5116000922","561045001","Оказание услуг в сфере горячего водоснабжения","HOT_VS"]
[570,"Оренбургская область","Сакмарский муниципальный район","53640000","Татаро-Каргалинское","53640434","30360904","Обособленное подразделение \"Оренбургское\" АО \"Главное управление жилищно - коммунального хозяйства\"","5116000922","561045001","Поставка горячей воды","HOT_VS"]
[571,"Оренбургская область","Сакмарский муниципальный район","53640000","Тимашевское","53640437","30360904","Обособленное подразделение \"Оренбургское\" АО \"Главное управление жилищно - коммунального хозяйства\"","5116000922","561045001","Оказание услуг в сфере горячего водоснабжения","HOT_VS"]
[572,"Оренбургская область","Сакмарский муниципальный район","53640000","Тимашевское","53640437","30360904","Обособленное подразделение \"Оренбургское\" АО \"Главное управление жилищно - коммунального хозяйства\"","5116000922","561045001","Поставка горячей воды","HOT_VS"]
[573,"Оренбургская область","Сакмарский муниципальный район","53640000","Украинское","53640440","30360904","Обособленное подразделение \"Оренбургское\" АО \"Главное управление жилищно - коммунального хозяйства\"","5116000922","561045001","Оказание услуг в сфере горячего водоснабжения","HOT_VS"]
[574,"Оренбургская область","Сакмарский муниципальный район","53640000","Украинское","53640440","30360904","Обособленное подразделение \"Оренбургское\" АО \"Главное управление жилищно - коммунального хозяйства\"","5116000922","561045001","Поставка горячей воды","HOT_VS"]
[575,"Оренбургская область","Саракташский муниципальный район","53641000","Александровское","53641402","30360904","Обособленное подразделение \"Оренбургское\" АО \"Главное управление жилищно - коммунального хозяйства\"","5116000922","561045001","Оказание услуг в сфере горячего водоснабжения","HOT_VS"]
[576,"Оренбургская область","Саракташский муниципальный район","53641000","Александровское","53641402","30360904","Обособленное подразделение \"Оренбургское\" АО \"Главное управление жилищно - коммунального хозяйства\"","5116000922","561045001","Поставка горячей воды","HOT_VS"]
[577,"Оренбургская область","Саракташский муниципальный район","53641000","Бурунчинское","53641404","30360904","Обособленное подразделение \"Оренбургское\" АО \"Главное управление жилищно - коммунального хозяйства\"","5116000922","561045001","Оказание услуг в сфере горячего водоснабжения","HOT_VS"]
[578,"Оренбургская область","Саракташский муниципальный район","53641000","Бурунчинское","53641404","30360904","Обособленное подразделение \"Оренбургское\" АО \"Главное управление жилищно - коммунального хозяйства\"","5116000922","561045001","Поставка горячей воды","HOT_VS"]
[579,"Оренбургская область","Саракташский муниципальный район","53641000","Васильевское","53641407","26359109","ООО \"Теплосеть\"","5643008439","564301001","Оказание услуг в сфере горячего водоснабжения","HOT_VS"]
[580,"Оренбургская область","Саракташский муниципальный район","53641000","Васильевское","53641407","30360904","Обособленное подразделение \"Оренбургское\" АО \"Главное управление жилищно - коммунального хозяйства\"","5116000922","561045001","Оказание услуг в сфере горячего водоснабжения","HOT_VS"]
[581,"Оренбургская область","Саракташский муниципальный район","53641000","Васильевское","53641407","30360904","Обособленное подразделение \"Оренбургское\" АО \"Главное управление жилищно - коммунального хозяйства\"","5116000922","561045001","Поставка горячей воды","HOT_VS"]
[582,"Оренбургская область","Саракташский муниципальный район","53641000","Воздвиженское","53641410","26359109","ООО \"Теплосеть\"","5643008439","564301001","Оказание услуг в сфере горячего водоснабжения","HOT_VS"]
[583,"Оренбургская область","Саракташский муниципальный район","53641000","Воздвиженское","53641410","30360904","Обособленное подразделение \"Оренбургское\" АО \"Главное управление жилищно - коммунального хозяйства\"","5116000922","561045001","Оказание услуг в сфере горячего водоснабжения","HOT_VS"]
[584,"Оренбургская область","Саракташский муниципальный район","53641000","Воздвиженское","53641410","30360904","Обособленное подразделение \"Оренбургское\" АО \"Главное управление жилищно - коммунального хозяйства\"","5116000922","561045001","Поставка горячей воды","HOT_VS"]
[585,"Оренбургская область","Саракташский муниципальный район","53641000","Гавриловское","53641413","30360904","Обособленное подразделение \"Оренбургское\" АО \"Главное управление жилищно - коммунального хозяйства\"","5116000922","561045001","Оказание услуг в сфере горячего водоснабжения","HOT_VS"]
[586,"Оренбургская область","Саракташский муниципальный район","53641000","Гавриловское","53641413","30360904","Обособленное подразделение \"Оренбургское\" АО \"Главное управление жилищно - коммунального хозяйства\"","5116000922","561045001","Поставка горячей воды","HOT_VS"]
[587,"Оренбургская область","Саракташский муниципальный район","53641000","Желтинское","53641416","26359109","ООО \"Теплосеть\"","5643008439","564301001","Оказание услуг в сфере горячего водоснабжения","HOT_VS"]
[588,"Оренбургская область","Саракташский муниципальный район","53641000","Желтинское","53641416","30360904","Обособленное подразделение \"Оренбургское\" АО \"Главное управление жилищно - коммунального хозяйства\"","5116000922","561045001","Оказание услуг в сфере горячего водоснабжения","HOT_VS"]
[589,"Оренбургская область","Саракташский муниципальный район","53641000","Желтинское","53641416","30360904","Обособленное подразделение \"Оренбургское\" АО \"Главное управление жилищно - коммунального хозяйства\"","5116000922","561045001","Поставка горячей воды","HOT_VS"]
[590,"Оренбургская область","Саракташский муниципальный район","53641000","Каировское","53641419","26359109","ООО \"Теплосеть\"","5643008439","564301001","Оказание услуг в сфере горячего водоснабжения","HOT_VS"]
[591,"Оренбургская область","Саракташский муниципальный район","53641000","Каировское","53641419","30360904","Обособленное подразделение \"Оренбургское\" АО \"Главное управление жилищно - коммунального хозяйства\"","5116000922","561045001","Оказание услуг в сфере горячего водоснабжения","HOT_VS"]
[592,"Оренбургская область","Саракташский муниципальный район","53641000","Каировское","53641419","30360904","Обособленное подразделение \"Оренбургское\" АО \"Главное управление жилищно - коммунального хозяйства\"","5116000922","561045001","Поставка горячей воды","HOT_VS"]
[593,"Оренбургская область","Саракташский муниципальный район","53641000","Карагузинское","53641422","30360904","Обособленное подразделение \"Оренбургское\" АО \"Главное управление жилищно - коммунального хозяйства\"","5116000922","561045001","Оказание услуг в сфере горячего водоснабжения","HOT_VS"]
[594,"Оренбургская область","Саракташский муниципальный район","53641000","Карагузинское","53641422","30360904","Обособленное подразделение \"Оренбургское\" АО \"Главное управление жилищно - коммунального хозяйства\"","5116000922","561045001","Поставка горячей воды","HOT_VS"]
[595,"Оренбургская область","Саракташский муниципальный район","53641000","Надеждинское","53641425","30360904","Обособленное подразделение \"Оренбургское\" АО \"Главное управление жилищно - коммунального хозяйства\"","5116000922","561045001","Оказание услуг в сфере горячего водоснабжения","HOT_VS"]
[596,"Оренбургская область","Саракташский муниципальный район","53641000","Надеждинское","53641425","30360904","Обособленное подразделение \"Оренбургское\" АО \"Главное управление жилищно - коммунального хозяйства\"","5116000922","561045001","Поставка горячей воды","HOT_VS"]
[597,"Оренбургская область","Саракташский муниципальный район","53641000","Николаевское","53641428","30360904","Обособленное подразделение \"Оренбургское\" АО \"Главное управление жилищно - коммунального хозяйства\"","5116000922","561045001","Оказание услуг в сфере горячего водоснабжения","HOT_VS"]
[598,"Оренбургская область","Саракташский муниципальный район","53641000","Николаевское","53641428","30360904","Обособленное подразделение \"Оренбургское\" АО \"Главное управление жилищно - коммунального хозяйства\"","5116000922","561045001","Поставка горячей воды","HOT_VS"]
[599,"Оренбургская область","Саракташский муниципальный район","53641000","Новосокулакское","53641431","30360904","Обособленное подразделение \"Оренбургское\" АО \"Главное управление жилищно - коммунального хозяйства\"","5116000922","561045001","Оказание услуг в сфере горячего водоснабжения","HOT_VS"]
[600,"Оренбургская область","Саракташский муниципальный район","53641000","Новосокулакское","53641431","30360904","Обособленное подразделение \"Оренбургское\" АО \"Главное управление жилищно - коммунального хозяйства\"","5116000922","561045001","Поставка горячей воды","HOT_VS"]
[601,"Оренбургская область","Саракташский муниципальный район","53641000","Новочеркасское","53641434","30360904","Обособленное подразделение \"Оренбургское\" АО \"Главное управление жилищно - коммунального хозяйства\"","5116000922","561045001","Оказание услуг в сфере горячего водоснабжения","HOT_VS"]
[602,"Оренбургская область","Саракташский муниципальный район","53641000","Новочеркасское","53641434","30360904","Обособленное подразделение \"Оренбургское\" АО \"Главное управление жилищно - коммунального хозяйства\"","5116000922","561045001","Поставка горячей воды","HOT_VS"]
[603,"Оренбургская область","Саракташский муниципальный район","53641000","Петровское","53641440","26359109","ООО \"Теплосеть\"","5643008439","564301001","Оказание услуг в сфере горячего водоснабжения","HOT_VS"]
[604,"Оренбургская область","Саракташский муниципальный район","53641000","Петровское","53641440","30360904","Обособленное подразделение \"Оренбургское\" АО \"Главное управление жилищно - коммунального хозяйства\"","5116000922","561045001","Оказание услуг в сфере горячего водоснабжения","HOT_VS"]
[605,"Оренбургская область","Саракташский муниципальный район","53641000","Петровское","53641440","30360904","Обособленное подразделение \"Оренбургское\" АО \"Главное управление жилищно - коммунального хозяйства\"","5116000922","561045001","Поставка горячей воды","HOT_VS"]
[606,"Оренбургская область","Саракташский муниципальный район","53641000","Саракташское","53641444","26359109","ООО \"Теплосеть\"","5643008439","564301001","Оказание услуг в сфере горячего водоснабжения","HOT_VS"]
[607,"Оренбургская область","Саракташский муниципальный район","53641000","Саракташское","53641444","30360904","Обособленное подразделение \"Оренбургское\" АО \"Главное управление жилищно - коммунального хозяйства\"","5116000922","561045001","Оказание услуг в сфере горячего водоснабжения","HOT_VS"]
[608,"Оренбургская область","Саракташский муниципальный район","53641000","Саракташское","53641444","30360904","Обособленное подразделение \"Оренбургское\" АО \"Главное управление жилищно - коммунального хозяйства\"","5116000922","561045001","Поставка горячей воды","HOT_VS"]
[609,"Оренбургская область","Саракташский муниципальный район","53641000","Саракташское","53641444","26360992","Южно-Уральская дирекция по тепловодоснабжению - структурное подразделение Центральной дирекции по тепловодоснабжению - филиала ОАО \"РЖД\"","7708503727","744945004","Оказание услуг в сфере горячего водоснабжения","HOT_VS"]
[610,"Оренбургская область","Саракташский муниципальный район","53641000","Спасское","53641443","30360904","Обособленное подразделение \"Оренбургское\" АО \"Главное управление жилищно - коммунального хозяйства\"","5116000922","561045001","Оказание услуг в сфере горячего водоснабжения","HOT_VS"]
[611,"Оренбургская область","Саракташский муниципальный район","53641000","Спасское","53641443","30360904","Обособленное подразделение \"Оренбургское\" АО \"Главное управление жилищно - коммунального хозяйства\"","5116000922","561045001","Поставка горячей воды","HOT_VS"]
[612,"Оренбургская область","Саракташский муниципальный район","53641000","Старосокулакское","53641446","30360904","Обособленное подразделение \"Оренбургское\" АО \"Главное управление жилищно - коммунального хозяйства\"","5116000922","561045001","Оказание услуг в сфере горячего водоснабжения","HOT_VS"]
[613,"Оренбургская область","Саракташский муниципальный район","53641000","Старосокулакское","53641446","30360904","Обособленное подразделение \"Оренбургское\" АО \"Главное управление жилищно - коммунального хозяйства\"","5116000922","561045001","Поставка горячей воды","HOT_VS"]
[614,"Оренбургская область","Саракташский муниципальный район","53641000","Федоровское Первое","53641449","30360904","Обособленное подразделение \"Оренбургское\" АО \"Главное управление жилищно - коммунального хозяйства\"","5116000922","561045001","Оказание услуг в сфере горячего водоснабжения","HOT_VS"]
[615,"Оренбургская область","Саракташский муниципальный район","53641000","Федоровское Первое","53641449","30360904","Обособленное подразделение \"Оренбургское\" АО \"Главное управление жилищно - коммунального хозяйства\"","5116000922","561045001","Поставка горячей воды","HOT_VS"]
[616,"Оренбургская область","Саракташский муниципальный район","53641000","Черкасское","53641452","30360904","Обособленное подразделение \"Оренбургское\" АО \"Главное управление жилищно - коммунального хозяйства\"","5116000922","561045001","Оказание услуг в сфере горячего водоснабжения","HOT_VS"]
[617,"Оренбургская область","Саракташский муниципальный район","53641000","Черкасское","53641452","30360904","Обособленное подразделение \"Оренбургское\" АО \"Главное управление жилищно - коммунального хозяйства\"","5116000922","561045001","Поставка горячей воды","HOT_VS"]
[618,"Оренбургская область","Саракташский муниципальный район","53641000","Черноотрожское","53641455","30360904","Обособленное подразделение \"Оренбургское\" АО \"Главное управление жилищно - коммунального хозяйства\"","5116000922","561045001","Оказание услуг в сфере горячего водоснабжения","HOT_VS"]
[619,"Оренбургская область","Саракташский муниципальный район","53641000","Черноотрожское","53641455","30360904","Обособленное подразделение \"Оренбургское\" АО \"Главное управление жилищно - коммунального хозяйства\"","5116000922","561045001","Поставка горячей воды","HOT_VS"]
[620,"Оренбургская область","Саракташский муниципальный район","53641000","Черноотрожское","53641455","26360992","Южно-Уральская дирекция по тепловодоснабжению - структурное подразделение Центральной дирекции по тепловодоснабжению - филиала ОАО \"РЖД\"","7708503727","744945004","Оказание услуг в сфере горячего водоснабжения","HOT_VS"]
[621,"Оренбургская область","Светлинский муниципальный район","53642000","Светлинское","53642418","26761588","ООО \"ТеплоЭнергоРесурс\"","5644020206","564401001","Оказание услуг в сфере горячего водоснабжения","HOT_VS"]
[622,"Оренбургская область","Северный муниципальный район","53643000","Аксенкинское","53643402","28041275","Администрация Северного района","5645002506","564501001","Оказание услуг в сфере горячего водоснабжения","HOT_VS"]
[623,"Оренбургская область","Северный муниципальный район","53643000","Бакаевское","53643404","28041275","Администрация Северного района","5645002506","564501001","Оказание услуг в сфере горячего водоснабжения","HOT_VS"]
[624,"Оренбургская область","Северный муниципальный район","53643000","Каменногорское","53643407","28041275","Администрация Северного района","5645002506","564501001","Оказание услуг в сфере горячего водоснабжения","HOT_VS"]
[625,"Оренбургская область","Северный муниципальный район","53643000","Красноярское","53643410","28041275","Администрация Северного района","5645002506","564501001","Оказание услуг в сфере горячего водоснабжения","HOT_VS"]
[626,"Оренбургская область","Северный муниципальный район","53643000","Кряжлинское","53643413","28041275","Администрация Северного района","5645002506","564501001","Оказание услуг в сфере горячего водоснабжения","HOT_VS"]
[627,"Оренбургская область","Северный муниципальный район","53643000","Курско-Васильевское","53643416","28041275","Администрация Северного района","5645002506","564501001","Оказание услуг в сфере горячего водоснабжения","HOT_VS"]
[628,"Оренбургская область","Северный муниципальный район","53643000","Михеевское","53643419","28041275","Администрация Северного района","5645002506","564501001","Оказание услуг в сфере горячего водоснабжения","HOT_VS"]
[629,"Оренбургская область","Северный муниципальный район","53643000","Мордово-Добринское","53643422","28041275","Администрация Северного района","5645002506","564501001","Оказание услуг в сфере горячего водоснабжения","HOT_VS"]
[630,"Оренбургская область","Северный муниципальный район","53643000","Нижнечеляевское","53643425","28041275","Администрация Северного района","5645002506","564501001","Оказание услуг в сфере горячего водоснабжения","HOT_VS"]
[631,"Оренбургская область","Северный муниципальный район","53643000","Новодомосейкинское","53643428","28041275","Администрация Северного района","5645002506","564501001","Оказание услуг в сфере горячего водоснабжения","HOT_VS"]
[632,"Оренбургская область","Северный муниципальный район","53643000","Русскокандызское","53643431","28041275","Администрация Северного района","5645002506","564501001","Оказание услуг в сфере горячего водоснабжения","HOT_VS"]
[633,"Оренбургская область","Северный муниципальный район","53643000","Рычковское","53643434","28041275","Администрация Северного района","5645002506","564501001","Оказание услуг в сфере горячего водоснабжения","HOT_VS"]
[634,"Оренбургская область","Северный муниципальный район","53643000","Северное","53643437","28041275","Администрация Северного района","5645002506","564501001","Оказание услуг в сфере горячего водоснабжения","HOT_VS"]
[635,"Оренбургская область","Северный муниципальный район","53643000","Секретарское","53643440","28041275","Администрация Северного района","5645002506","564501001","Оказание услуг в сфере горячего водоснабжения","HOT_VS"]
[636,"Оренбургская область","Северный муниципальный район","53643000","Староборискинское","53643443","28041275","Администрация Северного района","5645002506","564501001","Оказание услуг в сфере горячего водоснабжения","HOT_VS"]
[637,"Оренбургская область","Соль-Илецкий","53725000","Соль-Илецкий","53725000","26560525","АО \"ГУ ЖКХ\"","5116000922","511601001","Поставка горячей воды","HOT_VS"]
[638,"Оренбургская область","Соль-Илецкий","53725000","Соль-Илецкий","53725000","26374405","ММПП ЖКХ Соль-Илецкое","5646000558","564601001","Оказание услуг в сфере горячего водоснабжения","HOT_VS"]
[639,"Оренбургская область","Соль-Илецкий","53725000","Соль-Илецкий","53725000","26443170","МУП \"РЖКХ\"","5646010820","564601001","Оказание услуг в сфере горячего водоснабжения","HOT_VS"]
[640,"Оренбургская область","Соль-Илецкий","53725000","Соль-Илецкий","53725000","26359112","ФКУ \"ИК-6\" УФСИН России по Оренбургской области","5646000068","564601001","Оказание услуг в сфере горячего водоснабжения","HOT_VS"]
[641,"Оренбургская область","Сорочинский","53727000","Сорочинский","53727000","26359067","МУП \"Жилкомсервис\"","5617004808","561701001","Оказание услуг в сфере горячего водоснабжения","HOT_VS"]
[642,"Оренбургская область","Сорочинский","53727000","Сорочинский","53727000","30360904","Обособленное подразделение \"Оренбургское\" АО \"Главное управление жилищно - коммунального хозяйства\"","5116000922","561045001","Поставка горячей воды","HOT_VS"]
[643,"Оренбургская область","Ташлинский муниципальный район","53651000","Алексеевское","53651402","30360904","Обособленное подразделение \"Оренбургское\" АО \"Главное управление жилищно - коммунального хозяйства\"","5116000922","561045001","Оказание услуг в сфере горячего водоснабжения","HOT_VS"]
[644,"Оренбургская область","Ташлинский муниципальный район","53651000","Алексеевское","53651402","30360904","Обособленное подразделение \"Оренбургское\" АО \"Главное управление жилищно - коммунального хозяйства\"","5116000922","561045001","Поставка горячей воды","HOT_VS"]
[645,"Оренбургская область","Ташлинский муниципальный район","53651000","Благодарновское","53651404","30360904","Обособленное подразделение \"Оренбургское\" АО \"Главное управление жилищно - коммунального хозяйства\"","5116000922","561045001","Оказание услуг в сфере горячего водоснабжения","HOT_VS"]
[646,"Оренбургская область","Ташлинский муниципальный район","53651000","Благодарновское","53651404","30360904","Обособленное подразделение \"Оренбургское\" АО \"Главное управление жилищно - коммунального хозяйства\"","5116000922","561045001","Поставка горячей воды","HOT_VS"]
[647,"Оренбургская область","Ташлинский муниципальный район","53651000","Болдыревское","53651407","30360904","Обособленное подразделение \"Оренбургское\" АО \"Главное управление жилищно - коммунального хозяйства\"","5116000922","561045001","Оказание услуг в сфере горячего водоснабжения","HOT_VS"]
[648,"Оренбургская область","Ташлинский муниципальный район","53651000","Болдыревское","53651407","30360904","Обособленное подразделение \"Оренбургское\" АО \"Главное управление жилищно - коммунального хозяйства\"","5116000922","561045001","Поставка горячей воды","HOT_VS"]
[649,"Оренбургская область","Ташлинский муниципальный район","53651000","Бородинское","53651408","30360904","Обособленное подразделение \"Оренбургское\" АО \"Главное управление жилищно - коммунального хозяйства\"","5116000922","561045001","Оказание услуг в сфере горячего водоснабжения","HOT_VS"]
[650,"Оренбургская область","Ташлинский муниципальный район","53651000","Бородинское","53651408","30360904","Обособленное подразделение \"Оренбургское\" АО \"Главное управление жилищно - коммунального хозяйства\"","5116000922","561045001","Поставка горячей воды","HOT_VS"]
[651,"Оренбургская область","Ташлинский муниципальный район","53651000","Вязовское","53651413","30360904","Обособленное подразделение \"Оренбургское\" АО \"Главное управление жилищно - коммунального хозяйства\"","5116000922","561045001","Оказание услуг в сфере горячего водоснабжения","HOT_VS"]
[652,"Оренбургская область","Ташлинский муниципальный район","53651000","Вязовское","53651413","30360904","Обособленное подразделение \"Оренбургское\" АО \"Главное управление жилищно - коммунального хозяйства\"","5116000922","561045001","Поставка горячей воды","HOT_VS"]
[653,"Оренбургская область","Ташлинский муниципальный район","53651000","Заречное","53651416","30360904","Обособленное подразделение \"Оренбургское\" АО \"Главное управление жилищно - коммунального хозяйства\"","5116000922","561045001","Оказание услуг в сфере горячего водоснабжения","HOT_VS"]
[654,"Оренбургская область","Ташлинский муниципальный район","53651000","Заречное","53651416","30360904","Обособленное подразделение \"Оренбургское\" АО \"Главное управление жилищно - коммунального хозяйства\"","5116000922","561045001","Поставка горячей воды","HOT_VS"]
[655,"Оренбургская область","Ташлинский муниципальный район","53651000","Калининское","53651419","30360904","Обособленное подразделение \"Оренбургское\" АО \"Главное управление жилищно - коммунального хозяйства\"","5116000922","561045001","Оказание услуг в сфере горячего водоснабжения","HOT_VS"]
[656,"Оренбургская область","Ташлинский муниципальный район","53651000","Калининское","53651419","30360904","Обособленное подразделение \"Оренбургское\" АО \"Главное управление жилищно - коммунального хозяйства\"","5116000922","561045001","Поставка горячей воды","HOT_VS"]
[657,"Оренбургская область","Ташлинский муниципальный район","53651000","Кинделинское","53651422","30360904","Обособленное подразделение \"Оренбургское\" АО \"Главное управление жилищно - коммунального хозяйства\"","5116000922","561045001","Оказание услуг в сфере горячего водоснабжения","HOT_VS"]
[658,"Оренбургская область","Ташлинский муниципальный район","53651000","Кинделинское","53651422","30360904","Обособленное подразделение \"Оренбургское\" АО \"Главное управление жилищно - коммунального хозяйства\"","5116000922","561045001","Поставка горячей воды","HOT_VS"]
[659,"Оренбургская область","Ташлинский муниципальный район","53651000","Новокаменское","53651425","30360904","Обособленное подразделение \"Оренбургское\" АО \"Главное управление жилищно - коммунального хозяйства\"","5116000922","561045001","Оказание услуг в сфере горячего водоснабжения","HOT_VS"]
[660,"Оренбургская область","Ташлинский муниципальный район","53651000","Новокаменское","53651425","30360904","Обособленное подразделение \"Оренбургское\" АО \"Главное управление жилищно - коммунального хозяйства\"","5116000922","561045001","Поставка горячей воды","HOT_VS"]
[661,"Оренбургская область","Ташлинский муниципальный район","53651000","Придолинное","53651428","30360904","Обособленное подразделение \"Оренбургское\" АО \"Главное управление жилищно - коммунального хозяйства\"","5116000922","561045001","Оказание услуг в сфере горячего водоснабжения","HOT_VS"]
[662,"Оренбургская область","Ташлинский муниципальный район","53651000","Придолинное","53651428","30360904","Обособленное подразделение \"Оренбургское\" АО \"Главное управление жилищно - коммунального хозяйства\"","5116000922","561045001","Поставка горячей воды","HOT_VS"]
[663,"Оренбургская область","Ташлинский муниципальный район","53651000","Ранневское","53651431","30360904","Обособленное подразделение \"Оренбургское\" АО \"Главное управление жилищно - коммунального хозяйства\"","5116000922","561045001","Оказание услуг в сфере горячего водоснабжения","HOT_VS"]
[664,"Оренбургская область","Ташлинский муниципальный район","53651000","Ранневское","53651431","30360904","Обособленное подразделение \"Оренбургское\" АО \"Главное управление жилищно - коммунального хозяйства\"","5116000922","561045001","Поставка горячей воды","HOT_VS"]
[665,"Оренбургская область","Ташлинский муниципальный район","53651000","Степановское","53651434","30360904","Обособленное подразделение \"Оренбургское\" АО \"Главное управление жилищно - коммунального хозяйства\"","5116000922","561045001","Оказание услуг в сфере горячего водоснабжения","HOT_VS"]
[666,"Оренбургская область","Ташлинский муниципальный район","53651000","Степановское","53651434","30360904","Обособленное подразделение \"Оренбургское\" АО \"Главное управление жилищно - коммунального хозяйства\"","5116000922","561045001","Поставка горячей воды","HOT_VS"]
[667,"Оренбургская область","Ташлинский муниципальный район","53651000","Степное","53651437","30360904","Обособленное подразделение \"Оренбургское\" АО \"Главное управление жилищно - коммунального хозяйства\"","5116000922","561045001","Оказание услуг в сфере горячего водоснабжения","HOT_VS"]
[668,"Оренбургская область","Ташлинский муниципальный район","53651000","Степное","53651437","30360904","Обособленное подразделение \"Оренбургское\" АО \"Главное управление жилищно - коммунального хозяйства\"","5116000922","561045001","Поставка горячей воды","HOT_VS"]
[669,"Оренбургская область","Ташлинский муниципальный район","53651000","Ташлинское","53651440","30360904","Обособленное подразделение \"Оренбургское\" АО \"Главное управление жилищно - коммунального хозяйства\"","5116000922","561045001","Оказание услуг в сфере горячего водоснабжения","HOT_VS"]
[670,"Оренбургская область","Ташлинский муниципальный район","53651000","Ташлинское","53651440","30360904","Обособленное подразделение \"Оренбургское\" АО \"Главное управление жилищно - коммунального хозяйства\"","5116000922","561045001","Поставка горячей воды","HOT_VS"]
[671,"Оренбургская область","Ташлинский муниципальный район","53651000","Трудовое","53651443","30360904","Обособленное подразделение \"Оренбургское\" АО \"Главное управление жилищно - коммунального хозяйства\"","5116000922","561045001","Оказание услуг в сфере горячего водоснабжения","HOT_VS"]
[672,"Оренбургская область","Ташлинский муниципальный район","53651000","Трудовое","53651443","30360904","Обособленное подразделение \"Оренбургское\" АО \"Главное управление жилищно - коммунального хозяйства\"","5116000922","561045001","Поставка горячей воды","HOT_VS"]
[673,"Оренбургская область","Ташлинский муниципальный район","53651000","Чернояровское","53651446","30360904","Обособленное подразделение \"Оренбургское\" АО \"Главное управление жилищно - коммунального хозяйства\"","5116000922","561045001","Оказание услуг в сфере горячего водоснабжения","HOT_VS"]
[674,"Оренбургская область","Ташлинский муниципальный район","53651000","Чернояровское","53651446","30360904","Обособленное подразделение \"Оренбургское\" АО \"Главное управление жилищно - коммунального хозяйства\"","5116000922","561045001","Поставка горячей воды","HOT_VS"]
[675,"Оренбургская область","Ташлинский муниципальный район","53651000","Шестаковское","53651449","30360904","Обособленное подразделение \"Оренбургское\" АО \"Главное управление жилищно - коммунального хозяйства\"","5116000922","561045001","Оказание услуг в сфере горячего водоснабжения","HOT_VS"]
[676,"Оренбургская область","Ташлинский муниципальный район","53651000","Шестаковское","53651449","30360904","Обособленное подразделение \"Оренбургское\" АО \"Главное управление жилищно - коммунального хозяйства\"","5116000922","561045001","Поставка горячей воды","HOT_VS"]
[677,"Оренбургская область","Ташлинский муниципальный район","53651000","Яснополянское","53651452","30360904","Обособленное подразделение \"Оренбургское\" АО \"Главное управление жилищно - коммунального хозяйства\"","5116000922","561045001","Оказание услуг в сфере горячего водоснабжения","HOT_VS"]
[678,"Оренбургская область","Ташлинский муниципальный район","53651000","Яснополянское","53651452","30360904","Обособленное подразделение \"Оренбургское\" АО \"Главное управление жилищно - коммунального хозяйства\"","5116000922","561045001","Поставка горячей воды","HOT_VS"]
[679,"Оренбургская область","Тоцкий муниципальный район","53652000","Богдановское","53652402","30360904","Обособленное подразделение \"Оренбургское\" АО \"Главное управление жилищно - коммунального хозяйства\"","5116000922","561045001","Оказание услуг в сфере горячего водоснабжения","HOT_VS"]
[680,"Оренбургская область","Тоцкий муниципальный район","53652000","Богдановское","53652402","30360904","Обособленное подразделение \"Оренбургское\" АО \"Главное управление жилищно - коммунального хозяйства\"","5116000922","561045001","Поставка горячей воды","HOT_VS"]
[681,"Оренбургская область","Тоцкий муниципальный район","53652000","Верхнебузулукское","53652404","30360904","Обособленное подразделение \"Оренбургское\" АО \"Главное управление жилищно - коммунального хозяйства\"","5116000922","561045001","Оказание услуг в сфере горячего водоснабжения","HOT_VS"]
[682,"Оренбургская область","Тоцкий муниципальный район","53652000","Верхнебузулукское","53652404","30360904","Обособленное подразделение \"Оренбургское\" АО \"Главное управление жилищно - коммунального хозяйства\"","5116000922","561045001","Поставка горячей воды","HOT_VS"]
[683,"Оренбургская область","Тоцкий муниципальный район","53652000","Зареченское","53652406","26485308","АО “РЭУ” “Самарский”","7714783092","631143001","Оказание услуг в сфере горячего водоснабжения","HOT_VS"]
[684,"Оренбургская область","Тоцкий муниципальный район","53652000","Зареченское","53652406","30360904","Обособленное подразделение \"Оренбургское\" АО \"Главное управление жилищно - коммунального хозяйства\"","5116000922","561045001","Оказание услуг в сфере горячего водоснабжения","HOT_VS"]
[685,"Оренбургская область","Тоцкий муниципальный район","53652000","Зареченское","53652406","30360904","Обособленное подразделение \"Оренбургское\" АО \"Главное управление жилищно - коммунального хозяйства\"","5116000922","561045001","Поставка горячей воды","HOT_VS"]
[686,"Оренбургская область","Тоцкий муниципальный район","53652000","Злобинское","53652408","30360904","Обособленное подразделение \"Оренбургское\" АО \"Главное управление жилищно - коммунального хозяйства\"","5116000922","561045001","Оказание услуг в сфере горячего водоснабжения","HOT_VS"]
[687,"Оренбургская область","Тоцкий муниципальный район","53652000","Злобинское","53652408","30360904","Обособленное подразделение \"Оренбургское\" АО \"Главное управление жилищно - коммунального хозяйства\"","5116000922","561045001","Поставка горячей воды","HOT_VS"]
[688,"Оренбургская область","Тоцкий муниципальный район","53652000","Кирсановское","53652410","30360904","Обособленное подразделение \"Оренбургское\" АО \"Главное управление жилищно - коммунального хозяйства\"","5116000922","561045001","Оказание услуг в сфере горячего водоснабжения","HOT_VS"]
[689,"Оренбургская область","Тоцкий муниципальный район","53652000","Кирсановское","53652410","30360904","Обособленное подразделение \"Оренбургское\" АО \"Главное управление жилищно - коммунального хозяйства\"","5116000922","561045001","Поставка горячей воды","HOT_VS"]
[690,"Оренбургская область","Тоцкий муниципальный район","53652000","Ковыляевское","53652413","30360904","Обособленное подразделение \"Оренбургское\" АО \"Главное управление жилищно - коммунального хозяйства\"","5116000922","561045001","Оказание услуг в сфере горячего водоснабжения","HOT_VS"]
[691,"Оренбургская область","Тоцкий муниципальный район","53652000","Ковыляевское","53652413","30360904","Обособленное подразделение \"Оренбургское\" АО \"Главное управление жилищно - коммунального хозяйства\"","5116000922","561045001","Поставка горячей воды","HOT_VS"]
[692,"Оренбургская область","Тоцкий муниципальный район","53652000","Малоремизенское","53652422","30360904","Обособленное подразделение \"Оренбургское\" АО \"Главное управление жилищно - коммунального хозяйства\"","5116000922","561045001","Оказание услуг в сфере горячего водоснабжения","HOT_VS"]
[693,"Оренбургская область","Тоцкий муниципальный район","53652000","Малоремизенское","53652422","30360904","Обособленное подразделение \"Оренбургское\" АО \"Главное управление жилищно - коммунального хозяйства\"","5116000922","561045001","Поставка горячей воды","HOT_VS"]
[694,"Оренбургская область","Тоцкий муниципальный район","53652000","Медведское","53652426","30360904","Обособленное подразделение \"Оренбургское\" АО \"Главное управление жилищно - коммунального хозяйства\"","5116000922","561045001","Оказание услуг в сфере горячего водоснабжения","HOT_VS"]
[695,"Оренбургская область","Тоцкий муниципальный район","53652000","Медведское","53652426","30360904","Обособленное подразделение \"Оренбургское\" АО \"Главное управление жилищно - коммунального хозяйства\"","5116000922","561045001","Поставка горячей воды","HOT_VS"]
[696,"Оренбургская область","Тоцкий муниципальный район","53652000","Молодежное","53652427","30360904","Обособленное подразделение \"Оренбургское\" АО \"Главное управление жилищно - коммунального хозяйства\"","5116000922","561045001","Оказание услуг в сфере горячего водоснабжения","HOT_VS"]
[697,"Оренбургская область","Тоцкий муниципальный район","53652000","Молодежное","53652427","30360904","Обособленное подразделение \"Оренбургское\" АО \"Главное управление жилищно - коммунального хозяйства\"","5116000922","561045001","Поставка горячей воды","HOT_VS"]
[698,"Оренбургская область","Тоцкий муниципальный район","53652000","Павло-Антоновское","53652428","30360904","Обособленное подразделение \"Оренбургское\" АО \"Главное управление жилищно - коммунального хозяйства\"","5116000922","561045001","Оказание услуг в сфере горячего водоснабжения","HOT_VS"]
[699,"Оренбургская область","Тоцкий муниципальный район","53652000","Павло-Антоновское","53652428","30360904","Обособленное подразделение \"Оренбургское\" АО \"Главное управление жилищно - коммунального хозяйства\"","5116000922","561045001","Поставка горячей воды","HOT_VS"]
[700,"Оренбургская область","Тоцкий муниципальный район","53652000","Погроминское","53652431","30360904","Обособленное подразделение \"Оренбургское\" АО \"Главное управление жилищно - коммунального хозяйства\"","5116000922","561045001","Оказание услуг в сфере горячего водоснабжения","HOT_VS"]
[701,"Оренбургская область","Тоцкий муниципальный район","53652000","Погроминское","53652431","30360904","Обособленное подразделение \"Оренбургское\" АО \"Главное управление жилищно - коммунального хозяйства\"","5116000922","561045001","Поставка горячей воды","HOT_VS"]
[702,"Оренбургская область","Тоцкий муниципальный район","53652000","Погроминское","53652431","26360992","Южно-Уральская дирекция по тепловодоснабжению - структурное подразделение Центральной дирекции по тепловодоснабжению - филиала ОАО \"РЖД\"","7708503727","744945004","Оказание услуг в сфере горячего водоснабжения","HOT_VS"]
[703,"Оренбургская область","Тоцкий муниципальный район","53652000","Преображенское","53652434","30360904","Обособленное подразделение \"Оренбургское\" АО \"Главное управление жилищно - коммунального хозяйства\"","5116000922","561045001","Оказание услуг в сфере горячего водоснабжения","HOT_VS"]
[704,"Оренбургская область","Тоцкий муниципальный район","53652000","Преображенское","53652434","30360904","Обособленное подразделение \"Оренбургское\" АО \"Главное управление жилищно - коммунального хозяйства\"","5116000922","561045001","Поставка горячей воды","HOT_VS"]
[705,"Оренбургская область","Тоцкий муниципальный район","53652000","Пристанционное","53652437","30360904","Обособленное подразделение \"Оренбургское\" АО \"Главное управление жилищно - коммунального хозяйства\"","5116000922","561045001","Оказание услуг в сфере горячего водоснабжения","HOT_VS"]
[706,"Оренбургская область","Тоцкий муниципальный район","53652000","Пристанционное","53652437","30360904","Обособленное подразделение \"Оренбургское\" АО \"Главное управление жилищно - коммунального хозяйства\"","5116000922","561045001","Поставка горячей воды","HOT_VS"]
[707,"Оренбургская область","Тоцкий муниципальный район","53652000","Приютинское","53652440","30360904","Обособленное подразделение \"Оренбургское\" АО \"Главное управление жилищно - коммунального хозяйства\"","5116000922","561045001","Оказание услуг в сфере горячего водоснабжения","HOT_VS"]
[708,"Оренбургская область","Тоцкий муниципальный район","53652000","Приютинское","53652440","30360904","Обособленное подразделение \"Оренбургское\" АО \"Главное управление жилищно - коммунального хозяйства\"","5116000922","561045001","Поставка горячей воды","HOT_VS"]
[709,"Оренбургская область","Тоцкий муниципальный район","53652000","Саиновское","53652442","30360904","Обособленное подразделение \"Оренбургское\" АО \"Главное управление жилищно - коммунального хозяйства\"","5116000922","561045001","Оказание услуг в сфере горячего водоснабжения","HOT_VS"]
[710,"Оренбургская область","Тоцкий муниципальный район","53652000","Саиновское","53652442","30360904","Обособленное подразделение \"Оренбургское\" АО \"Главное управление жилищно - коммунального хозяйства\"","5116000922","561045001","Поставка горячей воды","HOT_VS"]
[711,"Оренбургская область","Тоцкий муниципальный район","53652000","Свердловское","53652443","30360904","Обособленное подразделение \"Оренбургское\" АО \"Главное управление жилищно - коммунального хозяйства\"","5116000922","561045001","Оказание услуг в сфере горячего водоснабжения","HOT_VS"]
[712,"Оренбургская область","Тоцкий муниципальный район","53652000","Свердловское","53652443","30360904","Обособленное подразделение \"Оренбургское\" АО \"Главное управление жилищно - коммунального хозяйства\"","5116000922","561045001","Поставка горячей воды","HOT_VS"]
[713,"Оренбургская область","Тоцкий муниципальный район","53652000","Суворовское","53652446","30360904","Обособленное подразделение \"Оренбургское\" АО \"Главное управление жилищно - коммунального хозяйства\"","5116000922","561045001","Оказание услуг в сфере горячего водоснабжения","HOT_VS"]
[714,"Оренбургская область","Тоцкий муниципальный район","53652000","Суворовское","53652446","30360904","Обособленное подразделение \"Оренбургское\" АО \"Главное управление жилищно - коммунального хозяйства\"","5116000922","561045001","Поставка горячей воды","HOT_VS"]
[715,"Оренбургская область","Тоцкий муниципальный район","53652000","Тоцкое","53652449","26510793","ООО \"Тоцкие тепловые сети\"","5649020143","564901001","Оказание услуг в сфере горячего водоснабжения","HOT_VS"]
[716,"Оренбургская область","Тоцкий муниципальный район","53652000","Тоцкое","53652449","30360904","Обособленное подразделение \"Оренбургское\" АО \"Главное управление жилищно - коммунального хозяйства\"","5116000922","561045001","Оказание услуг в сфере горячего водоснабжения","HOT_VS"]
[717,"Оренбургская область","Тоцкий муниципальный район","53652000","Тоцкое","53652449","30360904","Обособленное подразделение \"Оренбургское\" АО \"Главное управление жилищно - коммунального хозяйства\"","5116000922","561045001","Поставка горячей воды","HOT_VS"]
[718,"Оренбургская область","Тоцкий муниципальный район","53652000","Тоцкое","53652449","26360992","Южно-Уральская дирекция по тепловодоснабжению - структурное подразделение Центральной дирекции по тепловодоснабжению - филиала ОАО \"РЖД\"","7708503727","744945004","Оказание услуг в сфере горячего водоснабжения","HOT_VS"]
[719,"Оренбургская область","Тюльганский муниципальный район","53653000","Алмалинское","53653402","27972418","Администрация Тюльганского района","5650004227","565001001","Оказание услуг в сфере горячего водоснабжения","HOT_VS"]
[720,"Оренбургская область","Тюльганский муниципальный район","53653000","Благовещенское","53653404","27972418","Администрация Тюльганского района","5650004227","565001001","Оказание услуг в сфере горячего водоснабжения","HOT_VS"]
[721,"Оренбургская область","Тюльганский муниципальный район","53653000","Благодарновское","53653407","27972418","Администрация Тюльганского района","5650004227","565001001","Оказание услуг в сфере горячего водоснабжения","HOT_VS"]
[722,"Оренбургская область","Тюльганский муниципальный район","53653000","Городецкое","53653410","27972418","Администрация Тюльганского района","5650004227","565001001","Оказание услуг в сфере горячего водоснабжения","HOT_VS"]
[723,"Оренбургская область","Тюльганский муниципальный район","53653000","Екатеринославское","53653413","27972418","Администрация Тюльганского района","5650004227","565001001","Оказание услуг в сфере горячего водоснабжения","HOT_VS"]
[724,"Оренбургская область","Тюльганский муниципальный район","53653000","Ивановское","53653416","27972418","Администрация Тюльганского района","5650004227","565001001","Оказание услуг в сфере горячего водоснабжения","HOT_VS"]
[725,"Оренбургская область","Тюльганский муниципальный район","53653000","Ключевское","53653419","27972418","Администрация Тюльганского района","5650004227","565001001","Оказание услуг в сфере горячего водоснабжения","HOT_VS"]
[726,"Оренбургская область","Тюльганский муниципальный район","53653000","Разномойское","53653422","27972418","Администрация Тюльганского района","5650004227","565001001","Оказание услуг в сфере горячего водоснабжения","HOT_VS"]
[727,"Оренбургская область","Тюльганский муниципальный район","53653000","Репьевское","53653425","27972418","Администрация Тюльганского района","5650004227","565001001","Оказание услуг в сфере горячего водоснабжения","HOT_VS"]
[728,"Оренбургская область","Тюльганский муниципальный район","53653000","Ташлинское","53653428","27972418","Администрация Тюльганского района","5650004227","565001001","Оказание услуг в сфере горячего водоснабжения","HOT_VS"]
[729,"Оренбургская область","Тюльганский муниципальный район","53653000","Троицкое","53653431","27972418","Администрация Тюльганского района","5650004227","565001001","Оказание услуг в сфере горячего водоснабжения","HOT_VS"]
[730,"Оренбургская область","Тюльганский муниципальный район","53653000","Тугустемирское","53653434","27972418","Администрация Тюльганского района","5650004227","565001001","Оказание услуг в сфере горячего водоснабжения","HOT_VS"]
[731,"Оренбургская область","Тюльганский муниципальный район","53653000","Тюльганское","53653435","27972418","Администрация Тюльганского района","5650004227","565001001","Оказание услуг в сфере горячего водоснабжения","HOT_VS"]
[732,"Оренбургская область","Тюльганский муниципальный район","53653000","Тюльганское","53653435","26443017","ООО \"ЖКХ п.Тюльган\"","5650010171","565001001","Оказание услуг в сфере горячего водоснабжения","HOT_VS"]
[733,"Оренбургская область","Тюльганский муниципальный район","53653000","Чапаевское","53653437","27972418","Администрация Тюльганского района","5650004227","565001001","Оказание услуг в сфере горячего водоснабжения","HOT_VS"]
[734,"Оренбургская область","Шарлыкский муниципальный район","53656000","Богородское","53656402","30360904","Обособленное подразделение \"Оренбургское\" АО \"Главное управление жилищно - коммунального хозяйства\"","5116000922","561045001","Оказание услуг в сфере горячего водоснабжения","HOT_VS"]
[735,"Оренбургская область","Шарлыкский муниципальный район","53656000","Богородское","53656402","30360904","Обособленное подразделение \"Оренбургское\" АО \"Главное управление жилищно - коммунального хозяйства\"","5116000922","561045001","Поставка горячей воды","HOT_VS"]
[736,"Оренбургская область","Шарлыкский муниципальный район","53656000","Дубровское","53656403","30360904","Обособленное подразделение \"Оренбургское\" АО \"Главное управление жилищно - коммунального хозяйства\"","5116000922","561045001","Оказание услуг в сфере горячего водоснабжения","HOT_VS"]
[737,"Оренбургская область","Шарлыкский муниципальный район","53656000","Дубровское","53656403","30360904","Обособленное подразделение \"Оренбургское\" АО \"Главное управление жилищно - коммунального хозяйства\"","5116000922","561045001","Поставка горячей воды","HOT_VS"]
[738,"Оренбургская область","Шарлыкский муниципальный район","53656000","Зерклинское","53656404","30360904","Обособленное подразделение \"Оренбургское\" АО \"Главное управление жилищно - коммунального хозяйства\"","5116000922","561045001","Оказание услуг в сфере горячего водоснабжения","HOT_VS"]
[739,"Оренбургская область","Шарлыкский муниципальный район","53656000","Зерклинское","53656404","30360904","Обособленное подразделение \"Оренбургское\" АО \"Главное управление жилищно - коммунального хозяйства\"","5116000922","561045001","Поставка горячей воды","HOT_VS"]
[740,"Оренбургская область","Шарлыкский муниципальный район","53656000","Илькульганское","53656407","30360904","Обособленное подразделение \"Оренбургское\" АО \"Главное управление жилищно - коммунального хозяйства\"","5116000922","561045001","Оказание услуг в сфере горячего водоснабжения","HOT_VS"]
[741,"Оренбургская область","Шарлыкский муниципальный район","53656000","Илькульганское","53656407","30360904","Обособленное подразделение \"Оренбургское\" АО \"Главное управление жилищно - коммунального хозяйства\"","5116000922","561045001","Поставка горячей воды","HOT_VS"]
[742,"Оренбургская область","Шарлыкский муниципальный район","53656000","Казанское","53656410","30360904","Обособленное подразделение \"Оренбургское\" АО \"Главное управление жилищно - коммунального хозяйства\"","5116000922","561045001","Оказание услуг в сфере горячего водоснабжения","HOT_VS"]
[743,"Оренбургская область","Шарлыкский муниципальный район","53656000","Казанское","53656410","30360904","Обособленное подразделение \"Оренбургское\" АО \"Главное управление жилищно - коммунального хозяйства\"","5116000922","561045001","Поставка горячей воды","HOT_VS"]
[744,"Оренбургская область","Шарлыкский муниципальный район","53656000","Константиновское","53656413","30360904","Обособленное подразделение \"Оренбургское\" АО \"Главное управление жилищно - коммунального хозяйства\"","5116000922","561045001","Оказание услуг в сфере горячего водоснабжения","HOT_VS"]
[745,"Оренбургская область","Шарлыкский муниципальный район","53656000","Константиновское","53656413","30360904","Обособленное подразделение \"Оренбургское\" АО \"Главное управление жилищно - коммунального хозяйства\"","5116000922","561045001","Поставка горячей воды","HOT_VS"]
[746,"Оренбургская область","Шарлыкский муниципальный район","53656000","Новоархангельское","53656419","30360904","Обособленное подразделение \"Оренбургское\" АО \"Главное управление жилищно - коммунального хозяйства\"","5116000922","561045001","Оказание услуг в сфере горячего водоснабжения","HOT_VS"]
[747,"Оренбургская область","Шарлыкский муниципальный район","53656000","Новоархангельское","53656419","30360904","Обособленное подразделение \"Оренбургское\" АО \"Главное управление жилищно - коммунального хозяйства\"","5116000922","561045001","Поставка горячей воды","HOT_VS"]
[748,"Оренбургская область","Шарлыкский муниципальный район","53656000","Новомусинское","53656425","30360904","Обособленное подразделение \"Оренбургское\" АО \"Главное управление жилищно - коммунального хозяйства\"","5116000922","561045001","Оказание услуг в сфере горячего водоснабжения","HOT_VS"]
[749,"Оренбургская область","Шарлыкский муниципальный район","53656000","Новомусинское","53656425","30360904","Обособленное подразделение \"Оренбургское\" АО \"Главное управление жилищно - коммунального хозяйства\"","5116000922","561045001","Поставка горячей воды","HOT_VS"]
[750,"Оренбургская область","Шарлыкский муниципальный район","53656000","Новоникольское","53656428","30414033","МУП \"Жилводсервис\"","5651020648","565010001","Поставка горячей воды","HOT_VS"]
[751,"Оренбургская область","Шарлыкский муниципальный район","53656000","Новоникольское","53656428","30360904","Обособленное подразделение \"Оренбургское\" АО \"Главное управление жилищно - коммунального хозяйства\"","5116000922","561045001","Оказание услуг в сфере горячего водоснабжения","HOT_VS"]
[752,"Оренбургская область","Шарлыкский муниципальный район","53656000","Новоникольское","53656428","30360904","Обособленное подразделение \"Оренбургское\" АО \"Главное управление жилищно - коммунального хозяйства\"","5116000922","561045001","Поставка горячей воды","HOT_VS"]
[753,"Оренбургская область","Шарлыкский муниципальный район","53656000","Новоникольское","53656428","30378245","Урицкое МУП \"Жилводсервис\"","5725003248","572501001","Оказание услуг в сфере горячего водоснабжения","HOT_VS"]
[754,"Оренбургская область","Шарлыкский муниципальный район","53656000","Парадаевское","53656429","30360904","Обособленное подразделение \"Оренбургское\" АО \"Главное управление жилищно - коммунального хозяйства\"","5116000922","561045001","Оказание услуг в сфере горячего водоснабжения","HOT_VS"]
[755,"Оренбургская область","Шарлыкский муниципальный район","53656000","Парадаевское","53656429","30360904","Обособленное подразделение \"Оренбургское\" АО \"Главное управление жилищно - коммунального хозяйства\"","5116000922","561045001","Поставка горячей воды","HOT_VS"]
[756,"Оренбургская область","Шарлыкский муниципальный район","53656000","Преображенское","53656430","30360904","Обособленное подразделение \"Оренбургское\" АО \"Главное управление жилищно - коммунального хозяйства\"","5116000922","561045001","Оказание услуг в сфере горячего водоснабжения","HOT_VS"]
[757,"Оренбургская область","Шарлыкский муниципальный район","53656000","Преображенское","53656430","30360904","Обособленное подразделение \"Оренбургское\" АО \"Главное управление жилищно - коммунального хозяйства\"","5116000922","561045001","Поставка горячей воды","HOT_VS"]
[758,"Оренбургская область","Шарлыкский муниципальный район","53656000","Путятинское","53656432","30360904","Обособленное подразделение \"Оренбургское\" АО \"Главное управление жилищно - коммунального хозяйства\"","5116000922","561045001","Оказание услуг в сфере горячего водоснабжения","HOT_VS"]
[759,"Оренбургская область","Шарлыкский муниципальный район","53656000","Путятинское","53656432","30360904","Обособленное подразделение \"Оренбургское\" АО \"Главное управление жилищно - коммунального хозяйства\"","5116000922","561045001","Поставка горячей воды","HOT_VS"]
[760,"Оренбургская область","Шарлыкский муниципальный район","53656000","Ратчинское","53656434","30360904","Обособленное подразделение \"Оренбургское\" АО \"Главное управление жилищно - коммунального хозяйства\"","5116000922","561045001","Оказание услуг в сфере горячего водоснабжения","HOT_VS"]
[761,"Оренбургская область","Шарлыкский муниципальный район","53656000","Ратчинское","53656434","30360904","Обособленное подразделение \"Оренбургское\" АО \"Главное управление жилищно - коммунального хозяйства\"","5116000922","561045001","Поставка горячей воды","HOT_VS"]
[762,"Оренбургская область","Шарлыкский муниципальный район","53656000","Сарманайское","53656437","30360904","Обособленное подразделение \"Оренбургское\" АО \"Главное управление жилищно - коммунального хозяйства\"","5116000922","561045001","Оказание услуг в сфере горячего водоснабжения","HOT_VS"]
[763,"Оренбургская область","Шарлыкский муниципальный район","53656000","Сарманайское","53656437","30360904","Обособленное подразделение \"Оренбургское\" АО \"Главное управление жилищно - коммунального хозяйства\"","5116000922","561045001","Поставка горячей воды","HOT_VS"]
[764,"Оренбургская область","Шарлыкский муниципальный район","53656000","Слоновское","53656440","30360904","Обособленное подразделение \"Оренбургское\" АО \"Главное управление жилищно - коммунального хозяйства\"","5116000922","561045001","Оказание услуг в сфере горячего водоснабжения","HOT_VS"]
[765,"Оренбургская область","Шарлыкский муниципальный район","53656000","Слоновское","53656440","30360904","Обособленное подразделение \"Оренбургское\" АО \"Главное управление жилищно - коммунального хозяйства\"","5116000922","561045001","Поставка горячей воды","HOT_VS"]
[766,"Оренбургская область","Шарлыкский муниципальный район","53656000","Титовское","53656443","30360904","Обособленное подразделение \"Оренбургское\" АО \"Главное управление жилищно - коммунального хозяйства\"","5116000922","561045001","Оказание услуг в сфере горячего водоснабжения","HOT_VS"]
[767,"Оренбургская область","Шарлыкский муниципальный район","53656000","Титовское","53656443","30360904","Обособленное подразделение \"Оренбургское\" АО \"Главное управление жилищно - коммунального хозяйства\"","5116000922","561045001","Поставка горячей воды","HOT_VS"]
[768,"Оренбургская область","Шарлыкский муниципальный район","53656000","Шарлыкское","53656446","30414033","МУП \"Жилводсервис\"","5651020648","565010001","Поставка горячей воды","HOT_VS"]
[769,"Оренбургская область","Шарлыкский муниципальный район","53656000","Шарлыкское","53656446","27869283","МУП Жилводсервис","5651020648","565101001","Оказание услуг в сфере горячего водоснабжения","HOT_VS"]
[770,"Оренбургская область","Шарлыкский муниципальный район","53656000","Шарлыкское","53656446","30360904","Обособленное подразделение \"Оренбургское\" АО \"Главное управление жилищно - коммунального хозяйства\"","5116000922","561045001","Оказание услуг в сфере горячего водоснабжения","HOT_VS"]
[771,"Оренбургская область","Шарлыкский муниципальный район","53656000","Шарлыкское","53656446","30360904","Обособленное подразделение \"Оренбургское\" АО \"Главное управление жилищно - коммунального хозяйства\"","5116000922","561045001","Поставка горячей воды","HOT_VS"]
[772,"Оренбургская область","Шарлыкский муниципальный район","53656000","Шарлыкское","53656446","30378245","Урицкое МУП \"Жилводсервис\"","5725003248","572501001","Оказание услуг в сфере горячего водоснабжения","HOT_VS"]
[773,"Оренбургская область","Ясненский","53732000","Ясненский","53732000","26644312","ООО \"Энергоресурс\"","5618030399","561801001","Оказание услуг в сфере горячего водоснабжения","HOT_VS"]
[774,"Оренбургская область","город Бугуруслан","53708000","город Бугуруслан","53708000","26443102","ЗАО \"Тепловодоснабжение\" г. Бугуруслан","5602020719","560201001","Оказание услуг в сфере горячего водоснабжения","HOT_VS"]
[775,"Оренбургская область","город Бугуруслан","53708000","город Бугуруслан","53708000","26812367","Куйбышевская дирекция  по тепловодоснабжению структурное подразделение Центральной дирекции по тепловодоснабжению филиала ПАО «РЖД»","7708503727","631145034","Поставка горячей воды","HOT_VS"]
[776,"Оренбургская область","город Бугуруслан","53708000","город Бугуруслан","53708000","26516898","ООО \"Бугуруслантеплогаз\"","5602020116","560201001","Оказание услуг в сфере горячего водоснабжения","HOT_VS"]
[777,"Оренбургская область","город Бугуруслан","53708000","город Бугуруслан","53708000","27579425","ООО \"Тепловодоснабжение\"","5602022032","560201001","Оказание услуг в сфере горячего водоснабжения","HOT_VS"]
[778,"Оренбургская область","город Бугуруслан","53708000","город Бугуруслан","53708000","28494177","ООО \"Тепловые сети\"","5602023195","560201001","Оказание услуг в сфере горячего водоснабжения","HOT_VS"]
[779,"Оренбургская область","город Бугуруслан","53708000","город Бугуруслан","53708000","28868639","ООО \"Теплоснабжение\"","5602023533","560201001","Оказание услуг в сфере горячего водоснабжения","HOT_VS"]
[780,"Оренбургская область","город Бугуруслан","53708000","город Бугуруслан","53708000","26515732","филиал ПАО \"МРСК Волги\"-\"Оренбургэнерго\"","6450925977","561202001","Оказание услуг в сфере горячего водоснабжения","HOT_VS"]
[781,"Оренбургская область","город Бугуруслан","53708000","город Бугуруслан","53708000","28500798","филиал ПАО \"МРСК Волги\"-\"Оренбургэнерго\"","6450925977","560231001","Оказание услуг в сфере горячего водоснабжения","HOT_VS"]
[782,"Оренбургская область","город Бузулук","53712000","город Бузулук","53712000","28882918","Администрация г. Бузулука","5603005424","560301001","Оказание услуг в сфере горячего водоснабжения","HOT_VS"]
[783,"Оренбургская область","город Бузулук","53712000","город Бузулук","53712000","26791453","МУП \"СТС\" г. Бузулука","5603036302","560301001","Оказание услуг в сфере горячего водоснабжения","HOT_VS"]
[784,"Оренбургская область","город Бузулук","53712000","город Бузулук","53712000","26359014","МУП ЖКХ г.Бузулука","5603006523","560301001","Оказание услуг в сфере горячего водоснабжения","HOT_VS"]
[785,"Оренбургская область","город Бузулук","53712000","город Бузулук","53712000","26516923","ООО \"БузулукТеплосбыт\"","5603016426","560301001","Оказание услуг в сфере горячего водоснабжения","HOT_VS"]
[786,"Оренбургская область","город Бузулук","53712000","город Бузулук","53712000","30394132","ООО \"Весна\"","5603043148","560301001","Оказание услуг в сфере горячего водоснабжения","HOT_VS"]
[787,"Оренбургская область","город Бузулук","53712000","город Бузулук","53712000","26359019","ООО \"Энергокаскад\"","5603013760","560301001","Оказание услуг в сфере горячего водоснабжения","HOT_VS"]
[788,"Оренбургская область","город Бузулук","53712000","город Бузулук","53712000","28003313","ФКУ \"ИК-2\" УФСИН России по Оренбургской области","5603007301","560301001","Оказание услуг в сфере горячего водоснабжения","HOT_VS"]
[789,"Оренбургская область","город Бузулук","53712000","город Бузулук","53712000","26360992","Южно-Уральская дирекция по тепловодоснабжению - структурное подразделение Центральной дирекции по тепловодоснабжению - филиала ОАО \"РЖД\"","7708503727","744945004","Оказание услуг в сфере горячего водоснабжения","HOT_VS"]
[790,"Оренбургская область","город Бузулук","53712000","город Бузулук","53712000","26515732","филиал ПАО \"МРСК Волги\"-\"Оренбургэнерго\"","6450925977","561202001","Оказание услуг в сфере горячего водоснабжения","HOT_VS"]
[791,"Оренбургская область","город Медногорск","53715000","город Медногорск","53715000","26516935","ОАО \"Оренбургская ТГК\"","5612042831","561201001","Оказание услуг в сфере горячего водоснабжения","HOT_VS"]
[792,"Оренбургская область","город Медногорск","53715000","город Медногорск","53715000","26359037","ООО \"Оренбургская КТК\"","5609047251","560901001","Оказание услуг в сфере горячего водоснабжения","HOT_VS"]
[793,"Оренбургская область","город Медногорск","53715000","город Медногорск","53715000","28945713","Филиал \"Саратовский\" ПАО \"Т Плюс\"","6315376946","645043001","Поставка горячей воды","HOT_VS"]
[794,"Оренбургская область","город Медногорск","53715000","город Медногорск","53715000","28870090","филиал \"Оренбургский\" ПАО \"Т Плюс\"","6315376946","561243001","Оказание услуг в сфере горячего водоснабжения","HOT_VS"]
[795,"Оренбургская область","город Новотроицк","53720000","город Новотроицк","53720000","27920923","Администрация г. Новотроицка","5607005908","560701001","Оказание услуг в сфере горячего водоснабжения","HOT_VS"]
[796,"Оренбургская область","город Новотроицк","53720000","город Новотроицк","53720000","26359029","МУП \"ЖКХ п.Новорудный\"","5607014035","560701001","Оказание услуг в сфере горячего водоснабжения","HOT_VS"]
[797,"Оренбургская область","город Новотроицк","53720000","город Новотроицк","53720000","26359031","ООО \"УКХ\" г. Новотроицк","5607020110","560701001","Оказание услуг в сфере горячего водоснабжения","HOT_VS"]
[798,"Оренбургская область","город Оренбург","53701000","город Оренбург","53701000","26560525","АО \"ГУ ЖКХ\"","5116000922","511601001","Поставка горячей воды","HOT_VS"]
[799,"Оренбургская область","город Оренбург","53701000","город Оренбург","53701000","26359038","АО \"ПО \"Стрела\"","5609061432","560901001","Оказание услуг в сфере горячего водоснабжения","HOT_VS"]
[800,"Оренбургская область","город Оренбург","53701000","город Оренбург","53701000","26572663","АО \"ФПК\"","7708709686","997650001","Оказание услуг в сфере горячего водоснабжения","HOT_VS"]
[801,"Оренбургская область","город Оренбург","53701000","город Оренбург","53701000","26485308","АО “РЭУ” “Самарский”","7714783092","631143001","Оказание услуг в сфере горячего водоснабжения","HOT_VS"]
[802,"Оренбургская область","город Оренбург","53701000","город Оренбург","53701000","26516935","ОАО \"Оренбургская ТГК\"","5612042831","561201001","Оказание услуг в сфере горячего водоснабжения","HOT_VS"]
[803,"Оренбургская область","город Оренбург","53701000","город Оренбург","53701000","28044022","ООО  УК \"А -Строй\"","5610122104","561001001","Поставка горячей воды","HOT_VS"]
[804,"Оренбургская область","город Оренбург","53701000","город Оренбург","53701000","26322717","ООО \"Газпром трансгаз Екатеринбург\"","6608007434","742150001","Оказание услуг в сфере горячего водоснабжения","HOT_VS"]
[805,"Оренбургская область","город Оренбург","53701000","город Оренбург","53701000","26359037","ООО \"Оренбургская КТК\"","5609047251","560901001","Оказание услуг в сфере горячего водоснабжения","HOT_VS"]
[806,"Оренбургская область","город Оренбург","53701000","город Оренбург","53701000","26359059","ООО \"Оренбургский радиатор\"","5612030402","561201001","Оказание услуг в сфере горячего водоснабжения","HOT_VS"]
[807,"Оренбургская область","город Оренбург","53701000","город Оренбург","53701000","28454021","ООО \"Теплогенерирующая компания\"","5610152282","561001001","Поставка горячей воды","HOT_VS"]
[808,"Оренбургская область","город Оренбург","53701000","город Оренбург","53701000","30360904","Обособленное подразделение \"Оренбургское\" АО \"Главное управление жилищно - коммунального хозяйства\"","5116000922","561045001","Оказание услуг в сфере горячего водоснабжения","HOT_VS"]
[809,"Оренбургская область","город Оренбург","53701000","город Оренбург","53701000","30360904","Обособленное подразделение \"Оренбургское\" АО \"Главное управление жилищно - коммунального хозяйства\"","5116000922","561045001","Поставка горячей воды","HOT_VS"]
[810,"Оренбургская область","город Оренбург","53701000","город Оренбург","53701000","28952533","Управление жилищно - коммунального хозяйства администрации г. Оренбурга","5612005646","561201001","Оказание услуг в сфере горячего водоснабжения","HOT_VS"]
[811,"Оренбургская область","город Оренбург","53701000","город Оренбург","53701000","28945713","Филиал \"Саратовский\" ПАО \"Т Плюс\"","6315376946","645043001","Поставка горячей воды","HOT_VS"]
[812,"Оренбургская область","город Оренбург","53701000","город Оренбург","53701000","26360992","Южно-Уральская дирекция по тепловодоснабжению - структурное подразделение Центральной дирекции по тепловодоснабжению - филиала ОАО \"РЖД\"","7708503727","744945004","Оказание услуг в сфере горячего водоснабжения","HOT_VS"]
[813,"Оренбургская область","город Оренбург","53701000","город Оренбург","53701000","26361088","Южно-Уральский филиал ООО \"Газпром энерго\"","7736186950","561002001","Оказание услуг в сфере горячего водоснабжения","HOT_VS"]
[814,"Оренбургская область","город Оренбург","53701000","город Оренбург","53701000","26324398","филиал \"Ириклинская ГРЭС \" АО \"Интер РАО - Электрогенерация\"","7704784450","563543001","Поставка горячей воды","HOT_VS"]
[815,"Оренбургская область","город Оренбург","53701000","город Оренбург","53701000","28870090","филиал \"Оренбургский\" ПАО \"Т Плюс\"","6315376946","561243001","Оказание услуг в сфере горячего водоснабжения","HOT_VS"]
[816,"Оренбургская область","город Оренбург","53701000","город Оренбург","53701000","26515732","филиал ПАО \"МРСК Волги\"-\"Оренбургэнерго\"","6450925977","561202001","Оказание услуг в сфере горячего водоснабжения","HOT_VS"]
[817,"Оренбургская область","город Орск","53723000","город Орск","53723000","26359064","ЗАО \"Орский мясокомбинат\"","5616009708","561601001","Поставка горячей воды","HOT_VS"]
[818,"Оренбургская область","город Орск","53723000","город Орск","53723000","26517625","МУП \"Орское предприятие тепловых сетей\"","5615002393","561501001","Оказание услуг в сфере горячего водоснабжения","HOT_VS"]
[819,"Оренбургская область","город Орск","53723000","город Орск","53723000","26516935","ОАО \"Оренбургская ТГК\"","5612042831","561201001","Оказание услуг в сфере горячего водоснабжения","HOT_VS"]
[820,"Оренбургская область","город Орск","53723000","город Орск","53723000","28943814","ООО \"Орский мясокомбинат\"","5614054751","561401001","Оказание услуг в сфере горячего водоснабжения","HOT_VS"]
[821,"Оренбургская область","город Орск","53723000","город Орск","53723000","28881091","ООО \"ТПК\"Орские заводы\"","5614054173","561401001","Оказание услуг в сфере горячего водоснабжения","HOT_VS"]
[822,"Оренбургская область","город Орск","53723000","город Орск","53723000","30360904","Обособленное подразделение \"Оренбургское\" АО \"Главное управление жилищно - коммунального хозяйства\"","5116000922","561045001","Оказание услуг в сфере горячего водоснабжения","HOT_VS"]
[823,"Оренбургская область","город Орск","53723000","город Орск","53723000","30360904","Обособленное подразделение \"Оренбургское\" АО \"Главное управление жилищно - коммунального хозяйства\"","5116000922","561045001","Поставка горячей воды","HOT_VS"]
[824,"Оренбургская область","город Орск","53723000","город Орск","53723000","28945713","Филиал \"Саратовский\" ПАО \"Т Плюс\"","6315376946","645043001","Поставка горячей воды","HOT_VS"]
[825,"Оренбургская область","город Орск","53723000","город Орск","53723000","26360992","Южно-Уральская дирекция по тепловодоснабжению - структурное подразделение Центральной дирекции по тепловодоснабжению - филиала ОАО \"РЖД\"","7708503727","744945004","Оказание услуг в сфере горячего водоснабжения","HOT_VS"]
[826,"Оренбургская область","город Орск","53723000","город Орск","53723000","28870090","филиал \"Оренбургский\" ПАО \"Т Плюс\"","6315376946","561243001","Оказание услуг в сфере горячего водоснабжения","HOT_VS"]

{"sheet":"modClassifierValidate","index":20,"n_rows":0,"n_cols":0,"rows_kept":0,"cut":false,"hidden":true,"merged":[]}

{"sheet":"modHyp","index":21,"n_rows":0,"n_cols":0,"rows_kept":0,"cut":false,"hidden":true,"merged":[]}

{"sheet":"modList00","index":22,"n_rows":0,"n_cols":0,"rows_kept":0,"cut":false,"hidden":true,"merged":[]}

{"sheet":"modList01","index":23,"n_rows":0,"n_cols":0,"rows_kept":0,"cut":false,"hidden":true,"merged":[]}

{"sheet":"modList02","index":24,"n_rows":0,"n_cols":0,"rows_kept":0,"cut":false,"hidden":true,"merged":[]}

{"sheet":"modList03","index":25,"n_rows":0,"n_cols":0,"rows_kept":0,"cut":false,"hidden":true,"merged":[]}

{"sheet":"modList04","index":26,"n_rows":0,"n_cols":0,"rows_kept":0,"cut":false,"hidden":true,"merged":[]}

{"sheet":"modfrmDateChoose","index":27,"n_rows":0,"n_cols":0,"rows_kept":0,"cut":false,"hidden":true,"merged":[]}

{"sheet":"modComm","index":28,"n_rows":0,"n_cols":0,"rows_kept":0,"cut":false,"hidden":true,"merged":[]}

{"sheet":"modThisWorkbook","index":29,"n_rows":0,"n_cols":0,"rows_kept":0,"cut":false,"hidden":true,"merged":[]}

{"sheet":"REESTR_MO","index":30,"n_rows":490,"n_cols":4,"rows_kept":490,"cut":false,"hidden":true,"merged":[]}
["№","МР","МО","МО_ОКТМО"]
[1,"Абдулинский","Абдулинский","53704000"]
[2,"Адамовский муниципальный район","Адамовский муниципальный район","53604000"]
[3,"Адамовский муниципальный район","Адамовское","53604401"]
[4,"Адамовский муниципальный район","Аниховское","53604402"]
[5,"Адамовский муниципальный район","Брацлавское","53604404"]
[6,"Адамовский муниципальный район","Елизаветинское","53604410"]
[7,"Адамовский муниципальный район","Комсомольское","53604416"]
[8,"Адамовский муниципальный район","Майское","53604419"]
[9,"Адамовский муниципальный район","Обильновское","53604422"]
[10,"Адамовский муниципальный район","Совхозное","53604425"]
[11,"Адамовский муниципальный район","Теренсайское","53604428"]
[12,"Адамовский муниципальный район","Шильдинское","53604440"]
[13,"Адамовский муниципальный район","Юбилейное","53604450"]
[14,"Акбулакский муниципальный район","Акбулакский муниципальный район","53605000"]
[15,"Акбулакский муниципальный район","Акбулакское","53605401"]
[16,"Акбулакский муниципальный район","Базартюбинское","53605402"]
[17,"Акбулакский муниципальный район","Васильевское","53605404"]
[18,"Акбулакский муниципальный район","Заилечное","53605407"]
[19,"Акбулакский муниципальный район","Каракудукское","53605410"]
[20,"Акбулакский муниципальный район","Карасаевское","53605413"]
[21,"Акбулакский муниципальный район","Мичуринское","53605419"]
[22,"Акбулакский муниципальный район","Новогригорьевское","53605421"]
[23,"Акбулакский муниципальный район","Новопавловское","53605422"]
[24,"Акбулакский муниципальный район","Новоуспеновское","53605425"]
[25,"Акбулакский муниципальный район","Сагарчинское","53605428"]
[26,"Акбулакский муниципальный район","Советское","53605431"]
[27,"Акбулакский муниципальный район","Тамдысайское","53605432"]
[28,"Акбулакский муниципальный район","Федоровское","53605434"]
[29,"Акбулакский муниципальный район","Шаповаловское","53605437"]
[30,"Акбулакский муниципальный район","Шкуновское","53605440"]
[31,"Александровский муниципальный район","Александровский муниципальный район","53606000"]
[32,"Александровский муниципальный район","Александровское","53606402"]
[33,"Александровский муниципальный район","Георгиевское","53606404"]
[34,"Александровский муниципальный район","Добринское","53606410"]
[35,"Александровский муниципальный район","Ждановское","53606413"]
[36,"Александровский муниципальный район","Зеленорощинское","53606416"]
[37,"Александровский муниципальный район","Каликинское","53606419"]
[38,"Александровский муниципальный район","Марксовское","53606422"]
[39,"Александровский муниципальный район","Новомихайловское","53606425"]
[40,"Александровский муниципальный район","Романовское","53606431"]
[41,"Александровский муниципальный район","Султакаевское","53606434"]
[42,"Александровский муниципальный район","Тукаевское","53606437"]
[43,"Александровский муниципальный район","Хортицкое","53606440"]
[44,"Александровский муниципальный район","Чебоксаровское","53606443"]
[45,"Александровский муниципальный район","Яфаровское","53606445"]
[46,"Асекеевский муниципальный район","Аксютинское","53607402"]
[47,"Асекеевский муниципальный район","Алексеевское","53607404"]
[48,"Асекеевский муниципальный район","Асекеевский муниципальный район","53607000"]
[49,"Асекеевский муниципальный район","Асекеевское","53607407"]
[50,"Асекеевский муниципальный район","Баландинское","53607410"]
[51,"Асекеевский муниципальный район","Воздвиженское","53607413"]
[52,"Асекеевский муниципальный район","Заглядинское","53607416"]
[53,"Асекеевский муниципальный район","Кислинское","53607418"]
[54,"Асекеевский муниципальный район","Красногорское","53607419"]
[55,"Асекеевский муниципальный район","Кутлуевское","53607422"]
[56,"Асекеевский муниципальный район","Лекаревское","53607425"]
[57,"Асекеевский муниципальный район","Мартыновское","53607428"]
[58,"Асекеевский муниципальный район","Мочегаевское","53607431"]
[59,"Асекеевский муниципальный район","Новосултангуловское","53607434"]
[60,"Асекеевский муниципальный район","Рязановское","53607437"]
[61,"Асекеевский муниципальный район","Старокульшариповское","53607440"]
[62,"Асекеевский муниципальный район","Старомукменевское","53607443"]
[63,"Асекеевский муниципальный район","Троицкое","53607446"]
[64,"Асекеевский муниципальный район","Чкаловское","53607449"]
[65,"Асекеевский муниципальный район","Юдинское","53607448"]
[66,"Асекеевский муниципальный район","Яковлевское","53607452"]
[67,"Беляевский муниципальный район","Белогорское","53610402"]
[68,"Беляевский муниципальный район","Беляевский муниципальный район","53610000"]
[69,"Беляевский муниципальный район","Беляевское","53610404"]
[70,"Беляевский муниципальный район","Бурлыкское","53610407"]
[71,"Беляевский муниципальный район","Буртинское","53610410"]
[72,"Беляевский муниципальный район","Днепровское","53610416"]
[73,"Беляевский муниципальный район","Донское","53610419"]
[74,"Беляевский муниципальный район","Дубенское","53610420"]
[75,"Беляевский муниципальный район","Карагачское","53610422"]
[76,"Беляевский муниципальный район","Ключевское","53610425"]
[77,"Беляевский муниципальный район","Крючковское","53610428"]
[78,"Беляевский муниципальный район","Раздольное","53610431"]
[79,"Бугурусланский муниципальный район","Аксаковское","53611402"]
[80,"Бугурусланский муниципальный район","Благодаровское","53611407"]
[81,"Бугурусланский муниципальный район","Бугурусланский муниципальный район","53611000"]
[82,"Бугурусланский муниципальный район","Дмитриевское","53611409"]
[83,"Бугурусланский муниципальный район","Елатомское","53611410"]
[84,"Бугурусланский муниципальный район","Завьяловское","53611413"]
[85,"Бугурусланский муниципальный район","Кирюшкинское","53611419"]
[86,"Бугурусланский муниципальный район","Коровинское","53611425"]
[87,"Бугурусланский муниципальный район","Михайловское","53611431"]
[88,"Бугурусланский муниципальный район","Нижнепавлушкинское","53611434"]
[89,"Бугурусланский муниципальный район","Нойкинское","53611436"]
[90,"Бугурусланский муниципальный район","Пилюгинское","53611443"]
[91,"Бугурусланский муниципальный район","Полибинское","53611446"]
[92,"Бугурусланский муниципальный район","Русскобоклинское","53611455"]
[93,"Бугурусланский муниципальный район","Советское","53611458"]
[94,"Бузулукский муниципальный район","Алдаркинское","53612402"]
[95,"Бузулукский муниципальный район","Березовское","53612403"]
[96,"Бузулукский муниципальный район","Бузулукский муниципальный район","53612000"]
[97,"Бузулукский муниципальный район","Верхневязовское","53612407"]
[98,"Бузулукский муниципальный район","Державинское","53612413"]
[99,"Бузулукский муниципальный район","Елховское","53612417"]
[100,"Бузулукский муниципальный район","Елшанское","53612419"]
[101,"Бузулукский муниципальный район","Жилинское","53612422"]
[102,"Бузулукский муниципальный район","Каменносарминское","53612425"]
[103,"Бузулукский муниципальный район","Колтубановское","53612427"]
[104,"Бузулукский муниципальный район","Колтубанское","53612428"]
[105,"Бузулукский муниципальный район","Красногвардейское","53612431"]
[106,"Бузулукский муниципальный район","Краснослободское","53612434"]
[107,"Бузулукский муниципальный район","Липовское","53612437"]
[108,"Бузулукский муниципальный район","Лисьеполянское","53612439"]
[109,"Бузулукский муниципальный район","Могутовское","53612441"]
[110,"Бузулукский муниципальный район","Новоалександровское","53612443"]
[111,"Бузулукский муниципальный район","Новотепловское","53612446"]
[112,"Бузулукский муниципальный район","Палимовское","53612449"]
[113,"Бузулукский муниципальный район","Подколкинское","53612452"]
[114,"Бузулукский муниципальный район","Преображенское","53612458"]
[115,"Бузулукский муниципальный район","Пригородное","53612461"]
[116,"Бузулукский муниципальный район","Проскуринское","53612462"]
[117,"Бузулукский муниципальный район","Староалександровское","53612464"]
[118,"Бузулукский муниципальный район","Сухореченское","53612467"]
[119,"Бузулукский муниципальный район","Твердиловское","53612470"]
[120,"Бузулукский муниципальный район","Троицкое","53612473"]
[121,"Бузулукский муниципальный район","Тупиковское","53612476"]
[122,"Бузулукский муниципальный район","Шахматовское","53612480"]
[123,"Гайский","Гайский","53713000"]
[124,"Грачевский муниципальный район","Александровское","53615402"]
[125,"Грачевский муниципальный район","Верхнеигнашкинское","53615404"]
[126,"Грачевский муниципальный район","Грачевский муниципальный район","53615000"]
[127,"Грачевский муниципальный район","Грачевское","53615406"]
[128,"Грачевский муниципальный район","Ероховское","53615408"]
[129,"Грачевский муниципальный район","Ключевское","53615410"]
[130,"Грачевский муниципальный район","Новоникольское","53615413"]
[131,"Грачевский муниципальный район","Петрохерсонецкое","53615416"]
[132,"Грачевский муниципальный район","Побединское","53615437"]
[133,"Грачевский муниципальный район","Подлесное","53615419"]
[134,"Грачевский муниципальный район","Русскоигнашкинское","53615422"]
[135,"Грачевский муниципальный район","Старояшкинское","53615425"]
[136,"Грачевский муниципальный район","Таллинское","53615431"]
[137,"Домбаровский муниципальный район","Ащебутакское","53617404"]
[138,"Домбаровский муниципальный район","Домбаровский муниципальный район","53617000"]
[139,"Домбаровский муниципальный район","Домбаровский поссовет","53617408"]
[140,"Домбаровский муниципальный район","Домбаровское","53617407"]
[141,"Домбаровский муниципальный район","Заринское","53617412"]
[142,"Домбаровский муниципальный район","Красночабанское","53617413"]
[143,"Домбаровский муниципальный район","Полевое","53617419"]
[144,"ЗАТО поселок Комаровский","ЗАТО поселок Комаровский","53755000"]
[145,"Илекский муниципальный район","Димитровское","53619402"]
[146,"Илекский муниципальный район","Затонновское","53619404"]
[147,"Илекский муниципальный район","Илекский муниципальный район","53619000"]
[148,"Илекский муниципальный район","Илекское","53619407"]
[149,"Илекский муниципальный район","Кардаиловское","53619410"]
[150,"Илекский муниципальный район","Красноярское","53619416"]
[151,"Илекский муниципальный район","Мухрановское","53619419"]
[152,"Илекский муниципальный район","Нижнеозернинское","53619422"]
[153,"Илекский муниципальный район","Озерское","53619425"]
[154,"Илекский муниципальный район","Подстепкинское","53619427"]
[155,"Илекский муниципальный район","Привольное","53619428"]
[156,"Илекский муниципальный район","Рассыпнянское","53619431"]
[157,"Илекский муниципальный район","Сладковское","53619434"]
[158,"Илекский муниципальный район","Студеновское","53619437"]
[159,"Илекский муниципальный район","Сухореченское","53619440"]
[160,"Илекский муниципальный район","Яманское","53619445"]
[161,"Кваркенский муниципальный район","Аландское","53622402"]
[162,"Кваркенский муниципальный район","Бриентское","53622404"]
[163,"Кваркенский муниципальный район","Кваркенский муниципальный район","53622000"]
[164,"Кваркенский муниципальный район","Кваркенское","53622410"]
[165,"Кваркенский муниципальный район","Кировское","53622413"]
[166,"Кваркенский муниципальный район","Коминтерновское","53622416"]
[167,"Кваркенский муниципальный район","Красноярское","53622417"]
[168,"Кваркенский муниципальный район","Новооренбургское","53622419"]
[169,"Кваркенский муниципальный район","Приморское","53622422"]
[170,"Кваркенский муниципальный район","Таналыкское","53622428"]
[171,"Кваркенский муниципальный район","Уральское","53622431"]
[172,"Кваркенский муниципальный район","Уртазымское","53622434"]
[173,"Красногвардейский муниципальный район","Дмитриевское","53623402"]
[174,"Красногвардейский муниципальный район","Залесовское","53623404"]
[175,"Красногвардейский муниципальный район","Кинзельское","53623410"]
[176,"Красногвардейский муниципальный район","Красногвардейский муниципальный район","53623000"]
[177,"Красногвардейский муниципальный район","Нижнекристальское","53623416"]
[178,"Красногвардейский муниципальный район","Никольское","53623419"]
[179,"Красногвардейский муниципальный район","Новоюласенское","53623422"]
[180,"Красногвардейский муниципальный район","Плешановское","53623424"]
[181,"Красногвардейский муниципальный район","Подольское","53623425"]
[182,"Красногвардейский муниципальный район","Преображенское","53623428"]
[183,"Красногвардейский муниципальный район","Пролетарское","53623431"]
[184,"Красногвардейский муниципальный район","Пушкинское","53623434"]
[185,"Красногвардейский муниципальный район","Свердловское","53623437"]
[186,"Красногвардейский муниципальный район","Староникольское","53623440"]
[187,"Красногвардейский муниципальный район","Токское","53623443"]
[188,"Красногвардейский муниципальный район","Яшкинское","53623446"]
[189,"Кувандыкский","Кувандыкский","53714000"]
[190,"Курманаевский муниципальный район","Андреевское","53625402"]
[191,"Курманаевский муниципальный район","Васильевское","53625407"]
[192,"Курманаевский муниципальный район","Волжское","53625410"]
[193,"Курманаевский муниципальный район","Гаршинское","53625413"]
[194,"Курманаевский муниципальный район","Грачевское","53625416"]
[195,"Курманаевский муниципальный район","Ефимовское","53625422"]
[196,"Курманаевский муниципальный район","Кандауровское","53625425"]
[197,"Курманаевский муниципальный район","Костинское","53625428"]
[198,"Курманаевский муниципальный район","Курманаевский муниципальный район","53625000"]
[199,"Курманаевский муниципальный район","Курманаевское","53625431"]
[200,"Курманаевский муниципальный район","Кутушинское","53625434"]
[201,"Курманаевский муниципальный район","Лабазинское","53625437"]
[202,"Курманаевский муниципальный район","Лаврентьевское","53625440"]
[203,"Курманаевский муниципальный район","Михайловское","53625446"]
[204,"Курманаевский муниципальный район","Покровское","53625449"]
[205,"Курманаевский муниципальный район","Ромашкинское","53625455"]
[206,"Матвеевский муниципальный район","Емельяновское","53627404"]
[207,"Матвеевский муниципальный район","Кинельское","53627407"]
[208,"Матвеевский муниципальный район","Кузькинское","53627410"]
[209,"Матвеевский муниципальный район","Кульчумское","53627411"]
[210,"Матвеевский муниципальный район","Матвеевский муниципальный район","53627000"]
[211,"Матвеевский муниципальный район","Матвеевское","53627413"]
[212,"Матвеевский муниципальный район","Новоашировское","53627416"]
[213,"Матвеевский муниципальный район","Новожедринское","53627419"]
[214,"Матвеевский муниципальный район","Новоспасское","53627422"]
[215,"Матвеевский муниципальный район","Новоузелинское","53627425"]
[216,"Матвеевский муниципальный район","Сарай-Гирское","53627428"]
[217,"Матвеевский муниципальный район","Староашировское","53627430"]
[218,"Матвеевский муниципальный район","Старокутлумбетьевское","53627431"]
[219,"Матвеевский муниципальный район","Староякуповское","53627432"]
[220,"Матвеевский муниципальный район","Тимошкинское","53627434"]
[221,"Новоорский муниципальный район","Будамшинское","53630402"]
[222,"Новоорский муниципальный район","Горьковское","53630404"]
[223,"Новоорский муниципальный район","Добровольское","53630406"]
[224,"Новоорский муниципальный район","Караганское","53630408"]
[225,"Новоорский муниципальный район","Кумакское","53630413"]
[226,"Новоорский муниципальный район","Новоорский муниципальный район","53630000"]
[227,"Новоорский муниципальный район","Новоорское","53630414"]
[228,"Новоорский муниципальный район","Приреченское","53630415"]
[229,"Новоорский муниципальный район","Чапаевское","53630419"]
[230,"Новоорский муниципальный район","Энергетикское","53630440"]
[231,"Новосергиевский муниципальный район","Барабановское","53631402"]
[232,"Новосергиевский муниципальный район","Берестовское","53631403"]
[233,"Новосергиевский муниципальный район","Герасимовское","53631404"]
[234,"Новосергиевский муниципальный район","Краснополянское","53631410"]
[235,"Новосергиевский муниципальный район","Кувайское","53631413"]
[236,"Новосергиевский муниципальный район","Кулагинское","53631416"]
[237,"Новосергиевский муниципальный район","Кутушевское","53631419"]
[238,"Новосергиевский муниципальный район","Лапазское","53631422"]
[239,"Новосергиевский муниципальный район","Мустаевское","53631428"]
[240,"Новосергиевский муниципальный район","Нестеровское","53631431"]
[241,"Новосергиевский муниципальный район","Новосергиевский муниципальный район","53631000"]
[242,"Новосергиевский муниципальный район","Новосергиевское","53631432"]
[243,"Новосергиевский муниципальный район","Платовское","53631434"]
[244,"Новосергиевский муниципальный район","Покровское","53631437"]
[245,"Новосергиевский муниципальный район","Рыбкинское","53631440"]
[246,"Новосергиевский муниципальный район","Среднеуранское","53631443"]
[247,"Новосергиевский муниципальный район","Старобелогорское","53631446"]
[248,"Новосергиевский муниципальный район","Судьбодаровское","53631449"]
[249,"Новосергиевский муниципальный район","Хуторское","53631452"]
[250,"Новосергиевский муниципальный район","Ясногорское","53631455"]
[251,"Октябрьский муниципальный район","Белозерское","53633402"]
[252,"Октябрьский муниципальный район","Булановское","53633404"]
[253,"Октябрьский муниципальный район","Васильевское","53633407"]
[254,"Октябрьский муниципальный район","Ильинское","53633413"]
[255,"Октябрьский муниципальный район","Имангуловское","53633416"]
[256,"Октябрьский муниципальный район","Комиссаровское","53633419"]
[257,"Октябрьский муниципальный район","Краснооктябрьское","53633422"]
[258,"Октябрьский муниципальный район","Марьевское","53633428"]
[259,"Октябрьский муниципальный район","Нижнегумбетовское","53633431"]
[260,"Октябрьский муниципальный район","Новоникитинское","53633434"]
[261,"Октябрьский муниципальный район","Новотроицкое","53633437"]
[262,"Октябрьский муниципальный район","Октябрьский муниципальный район","53633000"]
[263,"Октябрьский муниципальный район","Октябрьское","53633440"]
[264,"Октябрьский муниципальный район","Российское","53633443"]
[265,"Октябрьский муниципальный район","Уранбашское","53633446"]
[266,"Оренбургский муниципальный район","Архангеловское","53634402"]
[267,"Оренбургский муниципальный район","Благословенское","53634405"]
[268,"Оренбургский муниципальный район","Бродецкое","53634404"]
[269,"Оренбургский муниципальный район","Весеннее","53634406"]
[270,"Оренбургский муниципальный район","Горное","53634407"]
[271,"Оренбургский муниципальный район","Дедуровское","53634413"]
[272,"Оренбургский муниципальный район","Зауральное","53634416"]
[273,"Оренбургский муниципальный район","Зубаревское","53634419"]
[274,"Оренбургский муниципальный район","Ивановское","53634422"]
[275,"Оренбургский муниципальный район","Каменноозерное","53634425"]
[276,"Оренбургский муниципальный район","Караванное","53634428"]
[277,"Оренбургский муниципальный район","Красноуральское","53634431"]
[278,"Оренбургский муниципальный район","Ленинское","53634432"]
[279,"Оренбургский муниципальный район","Нежинское","53634434"]
[280,"Оренбургский муниципальный район","Нижнепавловское","53634437"]
[281,"Оренбургский муниципальный район","Никольское","53634440"]
[282,"Оренбургский муниципальный район","Оренбургский муниципальный район","53634000"]
[283,"Оренбургский муниципальный район","Первомайское","53634445"]
[284,"Оренбургский муниципальный район","Подгородне-Покровское","53634446"]
[285,"Оренбургский муниципальный район","Пречистинское","53634450"]
[286,"Оренбургский муниципальный район","Пригородное","53634448"]
[287,"Оренбургский муниципальный район","Приуральское","53634449"]
[288,"Оренбургский муниципальный район","Пугачевское","53634452"]
[289,"Оренбургский муниципальный район","Сергиевское","53634455"]
[290,"Оренбургский муниципальный район","Соловьевское","53634454"]
[291,"Оренбургский муниципальный район","Степановское","53634456"]
[292,"Оренбургский муниципальный район","Струковское","53634457"]
[293,"Оренбургский муниципальный район","Чебеньковское","53634458"]
[294,"Оренбургский муниципальный район","Чернореченское","53634461"]
[295,"Оренбургский муниципальный район","Чкаловское","53634464"]
[296,"Оренбургский муниципальный район","Экспериментальное","53634468"]
[297,"Оренбургский муниципальный район","Южноуральское","53634470"]
[298,"Первомайский муниципальный район","Володарское","53636402"]
[299,"Первомайский муниципальный район","Красновское","53636404"]
[300,"Первомайский муниципальный район","Ленинское","53636408"]
[301,"Первомайский муниципальный район","Малозайкинское","53636411"]
[302,"Первомайский муниципальный район","Мирошкинское","53636413"]
[303,"Первомайский муниципальный район","Первомайский муниципальный район","53636000"]
[304,"Первомайский муниципальный район","Первомайское","53636415"]
[305,"Первомайский муниципальный район","Пылаевское","53636416"]
[306,"Первомайский муниципальный район","Революционное","53636417"]
[307,"Первомайский муниципальный район","Рубежинское","53636419"]
[308,"Первомайский муниципальный район","Сергиевское","53636422"]
[309,"Первомайский муниципальный район","Соболевское","53636425"]
[310,"Первомайский муниципальный район","Советское","53636428"]
[311,"Первомайский муниципальный район","Уральское","53636431"]
[312,"Первомайский муниципальный район","Фурмановское","53636434"]
[313,"Первомайский муниципальный район","Шапошниковское","53636437"]
[314,"Переволоцкий муниципальный район","Адамовское","53637404"]
[315,"Переволоцкий муниципальный район","Донецкое","53637407"]
[316,"Переволоцкий муниципальный район","Зубочистенское","53637410"]
[317,"Переволоцкий муниципальный район","Зубочистенское Второе","53637411"]
[318,"Переволоцкий муниципальный район","Кариновское","53637416"]
[319,"Переволоцкий муниципальный район","Кичкасское","53637419"]
[320,"Переволоцкий муниципальный район","Кубанское","53637420"]
[321,"Переволоцкий муниципальный район","Мамалаевское","53637422"]
[322,"Переволоцкий муниципальный район","Переволоцкий муниципальный район","53637000"]
[323,"Переволоцкий муниципальный район","Переволоцкое","53637424"]
[324,"Переволоцкий муниципальный район","Преторийское","53637425"]
[325,"Переволоцкий муниципальный район","Родничнодольское","53637428"]
[326,"Переволоцкий муниципальный район","Садовое","53637431"]
[327,"Переволоцкий муниципальный район","Степановское","53637434"]
[328,"Переволоцкий муниципальный район","Татищевское","53637437"]
[329,"Переволоцкий муниципальный район","Чесноковское","53637440"]
[330,"Переволоцкий муниципальный район","Южноуральское","53637443"]
[331,"Переволоцкий муниципальный район","Япрынцевское","53637446"]
[332,"Пономаревский муниципальный район","Борисовское","53638403"]
[333,"Пономаревский муниципальный район","Воздвиженское","53638404"]
[334,"Пономаревский муниципальный район","Деминское","53638405"]
[335,"Пономаревский муниципальный район","Дюсьметьевское","53638406"]
[336,"Пономаревский муниципальный район","Ефремово-Зыковское","53638407"]
[337,"Пономаревский муниципальный район","Ключевское","53638410"]
[338,"Пономаревский муниципальный район","Максимовское","53638413"]
[339,"Пономаревский муниципальный район","Наурузовское","53638416"]
[340,"Пономаревский муниципальный район","Нижнекузлинское","53638419"]
[341,"Пономаревский муниципальный район","Пономаревский муниципальный район","53638000"]
[342,"Пономаревский муниципальный район","Пономаревское","53638422"]
[343,"Пономаревский муниципальный район","Равнинное","53638425"]
[344,"Пономаревский муниципальный район","Романовское","53638428"]
[345,"Пономаревский муниципальный район","Семеновское","53638431"]
[346,"Пономаревский муниципальный район","Софиевское","53638434"]
[347,"Пономаревский муниципальный район","Фадеевское","53638437"]
[348,"Сакмарский муниципальный район","Архиповское","53640402"]
[349,"Сакмарский муниципальный район","Беловское","53640404"]
[350,"Сакмарский муниципальный район","Белоусовское","53640407"]
[351,"Сакмарский муниципальный район","Верхнечебеньковское","53640410"]
[352,"Сакмарский муниципальный район","Дмитриевское","53640411"]
[353,"Сакмарский муниципальный район","Егорьевское","53640413"]
[354,"Сакмарский муниципальный район","Каменское","53640416"]
[355,"Сакмарский муниципальный район","Краснокоммунарское","53640417"]
[356,"Сакмарский муниципальный район","Марьевское","53640419"]
[357,"Сакмарский муниципальный район","Никольское","53640422"]
[358,"Сакмарский муниципальный район","Сакмарский муниципальный район","53640000"]
[359,"Сакмарский муниципальный район","Сакмарское","53640425"]
[360,"Сакмарский муниципальный район","Светлое","53640428"]
[361,"Сакмарский муниципальный район","Татаро-Каргалинское","53640434"]
[362,"Сакмарский муниципальный район","Тимашевское","53640437"]
[363,"Сакмарский муниципальный район","Украинское","53640440"]
[364,"Саракташский муниципальный район","Александровское","53641402"]
[365,"Саракташский муниципальный район","Бурунчинское","53641404"]
[366,"Саракташский муниципальный район","Васильевское","53641407"]
[367,"Саракташский муниципальный район","Воздвиженское","53641410"]
[368,"Саракташский муниципальный район","Гавриловское","53641413"]
[369,"Саракташский муниципальный район","Желтинское","53641416"]
[370,"Саракташский муниципальный район","Каировское","53641419"]
[371,"Саракташский муниципальный район","Карагузинское","53641422"]
[372,"Саракташский муниципальный район","Надеждинское","53641425"]
[373,"Саракташский муниципальный район","Николаевское","53641428"]
[374,"Саракташский муниципальный район","Новосокулакское","53641431"]
[375,"Саракташский муниципальный район","Новочеркасское","53641434"]
[376,"Саракташский муниципальный район","Петровское","53641440"]
[377,"Саракташский муниципальный район","Саракташский муниципальный район","53641000"]
[378,"Саракташский муниципальный район","Саракташское","53641444"]
[379,"Саракташский муниципальный район","Спасское","53641443"]
[380,"Саракташский муниципальный район","Старосокулакское","53641446"]
[381,"Саракташский муниципальный район","Федоровское Первое","53641449"]
[382,"Саракташский муниципальный район","Черкасское","53641452"]
[383,"Саракташский муниципальный район","Черноотрожское","53641455"]
[384,"Светлинский муниципальный район","Актюбинское","53642402"]
[385,"Светлинский муниципальный район","Восточное","53642407"]
[386,"Светлинский муниципальный район","Гостеприимное","53642410"]
[387,"Светлинский муниципальный район","Коскульское","53642413"]
[388,"Светлинский муниципальный район","Озерное","53642416"]
[389,"Светлинский муниципальный район","Светлинский муниципальный район","53642000"]
[390,"Светлинский муниципальный район","Светлинское","53642418"]
[391,"Светлинский муниципальный район","Спутниковское","53642419"]
[392,"Светлинский муниципальный район","Степное","53642422"]
[393,"Светлинский муниципальный район","Тобольское","53642425"]
[394,"Северный муниципальный район","Аксенкинское","53643402"]
[395,"Северный муниципальный район","Бакаевское","53643404"]
[396,"Северный муниципальный район","Каменногорское","53643407"]
[397,"Северный муниципальный район","Красноярское","53643410"]
[398,"Северный муниципальный район","Кряжлинское","53643413"]
[399,"Северный муниципальный район","Курско-Васильевское","53643416"]
[400,"Северный муниципальный район","Михеевское","53643419"]
[401,"Северный муниципальный район","Мордово-Добринское","53643422"]
[402,"Северный муниципальный район","Нижнечеляевское","53643425"]
[403,"Северный муниципальный район","Новодомосейкинское","53643428"]
[404,"Северный муниципальный район","Русскокандызское","53643431"]
[405,"Северный муниципальный район","Рычковское","53643434"]
[406,"Северный муниципальный район","Северное","53643437"]
[407,"Северный муниципальный район","Северный муниципальный район","53643000"]
[408,"Северный муниципальный район","Секретарское","53643440"]
[409,"Северный муниципальный район","Староборискинское","53643443"]
[410,"Соль-Илецкий","Соль-Илецкий","53725000"]
[411,"Сорочинский","Сорочинский","53727000"]
[412,"Ташлинский муниципальный район","Алексеевское","53651402"]
[413,"Ташлинский муниципальный район","Благодарновское","53651404"]
[414,"Ташлинский муниципальный район","Болдыревское","53651407"]
[415,"Ташлинский муниципальный район","Бородинское","53651408"]
[416,"Ташлинский муниципальный район","Вязовское","53651413"]
[417,"Ташлинский муниципальный район","Заречное","53651416"]
[418,"Ташлинский муниципальный район","Калининское","53651419"]
[419,"Ташлинский муниципальный район","Кинделинское","53651422"]
[420,"Ташлинский муниципальный район","Новокаменское","53651425"]
[421,"Ташлинский муниципальный район","Придолинное","53651428"]
[422,"Ташлинский муниципальный район","Ранневское","53651431"]
[423,"Ташлинский муниципальный район","Степановское","53651434"]
[424,"Ташлинский муниципальный район","Степное","53651437"]
[425,"Ташлинский муниципальный район","Ташлинский муниципальный район","53651000"]
[426,"Ташлинский муниципальный район","Ташлинское","53651440"]
[427,"Ташлинский муниципальный район","Трудовое","53651443"]
[428,"Ташлинский муниципальный район","Чернояровское","53651446"]
[429,"Ташлинский муниципальный район","Шестаковское","53651449"]
[430,"Ташлинский муниципальный район","Яснополянское","53651452"]
[431,"Тоцкий муниципальный район","Богдановское","53652402"]
[432,"Тоцкий муниципальный район","Верхнебузулукское","53652404"]
[433,"Тоцкий муниципальный район","Зареченское","53652406"]
[434,"Тоцкий муниципальный район","Злобинское","53652408"]
[435,"Тоцкий муниципальный район","Кирсановское","53652410"]
[436,"Тоцкий муниципальный район","Ковыляевское","53652413"]
[437,"Тоцкий муниципальный район","Малоремизенское","53652422"]
[438,"Тоцкий муниципальный район","Медведское","53652426"]
[439,"Тоцкий муниципальный район","Молодежное","53652427"]
[440,"Тоцкий муниципальный район","Павло-Антоновское","53652428"]
[441,"Тоцкий муниципальный район","Погроминское","53652431"]
[442,"Тоцкий муниципальный район","Преображенское","53652434"]
[443,"Тоцкий муниципальный район","Пристанционное","53652437"]
[444,"Тоцкий муниципальный район","Приютинское","53652440"]
[445,"Тоцкий муниципальный район","Саиновское","53652442"]
[446,"Тоцкий муниципальный район","Свердловское","53652443"]
[447,"Тоцкий муниципальный район","Суворовское","53652446"]
[448,"Тоцкий муниципальный район","Тоцкий муниципальный район","53652000"]
[449,"Тоцкий муниципальный район","Тоцкое","53652449"]
[450,"Тюльганский муниципальный район","Алмалинское","53653402"]
[451,"Тюльганский муниципальный район","Благовещенское","53653404"]
[452,"Тюльганский муниципальный район","Благодарновское","53653407"]
[453,"Тюльганский муниципальный район","Городецкое","53653410"]
[454,"Тюльганский муниципальный район","Екатеринославское","53653413"]
[455,"Тюльганский муниципальный район","Ивановское","53653416"]
[456,"Тюльганский муниципальный район","Ключевское","53653419"]
[457,"Тюльганский муниципальный район","Разномойское","53653422"]
[458,"Тюльганский муниципальный район","Репьевское","53653425"]
[459,"Тюльганский муниципальный район","Ташлинское","53653428"]
[460,"Тюльганский муниципальный район","Троицкое","53653431"]
[461,"Тюльганский муниципальный район","Тугустемирское","53653434"]
[462,"Тюльганский муниципальный район","Тюльганский муниципальный район","53653000"]
[463,"Тюльганский муниципальный район","Тюльганское","53653435"]
[464,"Тюльганский муниципальный район","Чапаевское","53653437"]
[465,"Шарлыкский муниципальный район","Богородское","53656402"]
[466,"Шарлыкский муниципальный район","Дубровское","53656403"]
[467,"Шарлыкский муниципальный район","Зерклинское","53656404"]
[468,"Шарлыкский муниципальный район","Илькульганское","53656407"]
[469,"Шарлыкский муниципальный район","Казанское","53656410"]
[470,"Шарлыкский муниципальный район","Константиновское","53656413"]
[471,"Шарлыкский муниципальный район","Новоархангельское","53656419"]
[472,"Шарлыкский муниципальный район","Новомусинское","53656425"]
[473,"Шарлыкский муниципальный район","Новоникольское","53656428"]
[474,"Шарлыкский муниципальный район","Парадаевское","53656429"]
[475,"Шарлыкский муниципальный район","Преображенское","53656430"]
[476,"Шарлыкский муниципальный район","Путятинское","53656432"]
[477,"Шарлыкский муниципальный район","Ратчинское","53656434"]
[478,"Шарлыкский муниципальный район","Сарманайское","53656437"]
[479,"Шарлыкский муниципальный район","Слоновское","53656440"]
[480,"Шарлыкский муниципальный район","Титовское","53656443"]
[481,"Шарлыкский муниципальный район","Шарлыкский муниципальный район","53656000"]
[482,"Шарлыкский муниципальный район","Шарлыкское","53656446"]
[483,"Ясненский","Ясненский","53732000"]
[484,"город Бугуруслан","город Бугуруслан","53708000"]
[485,"город Бузулук","город Бузулук","53712000"]
[486,"город Медногорск","город Медногорск","53715000"]
[487,"город Новотроицк","город Новотроицк","53720000"]
[488,"город Оренбург","город Оренбург","53701000"]
[489,"город Орск","город Орск","53723000"]

{"sheet":"modfrmReestrMR","index":31,"n_rows":0,"n_cols":0,"rows_kept":0,"cut":false,"hidden":true,"merged":[]}

{"sheet":"modfrmRegion","index":32,"n_rows":0,"n_cols":0,"rows_kept":0,"cut":false,"hidden":true,"merged":[]}

{"sheet":"modfrmCheckUpdates","index":33,"n_rows":0,"n_cols":0,"rows_kept":0,"cut":false,"hidden":true,"merged":[]}